BodyName,ServiceAreaCategorisation,ServiceDivisionCategorisation,ExpensesType,Date,TransactionNumber,Amount,CapitalorRevenue,SupplierName,MerchantCategory
Peterborough City Council,Adults,Independent Sector Placements,Services,20/09/2019,30245944,"3,425.92",Revenue,Redacted Personal Data,Residential Care
Peterborough City Council,Commissioning and Commercial Operations,Access to Resources & Specialist Commissioning,Services,02/10/2019,30245105,"-7,512.48",Revenue,Fostering People Ltd,Boarding Out Fees
Peterborough City Council,Commissioning and Commercial Operations,Access to Resources & Specialist Commissioning,Services,02/10/2019,30246049,764.4,Revenue,Swiis Foster Care Ltd,Boarding Out Fees
Peterborough City Council,Commissioning and Commercial Operations,Access to Resources & Specialist Commissioning,Services,02/10/2019,30246048,780.01,Revenue,Swiis Foster Care Ltd,Boarding Out Fees
Peterborough City Council,Commissioning and Commercial Operations,Access to Resources & Specialist Commissioning,Services,02/10/2019,30246494,"1,353.60",Revenue,Fostering People Ltd,Boarding Out Fees
Peterborough City Council,Commissioning and Commercial Operations,Access to Resources & Specialist Commissioning,Services,02/10/2019,30245676,"1,980.00",Revenue,Florinee Homes Ltd,Boarding Out Fees
Peterborough City Council,Commissioning and Commercial Operations,Access to Resources & Specialist Commissioning,Services,02/10/2019,30245677,"1,980.00",Revenue,Florinee Homes Ltd,Boarding Out Fees
Peterborough City Council,Commissioning and Commercial Operations,Access to Resources & Specialist Commissioning,Services,02/10/2019,30245679,"2,750.00",Revenue,Florinee Homes Ltd,Boarding Out Fees
Peterborough City Council,Commissioning and Commercial Operations,Access to Resources & Specialist Commissioning,Services,02/10/2019,30245208,"3,210.71",Revenue,Pride Fostering,Boarding Out Fees
Peterborough City Council,Commissioning and Commercial Operations,Access to Resources & Specialist Commissioning,Services,02/10/2019,30245663,"3,317.00",Revenue,Alliance Foster Care,Boarding Out Fees
Peterborough City Council,Commissioning and Commercial Operations,Access to Resources & Specialist Commissioning,Services,02/10/2019,30246367,"3,407.10",Revenue,National Fostering Agency Ltd,Boarding Out Fees
Peterborough City Council,Commissioning and Commercial Operations,Access to Resources & Specialist Commissioning,Services,02/10/2019,30235902,"3,496.80",Revenue,Fostering People Ltd,Boarding Out Fees
Peterborough City Council,Commissioning and Commercial Operations,Access to Resources & Specialist Commissioning,Services,02/10/2019,30239620,"3,496.80",Revenue,Fostering People Ltd,Boarding Out Fees
Peterborough City Council,Commissioning and Commercial Operations,Access to Resources & Specialist Commissioning,Services,02/10/2019,30246004,"3,508.50",Revenue,Nexus Fostering Ltd,Boarding Out Fees
Peterborough City Council,Commissioning and Commercial Operations,Access to Resources & Specialist Commissioning,Services,02/10/2019,30244128,"3,520.67",Revenue,Little Acorns Fostering,Boarding Out Fees
Peterborough City Council,Commissioning and Commercial Operations,Access to Resources & Specialist Commissioning,Services,02/10/2019,30244129,"3,520.67",Revenue,Little Acorns Fostering,Boarding Out Fees
Peterborough City Council,Commissioning and Commercial Operations,Access to Resources & Specialist Commissioning,Services,02/10/2019,30245622,"3,675.67",Revenue,Compass Fostering Central Limited,Boarding Out Fees
Peterborough City Council,Commissioning and Commercial Operations,Access to Resources & Specialist Commissioning,Services,02/10/2019,30246005,"3,693.00",Revenue,Nexus Fostering Ltd,Boarding Out Fees
Peterborough City Council,Commissioning and Commercial Operations,Access to Resources & Specialist Commissioning,Services,02/10/2019,30246008,"3,693.00",Revenue,Nexus Fostering Ltd,Boarding Out Fees
Peterborough City Council,Commissioning and Commercial Operations,Access to Resources & Specialist Commissioning,Services,02/10/2019,30246009,"3,693.00",Revenue,Nexus Fostering Ltd,Boarding Out Fees
Peterborough City Council,Commissioning and Commercial Operations,Access to Resources & Specialist Commissioning,Services,02/10/2019,30246010,"3,693.00",Revenue,Nexus Fostering Ltd,Boarding Out Fees
Peterborough City Council,Commissioning and Commercial Operations,Access to Resources & Specialist Commissioning,Services,02/10/2019,30245598,"4,034.34",Revenue,Five Rivers,Boarding Out Fees
Peterborough City Council,Commissioning and Commercial Operations,Access to Resources & Specialist Commissioning,Services,02/10/2019,30246445,"8,400.00",Revenue,A & T Home Limited,Boarding Out Fees
Peterborough City Council,"Cemeteries, Cremation & Registrars",Bereavement Service,Repair & Maintenance of Buildings,02/10/2019,30246332,"2,860.00",Revenue,A M Strickland Builders,Infrastructure
Peterborough City Council,"Cemeteries, Cremation & Registrars",Bereavement Service,Repair & Maintenance of Buildings,02/10/2019,30246333,"3,640.00",Revenue,A M Strickland Builders,Infrastructure
Peterborough City Council,Development and Construction,Building Control,Agency Staff,02/10/2019,30246211,"1,075.05",Revenue,Reed Specialist Recruitment Limited,External Temporary Staff
Peterborough City Council,Children's & Safeguarding,Children's Social Care,Contract Hire and Operating Leases,02/10/2019,30246297,"4,777.20",Revenue,Northumbria Healthcare NHS Foundation Trust,Hired Transport
Peterborough City Council,Commissioning and Commercial Operations,Clare Lodge,Services,02/10/2019,30246374,695,Revenue,Beat This CIC,Playschemes
Peterborough City Council,Communities,Cohesion,Services,02/10/2019,30245727,710.65,Revenue,Whittlesey Town Council,Financial Assistance
Peterborough City Council,Communities,Cohesion,Third Party Payments,02/10/2019,30246236,"9,401.43",Revenue,The Princes Trust,Grant-Third Party
Peterborough City Council,Corporate Property,Commercial Propety,Services,02/10/2019,30246167,"9,000.00",Revenue,Bee Lettings Ltd,Professional Services
Peterborough City Council,Corporate Property,Commercial Propety,Repair & Maintenance of Buildings,02/10/2019,30244628,"10,330.95",Revenue,Bee Lettings Ltd,Maintenance
Peterborough City Council,Corporate Property,Commercial Propety,Rents,02/10/2019,30246462,"32,735.97",Revenue,DVS Management Ltd,Rent
Peterborough City Council,Commissioning and Commercial Operations,Commissioning,Services,02/10/2019,30246135,"1,004.25",Revenue,BDP Social Care Ltd,Hired Services
Peterborough City Council,Commissioning and Commercial Operations,Commissioning,Third Party Payments,02/10/2019,30245630,"9,208.33",Revenue,Cambs & P'boro NHS Foundation Trust,Third Party Payments - Contract
Peterborough City Council,Children's & Safeguarding,Commissioning - CSC,Services,02/10/2019,30246419,541.88,Revenue,Sahara Community Care Services Limited,Financial Assistance
Peterborough City Council,Commissioning and Commercial Operations,Commissioning Team,Agency Staff,02/10/2019,30246187,"2,243.60",Revenue,Reed Specialist Recruitment Limited,External Temporary Staff
Peterborough City Council,Corporate,Corporate,Non Revenue,02/10/2019,30245100,"-7,500.00",Capital,Warics Ltd,Grant Payment
Peterborough City Council,Corporate,Corporate,Non Revenue,02/10/2019,30245100,"-5,000.00",Capital,Warics Ltd,Grant Payment
Peterborough City Council,Corporate,Corporate,Non Revenue,02/10/2019,30245100,"-1,625.00",Capital,Warics Ltd,Grant Payment
Peterborough City Council,Corporate,Corporate,Non Revenue,02/10/2019,30245840,937.5,Capital,Sibcas Ltd,Building And Site Works
Peterborough City Council,Corporate,Corporate,Non Revenue,02/10/2019,30245103,"1,444.25",Capital,Warics Ltd,Grant Payment
Peterborough City Council,Corporate,Corporate,Non Revenue,02/10/2019,30246230,"1,500.00",Capital,Allworks Home Improvements Ltd,Building And Site Works
Peterborough City Council,Corporate,Corporate,Non Revenue,02/10/2019,30246231,"1,500.00",Capital,Allworks Home Improvements Ltd,Building And Site Works
Peterborough City Council,Corporate,Corporate,Non Revenue,02/10/2019,30246260,"2,196.45",Capital,Sovereign Property Services Ltd,Grant Payment
Peterborough City Council,Corporate,Corporate,Non Revenue,02/10/2019,30246229,"2,500.00",Capital,Allworks Home Improvements Ltd,Building And Site Works
Peterborough City Council,Corporate,Corporate,Non Revenue,02/10/2019,30243827,"4,124.76",Capital,MORLEY BUILDING SERVICES LTD,Grant Payment
Peterborough City Council,Corporate,Corporate,Non Revenue,02/10/2019,30243671,"5,316.45",Capital,MORLEY BUILDING SERVICES LTD,Grant Payment
Peterborough City Council,Corporate,Corporate,Non Revenue,02/10/2019,30243826,"6,614.80",Capital,MORLEY BUILDING SERVICES LTD,Grant Payment
Peterborough City Council,Corporate,Corporate,Non Revenue,02/10/2019,30245094,"7,981.00",Capital,MORLEY BUILDING SERVICES LTD,Grant Payment
Peterborough City Council,Corporate,Corporate,Non Revenue,02/10/2019,30245080,"8,504.25",Capital,MORLEY BUILDING SERVICES LTD,Grant Payment
Peterborough City Council,Corporate,Corporate,Non Revenue,02/10/2019,30245100,"30,000.00",Capital,Warics Ltd,Grant Payment
Peterborough City Council,Corporate,Corporate,Non Revenue,02/10/2019,30245225,"40,656.00",Capital,Peterborough Limited,Building And Site Works
Peterborough City Council,Corporate,Corporate,Non Revenue,02/10/2019,30245224,"54,320.00",Capital,Peterborough Limited,Building And Site Works
Peterborough City Council,Communities,Cultural Services,Services,02/10/2019,30246428,570,Revenue,Chamberlain Music Education,Hired Services
Peterborough City Council,Development and Construction,Development Management,Agency Staff,02/10/2019,30244815,"1,237.60",Revenue,Reed Specialist Recruitment Limited,External Temporary Staff
Peterborough City Council,Public Health,DPH Office,Agency Staff,02/10/2019,30246209,653.06,Revenue,Reed Specialist Recruitment Limited,External Temporary Staff
Peterborough City Council,Children's & Safeguarding,Early Help ASC/CSC,Agency Staff,02/10/2019,30245491,550.9,Revenue,Reed Specialist Recruitment Limited,External Temporary Staff
Peterborough City Council,Children's & Safeguarding,Early Help ASC/CSC,Services,02/10/2019,30246133,"2,651.00",Revenue,BDP Social Care Ltd,Childcare
Peterborough City Council,Children's & Safeguarding,Early Help ASC/CSC,Services,02/10/2019,30246398,"3,777.00",Revenue,The Ministry of Parenting CIC,Hired Services
Peterborough City Council,Children's & Safeguarding,External Education Placements,Services,02/10/2019,30246235,"3,129.67",Revenue,Warmington School,Out Of Area Education Costs
Peterborough City Council,Financial Services,Finance,Agency Staff,02/10/2019,30245897,681.17,Revenue,Reed Specialist Recruitment Limited,External Temporary Staff
Peterborough City Council,Adults,Finance,Agency Staff,02/10/2019,30245893,697.36,Revenue,Reed Specialist Recruitment Limited,External Temporary Staff
Peterborough City Council,Adults,Finance,Agency Staff,02/10/2019,30245894,697.36,Revenue,Reed Specialist Recruitment Limited,External Temporary Staff
Peterborough City Council,Adults,Finance,Agency Staff,02/10/2019,30245903,697.36,Revenue,Reed Specialist Recruitment Limited,External Temporary Staff
Peterborough City Council,Financial Services,Finance,Agency Staff,02/10/2019,30245680,"2,380.92",Revenue,Redacted Personal Data,External Temporary Staff
Peterborough City Council,Peterborough Highway Services,Highway & Drainage Control,Agency Staff,02/10/2019,30246197,580.5,Revenue,Reed Specialist Recruitment Limited,External Temporary Staff
Peterborough City Council,Peterborough Highway Services,Highway & Drainage Control,Agency Staff,02/10/2019,30246212,"1,235.80",Revenue,Reed Specialist Recruitment Limited,External Temporary Staff
Peterborough City Council,Peterborough Highway Services,Highway & Drainage Control,Agency Staff,02/10/2019,30246190,"1,294.26",Revenue,Reed Specialist Recruitment Limited,External Temporary Staff
Peterborough City Council,Peterborough Highway Services,Highway Mtce & Scheme Commissioning,Services,02/10/2019,30243097,710,Revenue,Redacted Personal Data,Legal Costs
Peterborough City Council,Adults,Home Services Delivery Model,Customer and client receipts - Fees & Charges,02/10/2019,30245100,"-1,956.47",Revenue,Warics Ltd,Grant Payment
Peterborough City Council,Adults,Home Services Delivery Model,Customer and client receipts - Fees & Charges,02/10/2019,30245080,"-1,109.25",Revenue,MORLEY BUILDING SERVICES LTD,Grant Payment
Peterborough City Council,Adults,Home Services Delivery Model,Customer and client receipts - Fees & Charges,02/10/2019,30245094,"-1,041.00",Revenue,MORLEY BUILDING SERVICES LTD,Grant Payment
Peterborough City Council,Adults,Home Services Delivery Model,Customer and client receipts - Fees & Charges,02/10/2019,30243826,-862.8,Revenue,MORLEY BUILDING SERVICES LTD,Grant Payment
Peterborough City Council,Adults,Home Services Delivery Model,Customer and client receipts - Fees & Charges,02/10/2019,30243671,-693.45,Revenue,MORLEY BUILDING SERVICES LTD,Grant Payment
Peterborough City Council,Adults,Home Services Delivery Model,Customer and client receipts - Fees & Charges,02/10/2019,30245103,-675,Revenue,Warics Ltd,Home Care
Peterborough City Council,Adults,Home Services Delivery Model,Customer and client receipts - Fees & Charges,02/10/2019,30243827,-589.35,Revenue,MORLEY BUILDING SERVICES LTD,Grant Payment
Peterborough City Council,Communities,Housing,Services,02/10/2019,30245621,"5,355.00",Revenue,Boroughbury Medical Centre,Financial Assistance
Peterborough City Council,HR,HR WFD & Training,Interview & Training Expenses,02/10/2019,30246238,900,Revenue,Daisy Bogg Consutlancy Ltd,Training
Peterborough City Council,HR,HR WFD & Training,Interview & Training Expenses,02/10/2019,30246239,900,Revenue,Daisy Bogg Consutlancy Ltd,Training
Peterborough City Council,HR,HR WFD & Training,Services,02/10/2019,30246377,900,Revenue,Breaking the Cycle Consultancy Ltd,Course Instructors Fees
Peterborough City Council,ICT,ICT,Services,02/10/2019,30246093,597.5,Revenue,Ideagen Gael Ltd,Consultants Fees
Peterborough City Council,ICT,ICT,Services,02/10/2019,30246422,"1,487.50",Revenue,Omnico Group UK Limited,Consultants Fees
Peterborough City Council,ICT,ICT,Services,02/10/2019,30246287,"26,125.50",Revenue,Civica UK Limited,Computer Software
Peterborough City Council,ICT,ICT,Services,02/10/2019,30246265,"45,780.00",Revenue,PITNEY BOWES SOFTWARE EUROPE LTD,Computer Software
Peterborough City Council,Adults,Independent Sector Placements,Services,02/10/2019,30245783,"-11,868.72",Revenue,Alysia Caring Ltd T/a Cherry Blossom care Home,Residential Care
Peterborough City Council,Adults,Independent Sector Placements,Services,02/10/2019,30246162,"-2,089.06",Revenue,Glenholme Healthcare Limited,Home Care
Peterborough City Council,Adults,Independent Sector Placements,Services,02/10/2019,30244543,"-1,510.26",Revenue,Goldcare Homes t/a The Tudors Care Home,Residential Care
Peterborough City Council,Adults,Independent Sector Placements,Services,02/10/2019,30246077,"-1,423.76",Revenue,LAVENDER HOUSE RESIDENTIAL HOME,Respite Care
Peterborough City Council,Adults,Independent Sector Placements,Services,02/10/2019,30245005,-660,Revenue,Pilgrim Havens,Residential Care
Peterborough City Council,Adults,Independent Sector Placements,Services,02/10/2019,30246076,-508.49,Revenue,LAVENDER HOUSE RESIDENTIAL HOME,Respite Care
Peterborough City Council,Adults,Independent Sector Placements,Services,02/10/2019,30244675,507.5,Revenue,RegionalCare,Home Care
Peterborough City Council,Adults,Independent Sector Placements,Services,02/10/2019,30244739,507.5,Revenue,RegionalCare,Home Care
Peterborough City Council,Adults,Independent Sector Placements,Services,02/10/2019,30245658,525.73,Revenue,Bluebird Care Peterborough,Home Care
Peterborough City Council,Adults,Independent Sector Placements,Services,02/10/2019,30244910,532,Revenue,Sahara Community Care Services Limited,Home Care
Peterborough City Council,Adults,Independent Sector Placements,Services,02/10/2019,30244909,535.5,Revenue,Sahara Community Care Services Limited,Home Care
Peterborough City Council,Adults,Independent Sector Placements,Services,02/10/2019,30244680,536.5,Revenue,RegionalCare,Home Care
Peterborough City Council,Adults,Independent Sector Placements,Services,02/10/2019,30244482,575.04,Revenue,Alysia Caring Ltd T/a Cherry Blossom care Home,Residential Care
Peterborough City Council,Adults,Independent Sector Placements,Services,02/10/2019,30244678,587.25,Revenue,RegionalCare,Home Care
Peterborough City Council,Adults,Independent Sector Placements,Services,02/10/2019,30244666,609,Revenue,RegionalCare,Home Care
Peterborough City Council,Adults,Independent Sector Placements,Services,02/10/2019,8000152235,610,Revenue,Caring Crew Ltd,Home Care
Peterborough City Council,Adults,Independent Sector Placements,Services,02/10/2019,8000152239,625.01,Revenue,MEARS GROUP,Home Care
Peterborough City Council,Adults,Independent Sector Placements,Services,02/10/2019,30244512,643.4,Revenue,Goldcare Homes t/a The Tudors Care Home,Residential Care
Peterborough City Council,Adults,Independent Sector Placements,Services,02/10/2019,30244728,645.25,Revenue,RegionalCare,Home Care
Peterborough City Council,Adults,Independent Sector Placements,Services,02/10/2019,30244894,646.42,Revenue,Sahara Community Care Services Limited,Home Care
Peterborough City Council,Adults,Independent Sector Placements,Services,02/10/2019,30244892,675.99,Revenue,Sahara Community Care Services Limited,Home Care
Peterborough City Council,Adults,Independent Sector Placements,Services,02/10/2019,8000152237,741.3,Revenue,MEARS GROUP,Home Care
Peterborough City Council,Adults,Independent Sector Placements,Services,02/10/2019,8000152240,774.03,Revenue,MEARS GROUP,Home Care
Peterborough City Council,Adults,Independent Sector Placements,Services,02/10/2019,8000152288,780,Revenue,Hales Group Ltd,Home Care
Peterborough City Council,Adults,Independent Sector Placements,Services,02/10/2019,30244898,799.29,Revenue,Sahara Community Care Services Limited,Respite Care
Peterborough City Council,Adults,Independent Sector Placements,Services,02/10/2019,30244486,802.4,Revenue,Alysia Caring Ltd T/a Cherry Blossom care Home,Residential Care
Peterborough City Council,Adults,Independent Sector Placements,Services,02/10/2019,30244672,826.5,Revenue,RegionalCare,Home Care
Peterborough City Council,Adults,Independent Sector Placements,Services,02/10/2019,30245017,856.52,Revenue,Pilgrim Havens,Residential Care
Peterborough City Council,Adults,Independent Sector Placements,Services,02/10/2019,30244887,872.62,Revenue,Sahara Community Care Services Limited,Home Care
Peterborough City Council,Adults,Independent Sector Placements,Services,02/10/2019,30244904,896,Revenue,Sahara Community Care Services Limited,Home Care
Peterborough City Council,Adults,Independent Sector Placements,Services,02/10/2019,30244522,917.24,Revenue,Goldcare Homes t/a The Tudors Care Home,Residential Care
Peterborough City Council,Adults,Independent Sector Placements,Services,02/10/2019,30244729,917.25,Revenue,RegionalCare,Home Care
Peterborough City Council,Adults,Independent Sector Placements,Services,02/10/2019,30244735,928,Revenue,RegionalCare,Home Care
Peterborough City Council,Adults,Independent Sector Placements,Services,02/10/2019,30244730,938.75,Revenue,RegionalCare,Home Care
Peterborough City Council,Adults,Independent Sector Placements,Services,02/10/2019,30244727,949.75,Revenue,RegionalCare,Home Care
Peterborough City Council,Adults,Independent Sector Placements,Services,02/10/2019,30244731,949.75,Revenue,RegionalCare,Home Care
Peterborough City Council,Adults,Independent Sector Placements,Services,02/10/2019,30244518,959.28,Revenue,Goldcare Homes t/a The Tudors Care Home,Residential Care
Peterborough City Council,Adults,Independent Sector Placements,Services,02/10/2019,30244897,963.88,Revenue,Sahara Community Care Services Limited,Home Care
Peterborough City Council,Adults,Independent Sector Placements,Services,02/10/2019,30244885,967.73,Revenue,Sahara Community Care Services Limited,Home Care
Peterborough City Council,Adults,Independent Sector Placements,Services,02/10/2019,30244521,"1,006.84",Revenue,Goldcare Homes t/a The Tudors Care Home,Residential Care
Peterborough City Council,Adults,Independent Sector Placements,Services,02/10/2019,30245003,"1,006.84",Revenue,Pilgrim Havens,Residential Care
Peterborough City Council,Adults,Independent Sector Placements,Services,02/10/2019,30245011,"1,006.84",Revenue,Pilgrim Havens,Residential Care
Peterborough City Council,Adults,Independent Sector Placements,Services,02/10/2019,30245016,"1,006.84",Revenue,Pilgrim Havens,Residential Care
Peterborough City Council,Adults,Independent Sector Placements,Services,02/10/2019,30244665,"1,015.00",Revenue,RegionalCare,Home Care
Peterborough City Council,Adults,Independent Sector Placements,Services,02/10/2019,30244669,"1,015.00",Revenue,RegionalCare,Home Care
Peterborough City Council,Adults,Independent Sector Placements,Services,02/10/2019,30244743,"1,015.00",Revenue,RegionalCare,Home Care
Peterborough City Council,Adults,Independent Sector Placements,Services,02/10/2019,30244531,"1,045.84",Revenue,Goldcare Homes t/a The Tudors Care Home,Residential Care
Peterborough City Council,Adults,Independent Sector Placements,Services,02/10/2019,30245619,"1,071.43",Revenue,LAVENDER HOUSE RESIDENTIAL HOME,Respite Care
Peterborough City Council,Adults,Independent Sector Placements,Services,02/10/2019,30244505,"1,116.32",Revenue,Alysia Caring Ltd T/a Cherry Blossom care Home,Residential Care
Peterborough City Council,Adults,Independent Sector Placements,Services,02/10/2019,30244884,"1,137.03",Revenue,Sahara Community Care Services Limited,Home Care
Peterborough City Council,Adults,Independent Sector Placements,Services,02/10/2019,30244913,"1,148.00",Revenue,Sahara Community Care Services Limited,Home Care
Peterborough City Council,Adults,Independent Sector Placements,Services,02/10/2019,30244507,"1,150.00",Revenue,Goldcare Homes t/a The Tudors Care Home,Respite Care
Peterborough City Council,Adults,Independent Sector Placements,Services,02/10/2019,30244515,"1,178.44",Revenue,Goldcare Homes t/a The Tudors Care Home,Residential Care
Peterborough City Council,Adults,Independent Sector Placements,Services,02/10/2019,30244889,"1,189.05",Revenue,Sahara Community Care Services Limited,Home Care
Peterborough City Council,Adults,Independent Sector Placements,Services,02/10/2019,30245008,"1,200.76",Revenue,Pilgrim Havens,Residential Care
Peterborough City Council,Adults,Independent Sector Placements,Services,02/10/2019,30244530,"1,252.48",Revenue,Goldcare Homes t/a The Tudors Care Home,Residential Care
Peterborough City Council,Adults,Independent Sector Placements,Services,02/10/2019,30244509,"1,288.48",Revenue,Goldcare Homes t/a The Tudors Care Home,Residential Care
Peterborough City Council,Adults,Independent Sector Placements,Services,02/10/2019,30244524,"1,312.64",Revenue,Goldcare Homes t/a The Tudors Care Home,Residential Care
Peterborough City Council,Adults,Independent Sector Placements,Services,02/10/2019,30244481,"1,317.08",Revenue,Alysia Caring Ltd T/a Cherry Blossom care Home,Residential Care
Peterborough City Council,Adults,Independent Sector Placements,Services,02/10/2019,30245728,"1,327.11",Revenue,Merit Home Care Ltd,Home Care
Peterborough City Council,Adults,Independent Sector Placements,Services,02/10/2019,30244525,"1,352.48",Revenue,Goldcare Homes t/a The Tudors Care Home,Residential Care
Peterborough City Council,Adults,Independent Sector Placements,Services,02/10/2019,30244523,"1,398.12",Revenue,Goldcare Homes t/a The Tudors Care Home,Residential Care
Peterborough City Council,Adults,Independent Sector Placements,Services,02/10/2019,30244516,"1,482.00",Revenue,Goldcare Homes t/a The Tudors Care Home,Residential Care
Peterborough City Council,Adults,Independent Sector Placements,Services,02/10/2019,30244520,"1,489.28",Revenue,Goldcare Homes t/a The Tudors Care Home,Residential Care
Peterborough City Council,Adults,Independent Sector Placements,Services,02/10/2019,30244535,"1,530.60",Revenue,Goldcare Homes t/a The Tudors Care Home,Residential Care
Peterborough City Council,Adults,Independent Sector Placements,Services,02/10/2019,30245013,"1,549.68",Revenue,Pilgrim Havens,Residential Care
Peterborough City Council,Adults,Independent Sector Placements,Services,02/10/2019,30244511,"1,551.88",Revenue,Goldcare Homes t/a The Tudors Care Home,Residential Care
Peterborough City Council,Adults,Independent Sector Placements,Services,02/10/2019,8000152289,"1,554.64",Revenue,Hales Group Ltd,Home Care
Peterborough City Council,Adults,Independent Sector Placements,Services,02/10/2019,30244517,"1,573.96",Revenue,Goldcare Homes t/a The Tudors Care Home,Residential Care
Peterborough City Council,Adults,Independent Sector Placements,Services,02/10/2019,30245014,"1,605.40",Revenue,Pilgrim Havens,Residential Care
Peterborough City Council,Adults,Independent Sector Placements,Services,02/10/2019,30245883,"1,609.55",Revenue,Sahara Community Care Services Limited,Home Care
Peterborough City Council,Adults,Independent Sector Placements,Services,02/10/2019,30244537,"1,630.60",Revenue,Goldcare Homes t/a The Tudors Care Home,Residential Care
Peterborough City Council,Adults,Independent Sector Placements,Services,02/10/2019,30244536,"1,656.68",Revenue,Goldcare Homes t/a The Tudors Care Home,Residential Care
Peterborough City Council,Adults,Independent Sector Placements,Services,02/10/2019,30244901,"1,682.99",Revenue,Sahara Community Care Services Limited,Home Care
Peterborough City Council,Adults,Independent Sector Placements,Services,02/10/2019,30244526,"1,684.32",Revenue,Goldcare Homes t/a The Tudors Care Home,Residential Care
Peterborough City Council,Adults,Independent Sector Placements,Services,02/10/2019,30244890,"1,713.60",Revenue,Sahara Community Care Services Limited,Home Care
Peterborough City Council,Adults,Independent Sector Placements,Services,02/10/2019,30244499,"1,714.80",Revenue,Alysia Caring Ltd T/a Cherry Blossom care Home,Residential Care
Peterborough City Council,Adults,Independent Sector Placements,Services,02/10/2019,30244519,"1,730.60",Revenue,Goldcare Homes t/a The Tudors Care Home,Residential Care
Peterborough City Council,Adults,Independent Sector Placements,Services,02/10/2019,30245608,"1,752.80",Revenue,Turning Point Services Ltd,Home Care
Peterborough City Council,Adults,Independent Sector Placements,Services,02/10/2019,30244513,"1,776.24",Revenue,Goldcare Homes t/a The Tudors Care Home,Residential Care
Peterborough City Council,Adults,Independent Sector Placements,Services,02/10/2019,30244504,"1,810.40",Revenue,Alysia Caring Ltd T/a Cherry Blossom care Home,Residential Care
Peterborough City Council,Adults,Independent Sector Placements,Services,02/10/2019,30244663,"1,827.00",Revenue,RegionalCare,Home Care
Peterborough City Council,Adults,Independent Sector Placements,Services,02/10/2019,30244667,"1,827.00",Revenue,RegionalCare,Home Care
Peterborough City Council,Adults,Independent Sector Placements,Services,02/10/2019,30244720,"1,827.00",Revenue,RegionalCare,Home Care
Peterborough City Council,Adults,Independent Sector Placements,Services,02/10/2019,30244725,"1,827.00",Revenue,RegionalCare,Home Care
Peterborough City Council,Adults,Independent Sector Placements,Services,02/10/2019,30244503,"1,830.60",Revenue,Alysia Caring Ltd T/a Cherry Blossom care Home,Residential Care
Peterborough City Council,Adults,Independent Sector Placements,Services,02/10/2019,30244502,"1,847.20",Revenue,Alysia Caring Ltd T/a Cherry Blossom care Home,Residential Care
Peterborough City Council,Adults,Independent Sector Placements,Services,02/10/2019,30244493,"1,865.92",Revenue,Alysia Caring Ltd T/a Cherry Blossom care Home,Residential Care
Peterborough City Council,Adults,Independent Sector Placements,Services,02/10/2019,30244510,"1,902.84",Revenue,Goldcare Homes t/a The Tudors Care Home,Residential Care
Peterborough City Council,Adults,Independent Sector Placements,Services,02/10/2019,8000152291,"1,936.88",Revenue,Hales Group Ltd,Home Care
Peterborough City Council,Adults,Independent Sector Placements,Services,02/10/2019,30245662,"2,085.63",Revenue,Deafblind Enablement Ltd,Home Care
Peterborough City Council,Adults,Independent Sector Placements,Services,02/10/2019,30244501,"2,087.40",Revenue,Alysia Caring Ltd T/a Cherry Blossom care Home,Residential Care
Peterborough City Council,Adults,Independent Sector Placements,Services,02/10/2019,30244500,"2,175.40",Revenue,Alysia Caring Ltd T/a Cherry Blossom care Home,Residential Care
Peterborough City Council,Adults,Independent Sector Placements,Services,02/10/2019,30244733,"2,233.00",Revenue,RegionalCare,Home Care
Peterborough City Council,Adults,Independent Sector Placements,Services,02/10/2019,30244661,"2,291.00",Revenue,RegionalCare,Home Care
Peterborough City Council,Adults,Independent Sector Placements,Services,02/10/2019,30245778,"2,296.84",Revenue,Alysia Caring Ltd T/a Cherry Blossom care Home,Residential Care
Peterborough City Council,Adults,Independent Sector Placements,Services,02/10/2019,30245787,"2,296.84",Revenue,Alysia Caring Ltd T/a Cherry Blossom care Home,Residential Care
Peterborough City Council,Adults,Independent Sector Placements,Services,02/10/2019,30244508,"2,300.00",Revenue,Goldcare Homes t/a The Tudors Care Home,Respite Care
Peterborough City Council,Adults,Independent Sector Placements,Services,02/10/2019,30244514,"2,300.00",Revenue,Goldcare Homes t/a The Tudors Care Home,Residential Care
Peterborough City Council,Adults,Independent Sector Placements,Services,02/10/2019,30244912,"2,352.00",Revenue,Sahara Community Care Services Limited,Home Care
Peterborough City Council,Adults,Independent Sector Placements,Services,02/10/2019,30244479,"2,366.36",Revenue,Alysia Caring Ltd T/a Cherry Blossom care Home,Residential Care
Peterborough City Council,Adults,Independent Sector Placements,Services,02/10/2019,30244487,"2,384.24",Revenue,Alysia Caring Ltd T/a Cherry Blossom care Home,Residential Care
Peterborough City Council,Adults,Independent Sector Placements,Services,02/10/2019,30245722,"2,438.60",Revenue,Sanctuary Care Limited,Residential Care
Peterborough City Council,Adults,Independent Sector Placements,Services,02/10/2019,8000152236,"2,440.51",Revenue,Caring Crew Ltd,Home Care
Peterborough City Council,Adults,Independent Sector Placements,Services,02/10/2019,30244902,"2,744.00",Revenue,Sahara Community Care Services Limited,Home Care
Peterborough City Council,Adults,Independent Sector Placements,Services,02/10/2019,30244497,"2,909.84",Revenue,Alysia Caring Ltd T/a Cherry Blossom care Home,Residential Care
Peterborough City Council,Adults,Independent Sector Placements,Services,02/10/2019,30245618,"3,000.00",Revenue,LAVENDER HOUSE RESIDENTIAL HOME,Respite Care
Peterborough City Council,Adults,Independent Sector Placements,Services,02/10/2019,30244475,"3,007.36",Revenue,Alysia Caring Ltd T/a Cherry Blossom care Home,Residential Care
Peterborough City Council,Adults,Independent Sector Placements,Services,02/10/2019,30245006,"3,080.00",Revenue,Pilgrim Havens,Residential Care
Peterborough City Council,Adults,Independent Sector Placements,Services,02/10/2019,30245779,"3,176.24",Revenue,Alysia Caring Ltd T/a Cherry Blossom care Home,Residential Care
Peterborough City Council,Adults,Independent Sector Placements,Services,02/10/2019,30245788,"3,176.24",Revenue,Alysia Caring Ltd T/a Cherry Blossom care Home,Residential Care
Peterborough City Council,Adults,Independent Sector Placements,Services,02/10/2019,30245610,"4,677.96",Revenue,Turning Point Services Ltd,Home Care
Peterborough City Council,Adults,Independent Sector Placements,Services,02/10/2019,30244477,"4,807.20",Revenue,Alysia Caring Ltd T/a Cherry Blossom care Home,Residential Care
Peterborough City Council,Adults,Independent Sector Placements,Services,02/10/2019,30246148,"4,820.91",Revenue,Glenholme Healthcare Limited,Home Care
Peterborough City Council,Adults,Independent Sector Placements,Services,02/10/2019,30205276,"5,000.00",Revenue,Maxey House Res Home,Residential Care
Peterborough City Council,Adults,Independent Sector Placements,Services,02/10/2019,30245605,"5,046.20",Revenue,Turning Point Services Ltd,Home Care
Peterborough City Council,Adults,Independent Sector Placements,Services,02/10/2019,30245603,"5,061.84",Revenue,Turning Point Services Ltd,Home Care
Peterborough City Council,Adults,Independent Sector Placements,Services,02/10/2019,30245611,"5,078.04",Revenue,Turning Point Services Ltd,Home Care
Peterborough City Council,Adults,Independent Sector Placements,Services,02/10/2019,30245609,"5,140.76",Revenue,Turning Point Services Ltd,Home Care
Peterborough City Council,Adults,Independent Sector Placements,Services,02/10/2019,30245606,"5,635.20",Revenue,Turning Point Services Ltd,Home Care
Peterborough City Council,Adults,Independent Sector Placements,Services,02/10/2019,30245660,"5,674.64",Revenue,Enham Trust,Residential Care
Peterborough City Council,Adults,Independent Sector Placements,Services,02/10/2019,30245612,"6,063.88",Revenue,Turning Point Services Ltd,Home Care
Peterborough City Council,Adults,Independent Sector Placements,Services,02/10/2019,30245607,"6,172.88",Revenue,Turning Point Services Ltd,Home Care
Peterborough City Council,Adults,Independent Sector Placements,Services,02/10/2019,30245602,"6,329.96",Revenue,Turning Point Services Ltd,Home Care
Peterborough City Council,Adults,Independent Sector Placements,Services,02/10/2019,30245617,"6,473.88",Revenue,Turning Point Services Ltd,Home Care
Peterborough City Council,Adults,Independent Sector Placements,Services,02/10/2019,30245601,"11,632.60",Revenue,Turning Point Services Ltd,Home Care
Peterborough City Council,Adults,Independent Sector Placements,Services,02/10/2019,30246150,"12,771.43",Revenue,Glenholme Healthcare Limited,Residential Care
Peterborough City Council,Adults,Independent Sector Placements,Services,02/10/2019,30245614,"16,651.60",Revenue,Turning Point Services Ltd,Home Care
Peterborough City Council,Legal Services,Legal Services,Services,02/10/2019,30246252,550,Revenue,Redacted Personal Data,Legal Costs
Peterborough City Council,Legal Services,Legal Services,Services,02/10/2019,30246256,624,Revenue,Redacted Personal Data,Legal Costs
Peterborough City Council,Legal Services,Legal Services,Services,02/10/2019,30246456,650,Revenue,Redacted Personal Data,Legal Costs
Peterborough City Council,Legal Services,Legal Services,Agency Staff,02/10/2019,30245701,722.11,Revenue,Venn Group Ltd,External Temporary Staff
Peterborough City Council,Legal Services,Legal Services,Services,02/10/2019,30242697,850,Revenue,Redacted Personal Data,Legal Costs
Peterborough City Council,Legal Services,Legal Services,Agency Staff,02/10/2019,30246205,"1,338.30",Revenue,Reed Specialist Recruitment Limited,External Temporary Staff
Peterborough City Council,Legal Services,Legal Services,Services,02/10/2019,30246254,"1,440.00",Revenue,Redacted Personal Data,Legal Costs
Peterborough City Council,Legal Services,Legal Services,Services,02/10/2019,30245686,"1,500.00",Revenue,Redacted Personal Data,Legal Costs
Peterborough City Council,Legal Services,Legal Services,Agency Staff,02/10/2019,30246196,"1,543.58",Revenue,Reed Specialist Recruitment Limited,External Temporary Staff
Peterborough City Council,Legal Services,Legal Services,Agency Staff,02/10/2019,30245711,"1,732.50",Revenue,Venn Group Ltd,External Temporary Staff
Peterborough City Council,Legal Services,Legal Services,Agency Staff,02/10/2019,30246210,"1,772.75",Revenue,Reed Specialist Recruitment Limited,External Temporary Staff
Peterborough City Council,Legal Services,Legal Services,Agency Staff,02/10/2019,30245698,"2,332.74",Revenue,Venn Group Ltd,External Temporary Staff
Peterborough City Council,City Centre Management,"Markets, Tourism & Events",Repair & Maintenance of Buildings,02/10/2019,30245841,647.8,Revenue,Ustigate Ltd,Maintenance
Peterborough City Council,City Centre Management,"Markets, Tourism & Events",Repair & Maintenance of Buildings,02/10/2019,30245968,658.57,Revenue,The K A Wing Group Ltd,Repairs
Peterborough City Council,City Centre Management,"Markets, Tourism & Events",Agency Staff,02/10/2019,30245681,"1,250.00",Revenue,Perfect Motion,External Temporary Staff
Peterborough City Council,City Centre Management,"Markets, Tourism & Events",Repair & Maintenance of Buildings,02/10/2019,30245968,"2,368.00",Revenue,The K A Wing Group Ltd,Repairs
Peterborough City Council,City Centre Management,"Markets, Tourism & Events",Services,02/10/2019,30245508,"2,828.60",Revenue,Reed Specialist Recruitment Limited,Consultants Fees
Peterborough City Council,Adults,Mental Capacity Act & DoLs,Agency Staff,02/10/2019,30245162,"1,520.00",Revenue,Sanctuary Personnel Ltd,External Temporary Staff
Peterborough City Council,Adults,Mental Capacity Act & DoLs,Agency Staff,02/10/2019,30245165,"2,280.00",Revenue,Sanctuary Personnel Ltd,External Temporary Staff
Peterborough City Council,Adults,Mental Health,Third Party Payments,02/10/2019,30245629,"103,447.50",Revenue,Cambs & P'boro NHS Foundation Trust,Third Party Payments - Contract
Peterborough City Council,Peterborough Highway Services,Network and Traffic Management,Services,02/10/2019,30245844,689.68,Revenue,JPIMedia Publishing Ltd,Advertising
Peterborough City Council,Corporate Property,Office Accomodation,Premises Insurances,02/10/2019,30246305,"1,478.47",Revenue,Beeson Wright Ltd,Insurance - Premises
Peterborough City Council,Adults,OP/PD/SI,"Tools, Equipment, Furniture & Materials",02/10/2019,30246469,"1,079.14",Revenue,NRS Healthcare,Occupational Therapy Equipment
Peterborough City Council,Peterborough Serco Strategic Partnership,PSSP Retained Services,Services,02/10/2019,30246381,"1,263.52",Revenue,Whistl UK Ltd,Postage
Peterborough City Council,Peterborough Serco Strategic Partnership,PSSP Retained Services,Public Transport,02/10/2019,30245645,"8,153.16",Revenue,Capita Travel & Events,Training
Peterborough City Council,Communities,Regulatory Services,"Printing, Stationery & General Office Expenses",02/10/2019,30245685,589.68,Revenue,Allied Publicity Services (Manchester) Limited,Stationery
Peterborough City Council,Communities,Regulatory Services,Services,02/10/2019,30246429,"1,084.08",Revenue,Public Analyst Scientific Services Ltd,Materials
Peterborough City Council,Communities,Service Director - Adults & Communities,Contract Hire and Operating Leases,02/10/2019,30246298,"6,387.04",Revenue,Northumbria Healthcare NHS Foundation Trust,Hired Transport
Peterborough City Council,Communities,Service Director - Adults & Communities,Third Party Payments,02/10/2019,30245697,"7,897.36",Revenue,KingsGate Community Church,Grant-Third Party
Peterborough City Council,Communities,Service Director - Adults & Communities,Third Party Payments,02/10/2019,30245695,"80,000.00",Revenue,KingsGate Community Church,Grant-Third Party
Peterborough City Council,Education,Special Educational Needs / Inclusion,Services,02/10/2019,30246259,"10,416.66",Revenue,Scope,Hired Services
Peterborough City Council,Adults,Strategic Commissioning - Management,Agency Staff,02/10/2019,30246224,528.91,Revenue,Reed Specialist Recruitment Limited,External Temporary Staff
Peterborough City Council,Adults,Strategic Commissioning - Management,Agency Staff,02/10/2019,30246217,669.2,Revenue,Reed Specialist Recruitment Limited,External Temporary Staff
Peterborough City Council,Adults,Strategic Commissioning - Management,Agency Staff,02/10/2019,30246222,669.2,Revenue,Reed Specialist Recruitment Limited,External Temporary Staff
Peterborough City Council,Adults,Strategic Commissioning - Management,Agency Staff,02/10/2019,30246226,669.2,Revenue,Reed Specialist Recruitment Limited,External Temporary Staff
Peterborough City Council,Adults,Strategic Commissioning - Management,Agency Staff,02/10/2019,30246261,669.2,Revenue,Reed Specialist Recruitment Limited,External Temporary Staff
Peterborough City Council,Communities,Targeted Youth Service,Third Party Payments,02/10/2019,30245700,722,Revenue,Cambridgeshire County Council,Contributions
Peterborough City Council,Communities,Targeted Youth Service,Services,02/10/2019,30246437,795,Revenue,Kingsgate Trading Ltd,Programmes
Peterborough City Council,Communities,Targeted Youth Service,Services,02/10/2019,30245659,"1,470.00",Revenue,Redacted Commercial Confidentiality,Financial Assistance
Peterborough City Council,Communities,Targeted Youth Service,Services,02/10/2019,30246184,"3,512.00",Revenue,Kingswood Learning & Leisure Grp Ltd,Programmes
Peterborough City Council,Adults,Therapy/Reablement/Community Equipment,"Tools, Equipment, Furniture & Materials",02/10/2019,30246432,650,Revenue,Connevans Ltd,Occupational Therapy Equipment
Peterborough City Council,"Waste, Cleansing and Open Spaces",Waste Management,Services,02/10/2019,30246267,"2,099.57",Revenue,Bourne Skip Hire and Recycling Limited,Recycling
Peterborough City Council,"Waste, Cleansing and Open Spaces",Waste Management,Services,02/10/2019,30245362,"3,612.08",Revenue,Invixon Limited,Recycling
Peterborough City Council,"Waste, Cleansing and Open Spaces",Waste Management,Services,02/10/2019,30245238,"14,137.62",Revenue,Biogen (UK) Ltd,Recycling
Peterborough City Council,Westcombe Engineering,Westcombe Engineering,Services,02/10/2019,30246024,569.28,Revenue,Parkside Steel (Stockholders) Ltd,Materials
Peterborough City Council,Westcombe Engineering,Westcombe Engineering,Services,02/10/2019,30244945,570.5,Revenue,Barron Clark Castings Ltd,Materials
Peterborough City Council,Westcombe Engineering,Westcombe Engineering,Services,02/10/2019,30246414,707.2,Revenue,Alucast Ltd,Materials
Peterborough City Council,Westcombe Engineering,Westcombe Engineering,Services,02/10/2019,30246433,833.2,Revenue,Peterborough Plating Ltd,Materials
Peterborough City Council,Westcombe Engineering,Westcombe Engineering,Services,02/10/2019,30245981,967.2,Revenue,AALCO,Materials
Peterborough City Council,Westcombe Engineering,Westcombe Engineering,Services,02/10/2019,30246006,"1,157.70",Revenue,AALCO,Materials
Peterborough City Council,Westcombe Engineering,Westcombe Engineering,Services,02/10/2019,30245996,"2,175.30",Revenue,AALCO,Materials
Peterborough City Council,Westcombe Engineering,Westcombe Engineering,Services,02/10/2019,30245988,"5,070.00",Revenue,AALCO,Materials
Peterborough City Council,Westcombe Engineering,Westcombe Engineering,Services,02/10/2019,30246421,"7,637.76",Revenue,BWC Aluminium Ltd,Materials
Peterborough City Council,Commissioning and Commercial Operations,Access to Resources & Specialist Commissioning,Services,04/10/2019,30242155,764.4,Revenue,Swiis Foster Care Ltd,Boarding Out Fees
Peterborough City Council,Commissioning and Commercial Operations,Access to Resources & Specialist Commissioning,Services,04/10/2019,30246053,780.01,Revenue,Swiis Foster Care Ltd,Boarding Out Fees
Peterborough City Council,Commissioning and Commercial Operations,Access to Resources & Specialist Commissioning,Services,04/10/2019,30245912,"2,631.30",Revenue,Alliance Foster Care,Boarding Out Fees
Peterborough City Council,Commissioning and Commercial Operations,Access to Resources & Specialist Commissioning,Services,04/10/2019,30245666,"2,719.01",Revenue,Alliance Foster Care,Boarding Out Fees
Peterborough City Council,Commissioning and Commercial Operations,Access to Resources & Specialist Commissioning,Services,04/10/2019,30245914,"2,719.01",Revenue,Alliance Foster Care,Boarding Out Fees
Peterborough City Council,Commissioning and Commercial Operations,Access to Resources & Specialist Commissioning,Services,04/10/2019,30245673,"2,750.00",Revenue,Florinee Homes Ltd,Boarding Out Fees
Peterborough City Council,Commissioning and Commercial Operations,Access to Resources & Specialist Commissioning,Services,04/10/2019,30246028,"2,750.00",Revenue,Florinee Homes Ltd,Boarding Out Fees
Peterborough City Council,Commissioning and Commercial Operations,Access to Resources & Specialist Commissioning,Services,04/10/2019,30246037,"2,750.00",Revenue,Florinee Homes Ltd,Boarding Out Fees
Peterborough City Council,Commissioning and Commercial Operations,Access to Resources & Specialist Commissioning,Services,04/10/2019,30245209,"3,210.71",Revenue,Pride Fostering,Boarding Out Fees
Peterborough City Council,Commissioning and Commercial Operations,Access to Resources & Specialist Commissioning,Services,04/10/2019,30245661,"3,255.00",Revenue,Alliance Foster Care,Boarding Out Fees
Peterborough City Council,Commissioning and Commercial Operations,Access to Resources & Specialist Commissioning,Services,04/10/2019,30245664,"3,317.00",Revenue,Alliance Foster Care,Boarding Out Fees
Peterborough City Council,Commissioning and Commercial Operations,Access to Resources & Specialist Commissioning,Services,04/10/2019,30245467,"3,540.00",Revenue,Compass Fostering East Limited,Boarding Out Fees
Peterborough City Council,Commissioning and Commercial Operations,Access to Resources & Specialist Commissioning,Services,04/10/2019,30245468,"3,557.10",Revenue,Compass Fostering East Limited,Boarding Out Fees
Peterborough City Council,Commissioning and Commercial Operations,Access to Resources & Specialist Commissioning,Services,04/10/2019,30244029,"4,384.33",Revenue,Dreamers Global Ltd,Boarding Out Fees
Peterborough City Council,Commissioning and Commercial Operations,Access to Resources & Specialist Commissioning,Services,04/10/2019,30245343,"5,485.76",Revenue,Regional Foster Families Ltd,Boarding Out Fees
Peterborough City Council,Commissioning and Commercial Operations,Access to Resources & Specialist Commissioning,Services,04/10/2019,30245652,"13,392.00",Revenue,Semi-Independent House,Boarding Out Fees
Peterborough City Council,Children's & Safeguarding,Children's Social Care,Services,04/10/2019,30246750,854.62,Revenue,Redacted Personal Data,Financial Assistance
Peterborough City Council,Children's & Safeguarding,Children's Social Care,Agency Staff,04/10/2019,30246510,"1,302.40",Revenue,HCL Social Care Ltd,External Temporary Staff
Peterborough City Council,Children's & Safeguarding,Children's Social Care,Agency Staff,04/10/2019,30246507,"6,242.80",Revenue,Liquid Personnel,External Temporary Staff
Peterborough City Council,Children's & Safeguarding,Children's Social Care,Agency Staff,04/10/2019,30246508,"7,827.42",Revenue,Liquid Personnel,External Temporary Staff
Peterborough City Council,Commissioning and Commercial Operations,Clare Lodge,Agency Staff,04/10/2019,30246182,614.9,Revenue,Reed Specialist Recruitment Limited,External Temporary Staff
Peterborough City Council,Commissioning and Commercial Operations,Clare Lodge,Agency Staff,04/10/2019,30246183,614.9,Revenue,Reed Specialist Recruitment Limited,External Temporary Staff
Peterborough City Council,Commissioning and Commercial Operations,Clare Lodge,Agency Staff,04/10/2019,30246191,614.9,Revenue,Reed Specialist Recruitment Limited,External Temporary Staff
Peterborough City Council,Commissioning and Commercial Operations,Clare Lodge,Agency Staff,04/10/2019,30246206,665.68,Revenue,Reed Specialist Recruitment Limited,External Temporary Staff
Peterborough City Council,Commissioning and Commercial Operations,Clare Lodge,"Tools, Equipment, Furniture & Materials",04/10/2019,30246781,"1,862.00",Revenue,Tough Furniture Ltd,Furniture And Equip Purchase
Peterborough City Council,Commissioning and Commercial Operations,Clare Lodge,Agency Staff,04/10/2019,30246067,"7,500.00",Revenue,Wrixon Care Services,External Temporary Staff
Peterborough City Council,Commissioning and Commercial Operations,Clare Lodge,Agency Staff,04/10/2019,30246069,"18,752.00",Revenue,Wrixon Care Services,External Temporary Staff
Peterborough City Council,Commissioning and Commercial Operations,Clare Lodge,Agency Staff,04/10/2019,30246064,"20,240.00",Revenue,Wrixon Care Services,External Temporary Staff
Peterborough City Council,Corporate Property,Commercial Propety,Agency Staff,04/10/2019,30246639,540.9,Revenue,Reed Specialist Recruitment Limited,External Temporary Staff
Peterborough City Council,Corporate Property,Commercial Propety,Agency Staff,04/10/2019,30246681,622.04,Revenue,Reed Specialist Recruitment Limited,External Temporary Staff
Peterborough City Council,Corporate Property,Commercial Propety,Agency Staff,04/10/2019,30246636,"1,812.02",Revenue,Reed Specialist Recruitment Limited,External Temporary Staff
Peterborough City Council,Corporate Property,Commercial Propety,Agency Staff,04/10/2019,30246637,"1,866.11",Revenue,Reed Specialist Recruitment Limited,External Temporary Staff
Peterborough City Council,Corporate Property,Commercial Propety,Agency Staff,04/10/2019,30246638,"1,974.29",Revenue,Reed Specialist Recruitment Limited,External Temporary Staff
Peterborough City Council,Corporate Property,Commercial Propety,Agency Staff,04/10/2019,30246635,"2,271.78",Revenue,Reed Specialist Recruitment Limited,External Temporary Staff
Peterborough City Council,Corporate Property,Commercial Propety,Repair & Maintenance of Buildings,04/10/2019,30246584,"4,020.68",Revenue,Lincolnshire Drainage Co Ltd,Drainage
Peterborough City Council,Corporate Property,Commercial Propety,Services,04/10/2019,30246311,"8,875.00",Revenue,Redacted Personal Data,Third Party Payments
Peterborough City Council,Commissioning and Commercial Operations,Commissioning,Services,04/10/2019,30246628,559.8,Revenue,CAPITA Translation and Interpreting,Interpretation Expenses
Peterborough City Council,Commissioning and Commercial Operations,Commissioning,Services,04/10/2019,30246622,756.2,Revenue,CAPITA Translation and Interpreting,Interpretation Expenses
Peterborough City Council,Commissioning and Commercial Operations,Commissioning,Services,04/10/2019,30246800,"3,500.00",Revenue,"Advanced Child Safeguarding Services Ltd, t/a Risk Solutions",Hired Services
Peterborough City Council,Communities,Community Capacity,Services,04/10/2019,30246660,657.9,Revenue,Businesswatch UK Fire & Security,Security
Peterborough City Council,Corporate,Corporate,Non Revenue,04/10/2019,30244053,760,Capital,Rawheat Heating & Plumbing Eng.,Building And Site Works
Peterborough City Council,Corporate,Corporate,Non Revenue,04/10/2019,30246232,"2,091.00",Capital,Allworks Home Improvements Ltd,Building And Site Works
Peterborough City Council,Corporate,Corporate,Non Revenue,04/10/2019,30246562,"5,659.83",Balance Sheet,Teachers Pensions,Pensions
Peterborough City Council,Corporate,Corporate,Non Revenue,04/10/2019,30246562,"8,099.25",Balance Sheet,Teachers Pensions,Pensions
Peterborough City Council,Corporate,Corporate,Non Revenue,04/10/2019,30246562,"8,777.62",Balance Sheet,Teachers Pensions,Pensions
Peterborough City Council,Corporate,Corporate,Non Revenue,04/10/2019,30246562,"8,829.03",Balance Sheet,Teachers Pensions,Pensions
Peterborough City Council,Corporate,Corporate,Non Revenue,04/10/2019,30246562,"8,869.37",Balance Sheet,Teachers Pensions,Pensions
Peterborough City Council,Corporate,Corporate,Non Revenue,04/10/2019,30246562,"9,126.65",Balance Sheet,Teachers Pensions,Pensions
Peterborough City Council,Corporate,Corporate,Non Revenue,04/10/2019,30246562,"9,214.40",Balance Sheet,Teachers Pensions,Pensions
Peterborough City Council,Corporate,Corporate,Non Revenue,04/10/2019,30246562,"9,857.58",Balance Sheet,Teachers Pensions,Pensions
Peterborough City Council,Corporate,Corporate,Non Revenue,04/10/2019,30246562,"10,424.47",Balance Sheet,Teachers Pensions,Pensions
Peterborough City Council,Corporate,Corporate,Non Revenue,04/10/2019,30246562,"10,463.37",Balance Sheet,Teachers Pensions,Pensions
Peterborough City Council,Corporate,Corporate,Non Revenue,04/10/2019,30246562,"12,083.40",Balance Sheet,Teachers Pensions,Pensions
Peterborough City Council,Corporate,Corporate,Non Revenue,04/10/2019,30246562,"15,956.62",Balance Sheet,Teachers Pensions,Pensions
Peterborough City Council,Corporate,Corporate,Non Revenue,04/10/2019,30246562,"17,190.89",Balance Sheet,Teachers Pensions,Pensions
Peterborough City Council,Corporate,Corporate,Non Revenue,04/10/2019,30246562,"19,395.86",Balance Sheet,Teachers Pensions,Pensions
Peterborough City Council,Corporate,Corporate,Non Revenue,04/10/2019,30246562,"22,089.38",Balance Sheet,Teachers Pensions,Pensions
Peterborough City Council,Corporate,Corporate,Non Revenue,04/10/2019,30246562,"23,806.71",Balance Sheet,Teachers Pensions,Pensions
Peterborough City Council,Corporate,Corporate,Non Revenue,04/10/2019,30246700,"25,000.00",Capital,Garfield Builders Ltd,Building And Site Works
Peterborough City Council,Corporate,Corporate,Non Revenue,04/10/2019,30246562,"25,159.05",Balance Sheet,Teachers Pensions,Pensions
Peterborough City Council,Corporate,Corporate,Non Revenue,04/10/2019,30246562,"25,891.34",Balance Sheet,Teachers Pensions,Pensions
Peterborough City Council,Corporate,Corporate,Non Revenue,04/10/2019,30246562,"26,283.27",Balance Sheet,Teachers Pensions,Pensions
Peterborough City Council,Corporate,Corporate,Non Revenue,04/10/2019,30246562,"28,742.46",Balance Sheet,Teachers Pensions,Pensions
Peterborough City Council,Corporate,Corporate,Non Revenue,04/10/2019,30246562,"30,053.00",Balance Sheet,Teachers Pensions,Pensions
Peterborough City Council,Corporate,Corporate,Non Revenue,04/10/2019,30246562,"33,458.04",Balance Sheet,Teachers Pensions,Pensions
Peterborough City Council,Corporate,Corporate,Non Revenue,04/10/2019,30246562,"47,634.56",Balance Sheet,Teachers Pensions,Pensions
Peterborough City Council,Corporate,Corporate,Non Revenue,04/10/2019,30246562,"68,773.39",Balance Sheet,Teachers Pensions,Pensions
Peterborough City Council,Corporate,Corporate,Non Revenue,04/10/2019,30246744,"90,255.14",Capital,Kier Construction Ltd,Building And Site Works
Peterborough City Council,Corporate,Corporate,Non Revenue,04/10/2019,30246562,"160,662.29",Balance Sheet,Teachers Pensions,Pensions
Peterborough City Council,Communities,Cultural Services,Services,04/10/2019,30246616,598.33,Revenue,Peterborough Centre for Young Musicians,Hired Services
Peterborough City Council,Communities,Cultural Services,Services,04/10/2019,30246620,668.37,Revenue,Peterborough Centre for Young Musicians,Hired Services
Peterborough City Council,Adults,Day opportunities - Older People,Catering,04/10/2019,30246797,777,Revenue,The Cresset (Peterborough) Ltd,Catering Provisions
Peterborough City Council,Education,Early Years & Quality Improvement,Interview & Training Expenses,04/10/2019,30246511,800,Revenue,SwimBag Ltd,Training
Peterborough City Council,Peterborough Highway Services,Highway & Drainage Control,Agency Staff,04/10/2019,30246784,801.6,Revenue,Reed Specialist Recruitment Limited,External Temporary Staff
Peterborough City Council,Peterborough Highway Services,Highway & Drainage Control,Agency Staff,04/10/2019,30246783,"1,402.80",Revenue,Reed Specialist Recruitment Limited,External Temporary Staff
Peterborough City Council,Adults,Home Services Delivery Model,Third Party Payments,04/10/2019,30246296,"5,017.14",Revenue,Peterborough Womens Aid,Grant-Third Party
Peterborough City Council,Communities,Housing,Services,04/10/2019,30246558,"2,275.00",Revenue,Singh and Sons Property Management Ltd,Temporary Accommodation Costs
Peterborough City Council,Communities,Housing,Services,04/10/2019,30246557,"2,975.00",Revenue,Singh and Sons Property Management Ltd,Temporary Accommodation Costs
Peterborough City Council,Communities,Housing,Services,04/10/2019,30246559,"2,980.00",Revenue,Singh and Sons Property Management Ltd,Temporary Accommodation Costs
Peterborough City Council,Communities,Housing,Services,04/10/2019,30246560,"3,150.00",Revenue,Singh and Sons Property Management Ltd,Temporary Accommodation Costs
Peterborough City Council,Education,HTS & CSC Transport,Contract Hire and Operating Leases,04/10/2019,8000152330,691.89,Revenue,Redacted Personal Data,Hired Transport
Peterborough City Council,Education,HTS & CSC Transport,Contract Hire and Operating Leases,04/10/2019,8000152338,"1,067.44",Revenue,Redacted Personal Data,Hired Transport
Peterborough City Council,Education,HTS & CSC Transport,Contract Hire and Operating Leases,04/10/2019,8000152328,"1,108.53",Revenue,Redacted Personal Data,Hired Transport
Peterborough City Council,Education,HTS & CSC Transport,Contract Hire and Operating Leases,04/10/2019,8000152329,"1,209.91",Revenue,Redacted Personal Data,Hired Transport
Peterborough City Council,Education,HTS & CSC Transport,Contract Hire and Operating Leases,04/10/2019,8000152331,"1,539.00",Revenue,Redacted Personal Data,Hired Transport
Peterborough City Council,Education,HTS & CSC Transport,Contract Hire and Operating Leases,04/10/2019,8000152332,"1,607.64",Revenue,Redacted Personal Data,Hired Transport
Peterborough City Council,ICT,ICT,Agency Staff,04/10/2019,30245504,"1,814.88",Revenue,Reed Specialist Recruitment Limited,External Temporary Staff
Peterborough City Council,Adults,Independent Sector Placements,Services,04/10/2019,8000151362,500.53,Revenue,MEARS GROUP,Home Care
Peterborough City Council,Adults,Independent Sector Placements,Services,04/10/2019,30246153,503.9,Revenue,Anchor Homes,Residential Care
Peterborough City Council,Adults,Independent Sector Placements,Services,04/10/2019,8000151140,520,Revenue,MEARS GROUP,Home Care
Peterborough City Council,Adults,Independent Sector Placements,Services,04/10/2019,8000151141,520.19,Revenue,MEARS GROUP,Home Care
Peterborough City Council,Adults,Independent Sector Placements,Services,04/10/2019,8000151187,530.86,Revenue,MEARS GROUP,Home Care
Peterborough City Council,Adults,Independent Sector Placements,Services,04/10/2019,30244410,531.8,Revenue,K2 CARE LTD,Home Care
Peterborough City Council,Adults,Independent Sector Placements,Services,04/10/2019,30245434,536,Revenue,RBL Field House Care LTD,Residential Care
Peterborough City Council,Adults,Independent Sector Placements,Services,04/10/2019,8000151143,536.4,Revenue,MEARS GROUP,Home Care
Peterborough City Council,Adults,Independent Sector Placements,Services,04/10/2019,8000151131,537.21,Revenue,MEARS GROUP,Home Care
Peterborough City Council,Adults,Independent Sector Placements,Services,04/10/2019,8000151171,539.74,Revenue,MEARS GROUP,Home Care
Peterborough City Council,Adults,Independent Sector Placements,Services,04/10/2019,30244490,562.4,Revenue,Mencap,Home Care
Peterborough City Council,Adults,Independent Sector Placements,Services,04/10/2019,30244476,568,Revenue,Mencap,Home Care
Peterborough City Council,Adults,Independent Sector Placements,Services,04/10/2019,30244488,568,Revenue,Mencap,Home Care
Peterborough City Council,Adults,Independent Sector Placements,Services,04/10/2019,30244496,568,Revenue,Mencap,Home Care
Peterborough City Council,Adults,Independent Sector Placements,Services,04/10/2019,8000151226,575.83,Revenue,MEARS GROUP,Home Care
Peterborough City Council,Adults,Independent Sector Placements,Services,04/10/2019,8000151202,577.52,Revenue,MEARS GROUP,Home Care
Peterborough City Council,Adults,Independent Sector Placements,Services,04/10/2019,8000151154,602.66,Revenue,MEARS GROUP,Home Care
Peterborough City Council,Adults,Independent Sector Placements,Services,04/10/2019,8000151137,615.52,Revenue,MEARS GROUP,Home Care
Peterborough City Council,Adults,Independent Sector Placements,Services,04/10/2019,8000151182,624.7,Revenue,MEARS GROUP,Home Care
Peterborough City Council,Adults,Independent Sector Placements,Services,04/10/2019,8000151221,626.95,Revenue,MEARS GROUP,Home Care
Peterborough City Council,Adults,Independent Sector Placements,Services,04/10/2019,8000151177,627.3,Revenue,MEARS GROUP,Home Care
Peterborough City Council,Adults,Independent Sector Placements,Services,04/10/2019,30244385,639.63,Revenue,K2 CARE LTD,Home Care
Peterborough City Council,Adults,Independent Sector Placements,Services,04/10/2019,8000151225,640.61,Revenue,MEARS GROUP,Home Care
Peterborough City Council,Adults,Independent Sector Placements,Services,04/10/2019,8000151189,643.96,Revenue,MEARS GROUP,Home Care
Peterborough City Council,Adults,Independent Sector Placements,Services,04/10/2019,8000151354,644.38,Revenue,MEARS GROUP,Home Care
Peterborough City Council,Adults,Independent Sector Placements,Services,04/10/2019,8000151214,645.97,Revenue,MEARS GROUP,Home Care
Peterborough City Council,Adults,Independent Sector Placements,Services,04/10/2019,8000151167,649.97,Revenue,MEARS GROUP,Home Care
Peterborough City Council,Adults,Independent Sector Placements,Services,04/10/2019,8000151175,654.35,Revenue,MEARS GROUP,Home Care
Peterborough City Council,Adults,Independent Sector Placements,Services,04/10/2019,30244473,681.6,Revenue,Mencap,Home Care
Peterborough City Council,Adults,Independent Sector Placements,Services,04/10/2019,8000151358,692.55,Revenue,MEARS GROUP,Home Care
Peterborough City Council,Adults,Independent Sector Placements,Services,04/10/2019,8000151203,695.06,Revenue,MEARS GROUP,Home Care
Peterborough City Council,Adults,Independent Sector Placements,Services,04/10/2019,8000151138,700.59,Revenue,MEARS GROUP,Home Care
Peterborough City Council,Adults,Independent Sector Placements,Services,04/10/2019,30244387,725.87,Revenue,K2 CARE LTD,Home Care
Peterborough City Council,Adults,Independent Sector Placements,Services,04/10/2019,8000151163,726.13,Revenue,MEARS GROUP,Home Care
Peterborough City Council,Adults,Independent Sector Placements,Services,04/10/2019,30244383,740.84,Revenue,K2 CARE LTD,Respite Care
Peterborough City Council,Adults,Independent Sector Placements,Services,04/10/2019,8000151155,751.37,Revenue,MEARS GROUP,Home Care
Peterborough City Council,Adults,Independent Sector Placements,Services,04/10/2019,8000151361,754.72,Revenue,MEARS GROUP,Home Care
Peterborough City Council,Adults,Independent Sector Placements,Services,04/10/2019,8000151179,756.54,Revenue,MEARS GROUP,Home Care
Peterborough City Council,Adults,Independent Sector Placements,Services,04/10/2019,8000151215,760.41,Revenue,MEARS GROUP,Home Care
Peterborough City Council,Adults,Independent Sector Placements,Services,04/10/2019,8000151188,781.63,Revenue,MEARS GROUP,Home Care
Peterborough City Council,Adults,Independent Sector Placements,Services,04/10/2019,30245369,811,Revenue,Richmond Fellowship (The),Residential Care
Peterborough City Council,Adults,Independent Sector Placements,Services,04/10/2019,30245370,823,Revenue,Richmond Fellowship (The),Residential Care
Peterborough City Council,Adults,Independent Sector Placements,Services,04/10/2019,30245373,823,Revenue,Richmond Fellowship (The),Residential Care
Peterborough City Council,Adults,Independent Sector Placements,Services,04/10/2019,8000151371,832.49,Revenue,MEARS GROUP,Home Care
Peterborough City Council,Adults,Independent Sector Placements,Services,04/10/2019,30244368,836.03,Revenue,K2 CARE LTD,Home Care
Peterborough City Council,Adults,Independent Sector Placements,Services,04/10/2019,8000151219,840.44,Revenue,MEARS GROUP,Home Care
Peterborough City Council,Adults,Independent Sector Placements,Services,04/10/2019,8000151157,848.49,Revenue,MEARS GROUP,Home Care
Peterborough City Council,Adults,Independent Sector Placements,Services,04/10/2019,30244472,852,Revenue,Mencap,Home Care
Peterborough City Council,Adults,Independent Sector Placements,Services,04/10/2019,30244489,852,Revenue,Mencap,Home Care
Peterborough City Council,Adults,Independent Sector Placements,Services,04/10/2019,8000151168,856.04,Revenue,MEARS GROUP,Home Care
Peterborough City Council,Adults,Independent Sector Placements,Services,04/10/2019,30244373,857.29,Revenue,K2 CARE LTD,Home Care
Peterborough City Council,Adults,Independent Sector Placements,Services,04/10/2019,8000151196,869.6,Revenue,MEARS GROUP,Home Care
Peterborough City Council,Adults,Independent Sector Placements,Services,04/10/2019,8000151174,872.55,Revenue,MEARS GROUP,Home Care
Peterborough City Council,Adults,Independent Sector Placements,Services,04/10/2019,8000151176,875,Revenue,MEARS GROUP,Home Care
Peterborough City Council,Adults,Independent Sector Placements,Services,04/10/2019,8000151366,897.24,Revenue,MEARS GROUP,Home Care
Peterborough City Council,Adults,Independent Sector Placements,Services,04/10/2019,30245511,900,Revenue,SOCIAL CARE SOLUTIONS LTD,Home Care
Peterborough City Council,Adults,Independent Sector Placements,Services,04/10/2019,30245416,910.28,Revenue,Avery House (Peterborough) t/a Brighterkind,Residential Care
Peterborough City Council,Adults,Independent Sector Placements,Services,04/10/2019,30243126,910.94,Revenue,Avery House (Peterborough) t/a Brighterkind,Respite Care
Peterborough City Council,Adults,Independent Sector Placements,Services,04/10/2019,8000151181,915.92,Revenue,MEARS GROUP,Home Care
Peterborough City Council,Adults,Independent Sector Placements,Services,04/10/2019,30245433,940.12,Revenue,RBL Field House Care LTD,Residential Care
Peterborough City Council,Adults,Independent Sector Placements,Services,04/10/2019,30244409,963.99,Revenue,K2 CARE LTD,Home Care
Peterborough City Council,Adults,Independent Sector Placements,Services,04/10/2019,8000151142,971.39,Revenue,MEARS GROUP,Home Care
Peterborough City Council,Adults,Independent Sector Placements,Services,04/10/2019,30244407,973,Revenue,K2 CARE LTD,Home Care
Peterborough City Council,Adults,Independent Sector Placements,Services,04/10/2019,30245044,975,Revenue,Avery House (Peterborough) t/a Brighterkind,Residential Care
Peterborough City Council,Adults,Independent Sector Placements,Services,04/10/2019,30244406,988.49,Revenue,K2 CARE LTD,Home Care
Peterborough City Council,Adults,Independent Sector Placements,Services,04/10/2019,30245056,"1,044.16",Revenue,Avery House (Peterborough) t/a Brighterkind,Residential Care
Peterborough City Council,Adults,Independent Sector Placements,Services,04/10/2019,30245422,"1,055.92",Revenue,Avery House (Peterborough) t/a Brighterkind,Residential Care
Peterborough City Council,Adults,Independent Sector Placements,Services,04/10/2019,30245446,"1,075.36",Revenue,RBL Field House Care LTD,Residential Care
Peterborough City Council,Adults,Independent Sector Placements,Services,04/10/2019,30244369,"1,091.22",Revenue,K2 CARE LTD,Home Care
Peterborough City Council,Adults,Independent Sector Placements,Services,04/10/2019,30245437,"1,096.44",Revenue,RBL Field House Care LTD,Residential Care
Peterborough City Council,Adults,Independent Sector Placements,Services,04/10/2019,30244492,"1,107.60",Revenue,Mencap,Home Care
Peterborough City Council,Adults,Independent Sector Placements,Services,04/10/2019,8000152242,"1,155.70",Revenue,MEARS GROUP,Home Care
Peterborough City Council,Adults,Independent Sector Placements,Services,04/10/2019,30245430,"1,156.72",Revenue,RBL Field House Care LTD,Residential Care
Peterborough City Council,Adults,Independent Sector Placements,Services,04/10/2019,30244371,"1,179.06",Revenue,K2 CARE LTD,Home Care
Peterborough City Council,Adults,Independent Sector Placements,Services,04/10/2019,30245432,"1,252.48",Revenue,RBL Field House Care LTD,Residential Care
Peterborough City Council,Adults,Independent Sector Placements,Services,04/10/2019,30244390,"1,263.05",Revenue,K2 CARE LTD,Home Care
Peterborough City Council,Adults,Independent Sector Placements,Services,04/10/2019,30245058,"1,268.96",Revenue,Avery House (Peterborough) t/a Brighterkind,Residential Care
Peterborough City Council,Adults,Independent Sector Placements,Services,04/10/2019,30244381,"1,276.58",Revenue,K2 CARE LTD,Home Care
Peterborough City Council,Adults,Independent Sector Placements,Services,04/10/2019,30244392,"1,300.58",Revenue,K2 CARE LTD,Home Care
Peterborough City Council,Adults,Independent Sector Placements,Services,04/10/2019,30243528,"1,321.29",Revenue,Avery House (Peterborough) t/a Brighterkind,Respite Care
Peterborough City Council,Adults,Independent Sector Placements,Services,04/10/2019,30245439,"1,336.72",Revenue,RBL Field House Care LTD,Residential Care
Peterborough City Council,Adults,Independent Sector Placements,Services,04/10/2019,30245413,"1,363.56",Revenue,Avery House (Peterborough) t/a Brighterkind,Residential Care
Peterborough City Council,Adults,Independent Sector Placements,Services,04/10/2019,30245438,"1,381.28",Revenue,RBL Field House Care LTD,Residential Care
Peterborough City Council,Adults,Independent Sector Placements,Services,04/10/2019,8000151180,"1,392.72",Revenue,MEARS GROUP,Home Care
Peterborough City Council,Adults,Independent Sector Placements,Services,04/10/2019,30245417,"1,397.68",Revenue,Avery House (Peterborough) t/a Brighterkind,Residential Care
Peterborough City Council,Adults,Independent Sector Placements,Services,04/10/2019,30245047,"1,399.01",Revenue,Avery House (Peterborough) t/a Brighterkind,Respite Care
Peterborough City Council,Adults,Independent Sector Placements,Services,04/10/2019,30245411,"1,426.56",Revenue,Avery House (Peterborough) t/a Brighterkind,Residential Care
Peterborough City Council,Adults,Independent Sector Placements,Services,04/10/2019,30245418,"1,449.00",Revenue,Avery House (Peterborough) t/a Brighterkind,Residential Care
Peterborough City Council,Adults,Independent Sector Placements,Services,04/10/2019,30245046,"1,452.86",Revenue,Avery House (Peterborough) t/a Brighterkind,Respite Care
Peterborough City Council,Adults,Independent Sector Placements,Services,04/10/2019,30245059,"1,466.40",Revenue,Avery House (Peterborough) t/a Brighterkind,Residential Care
Peterborough City Council,Adults,Independent Sector Placements,Services,04/10/2019,30244495,"1,476.80",Revenue,Mencap,Home Care
Peterborough City Council,Adults,Independent Sector Placements,Services,04/10/2019,8000151364,"1,502.08",Revenue,MEARS GROUP,Home Care
Peterborough City Council,Adults,Independent Sector Placements,Services,04/10/2019,30244412,"1,568.00",Revenue,K2 CARE LTD,Home Care
Peterborough City Council,Adults,Independent Sector Placements,Services,04/10/2019,30245447,"1,574.60",Revenue,RBL Field House Care LTD,Residential Care
Peterborough City Council,Adults,Independent Sector Placements,Services,04/10/2019,30245441,"1,579.60",Revenue,RBL Field House Care LTD,Residential Care
Peterborough City Council,Adults,Independent Sector Placements,Services,04/10/2019,30245049,"1,606.84",Revenue,Avery House (Peterborough) t/a Brighterkind,Residential Care
Peterborough City Council,Adults,Independent Sector Placements,Services,04/10/2019,30245050,"1,628.76",Revenue,Avery House (Peterborough) t/a Brighterkind,Residential Care
Peterborough City Council,Adults,Independent Sector Placements,Services,04/10/2019,30245425,"1,644.16",Revenue,RBL Field House Care LTD,Residential Care
Peterborough City Council,Adults,Independent Sector Placements,Services,04/10/2019,30244470,"1,647.20",Revenue,Mencap,Home Care
Peterborough City Council,Adults,Independent Sector Placements,Services,04/10/2019,30245436,"1,670.60",Revenue,RBL Field House Care LTD,Residential Care
Peterborough City Council,Adults,Independent Sector Placements,Services,04/10/2019,30245429,"1,688.20",Revenue,RBL Field House Care LTD,Residential Care
Peterborough City Council,Adults,Independent Sector Placements,Services,04/10/2019,30245445,"1,702.96",Revenue,RBL Field House Care LTD,Residential Care
Peterborough City Council,Adults,Independent Sector Placements,Services,04/10/2019,8000151186,"1,717.96",Revenue,MEARS GROUP,Home Care
Peterborough City Council,Adults,Independent Sector Placements,Services,04/10/2019,30245442,"1,730.60",Revenue,RBL Field House Care LTD,Residential Care
Peterborough City Council,Adults,Independent Sector Placements,Services,04/10/2019,30245435,"1,734.96",Revenue,RBL Field House Care LTD,Residential Care
Peterborough City Council,Adults,Independent Sector Placements,Services,04/10/2019,8000151356,"1,749.06",Revenue,MEARS GROUP,Home Care
Peterborough City Council,Adults,Independent Sector Placements,Services,04/10/2019,30245440,"1,756.44",Revenue,RBL Field House Care LTD,Residential Care
Peterborough City Council,Adults,Independent Sector Placements,Services,04/10/2019,30245415,"1,776.00",Revenue,Avery House (Peterborough) t/a Brighterkind,Residential Care
Peterborough City Council,Adults,Independent Sector Placements,Services,04/10/2019,30245431,"1,830.60",Revenue,RBL Field House Care LTD,Residential Care
Peterborough City Council,Adults,Independent Sector Placements,Services,04/10/2019,30245444,"1,830.60",Revenue,RBL Field House Care LTD,Residential Care
Peterborough City Council,Adults,Independent Sector Placements,Services,04/10/2019,30245054,"1,852.48",Revenue,Avery House (Peterborough) t/a Brighterkind,Residential Care
Peterborough City Council,Adults,Independent Sector Placements,Services,04/10/2019,30245419,"1,852.48",Revenue,Avery House (Peterborough) t/a Brighterkind,Residential Care
Peterborough City Council,Adults,Independent Sector Placements,Services,04/10/2019,30245048,"1,856.43",Revenue,Avery House (Peterborough) t/a Brighterkind,Respite Care
Peterborough City Council,Adults,Independent Sector Placements,Services,04/10/2019,8000151128,"1,912.90",Revenue,MEARS GROUP,Home Care
Peterborough City Council,Adults,Independent Sector Placements,Services,04/10/2019,30245052,"1,915.64",Revenue,Avery House (Peterborough) t/a Brighterkind,Residential Care
Peterborough City Council,Adults,Independent Sector Placements,Services,04/10/2019,30245053,"1,915.64",Revenue,Avery House (Peterborough) t/a Brighterkind,Residential Care
Peterborough City Council,Adults,Independent Sector Placements,Services,04/10/2019,8000151153,"1,921.79",Revenue,MEARS GROUP,Home Care
Peterborough City Council,Adults,Independent Sector Placements,Services,04/10/2019,30245506,"1,932.00",Revenue,SOCIAL CARE SOLUTIONS LTD,Home Care
Peterborough City Council,Adults,Independent Sector Placements,Services,04/10/2019,30244480,"1,940.68",Revenue,Mencap,Home Care
Peterborough City Council,Adults,Independent Sector Placements,Services,04/10/2019,30245057,"2,000.00",Revenue,Avery House (Peterborough) t/a Brighterkind,Residential Care
Peterborough City Council,Adults,Independent Sector Placements,Services,04/10/2019,30245807,"2,001.60",Revenue,EXCELCARE GLENNFIELD HOUSE,Residential Care
Peterborough City Council,Adults,Independent Sector Placements,Services,04/10/2019,30245041,"2,098.52",Revenue,Avery House (Peterborough) t/a Brighterkind,Respite Care
Peterborough City Council,Adults,Independent Sector Placements,Services,04/10/2019,8000151178,"2,160.67",Revenue,MEARS GROUP,Home Care
Peterborough City Council,Adults,Independent Sector Placements,Services,04/10/2019,30245410,"2,176.24",Revenue,Avery House (Peterborough) t/a Brighterkind,Respite Care
Peterborough City Council,Adults,Independent Sector Placements,Services,04/10/2019,30245414,"2,179.24",Revenue,Avery House (Peterborough) t/a Brighterkind,Residential Care
Peterborough City Council,Adults,Independent Sector Placements,Services,04/10/2019,30245051,"2,179.29",Revenue,Avery House (Peterborough) t/a Brighterkind,Respite Care
Peterborough City Council,Adults,Independent Sector Placements,Services,04/10/2019,30244469,"2,204.80",Revenue,Mencap,Home Care
Peterborough City Council,Adults,Independent Sector Placements,Services,04/10/2019,30245412,"2,210.60",Revenue,Avery House (Peterborough) t/a Brighterkind,Residential Care
Peterborough City Council,Adults,Independent Sector Placements,Services,04/10/2019,30244485,"2,215.20",Revenue,Mencap,Home Care
Peterborough City Council,Adults,Independent Sector Placements,Services,04/10/2019,30245055,"2,260.00",Revenue,Avery House (Peterborough) t/a Brighterkind,Residential Care
Peterborough City Council,Adults,Independent Sector Placements,Services,04/10/2019,30245443,"2,400.00",Revenue,RBL Field House Care LTD,Residential Care
Peterborough City Council,Adults,Independent Sector Placements,Services,04/10/2019,30246156,"2,420.00",Revenue,Excelcare Aliwal Manor,Residential Care
Peterborough City Council,Adults,Independent Sector Placements,Services,04/10/2019,30246149,"2,437.00",Revenue,Benell Care Services Ltd,Residential Care
Peterborough City Council,Adults,Independent Sector Placements,Services,04/10/2019,8000151195,"2,438.29",Revenue,MEARS GROUP,Home Care
Peterborough City Council,Adults,Independent Sector Placements,Services,04/10/2019,8000151136,"2,534.21",Revenue,MEARS GROUP,Home Care
Peterborough City Council,Adults,Independent Sector Placements,Services,04/10/2019,30245815,"2,540.00",Revenue,EXCELCARE GLENNFIELD HOUSE,Residential Care
Peterborough City Council,Adults,Independent Sector Placements,Services,04/10/2019,30246152,"2,640.00",Revenue,Anchor Trust,Residential Care
Peterborough City Council,Adults,Independent Sector Placements,Services,04/10/2019,30245809,"3,200.00",Revenue,EXCELCARE GLENNFIELD HOUSE,Residential Care
Peterborough City Council,Adults,Independent Sector Placements,Services,04/10/2019,30246084,"3,210.64",Revenue,SOCIAL CARE SOLUTIONS LTD,Home Care
Peterborough City Council,Adults,Independent Sector Placements,Services,04/10/2019,30245514,"3,290.12",Revenue,SOCIAL CARE SOLUTIONS LTD,Home Care
Peterborough City Council,Adults,Independent Sector Placements,Services,04/10/2019,30245812,"3,400.00",Revenue,EXCELCARE GLENNFIELD HOUSE,Residential Care
Peterborough City Council,Adults,Independent Sector Placements,Services,04/10/2019,30245811,"3,600.00",Revenue,EXCELCARE GLENNFIELD HOUSE,Residential Care
Peterborough City Council,Adults,Independent Sector Placements,Services,04/10/2019,30245805,"3,720.00",Revenue,EXCELCARE GLENNFIELD HOUSE,Residential Care
Peterborough City Council,Adults,Independent Sector Placements,Services,04/10/2019,30244375,"3,728.27",Revenue,K2 CARE LTD,Home Care
Peterborough City Council,Adults,Independent Sector Placements,Services,04/10/2019,30245513,"3,740.12",Revenue,SOCIAL CARE SOLUTIONS LTD,Home Care
Peterborough City Council,Adults,Independent Sector Placements,Services,04/10/2019,30244404,"3,843.66",Revenue,K2 CARE LTD,Home Care
Peterborough City Council,Adults,Independent Sector Placements,Services,04/10/2019,30246151,"3,864.68",Revenue,Consensus Support Services Ltd,Residential Care
Peterborough City Council,Adults,Independent Sector Placements,Services,04/10/2019,30245512,"4,240.08",Revenue,SOCIAL CARE SOLUTIONS LTD,Home Care
Peterborough City Council,Adults,Independent Sector Placements,Services,04/10/2019,30245509,"4,780.08",Revenue,SOCIAL CARE SOLUTIONS LTD,Home Care
Peterborough City Council,Adults,Independent Sector Placements,Services,04/10/2019,30246154,"5,674.64",Revenue,Enham Trust,Residential Care
Peterborough City Council,Adults,Independent Sector Placements,Services,04/10/2019,30244498,"6,543.32",Revenue,Mencap,Home Care
Peterborough City Council,Adults,Independent Sector Placements,Services,04/10/2019,30245515,"6,729.60",Revenue,SOCIAL CARE SOLUTIONS LTD,Home Care
Peterborough City Council,Adults,Independent Sector Placements,Services,04/10/2019,30246164,"6,966.72",Revenue,Autism Care (UK) Ltd,Residential Care
Peterborough City Council,Adults,Independent Sector Placements,Services,04/10/2019,30245510,"7,005.60",Revenue,SOCIAL CARE SOLUTIONS LTD,Home Care
Peterborough City Council,Adults,Independent Sector Placements,Services,04/10/2019,30244494,"7,439.20",Revenue,Mencap,Home Care
Peterborough City Council,Adults,Independent Sector Placements,Services,04/10/2019,30245803,"7,855.48",Revenue,Home From Home Care Limited,Residential Care
Peterborough City Council,Adults,Independent Sector Placements,Services,04/10/2019,30244478,"8,106.00",Revenue,Mencap,Home Care
Peterborough City Council,Adults,Independent Sector Placements,Services,04/10/2019,30244484,"8,251.60",Revenue,Mencap,Home Care
Peterborough City Council,Adults,Independent Sector Placements,Services,04/10/2019,30245797,"8,762.36",Revenue,Home From Home Care Limited,Residential Care
Peterborough City Council,Adults,Independent Sector Placements,Services,04/10/2019,30245799,"8,789.88",Revenue,Home From Home Care Limited,Residential Care
Peterborough City Council,Adults,Independent Sector Placements,Services,04/10/2019,30246157,"9,168.60",Revenue,Autism Care (UK) Ltd,Residential Care
Peterborough City Council,Adults,Independent Sector Placements,Services,04/10/2019,30245801,"10,856.48",Revenue,Home From Home Care Limited,Residential Care
Peterborough City Council,Legal Services,Legal Services,Services,04/10/2019,30246491,550,Revenue,Octagon Legal,Legal Costs
Peterborough City Council,Legal Services,Legal Services,Agency Staff,04/10/2019,30246202,"2,025.38",Revenue,Reed Specialist Recruitment Limited,External Temporary Staff
Peterborough City Council,Legal Services,Legal Services,Grants and Subscriptions,04/10/2019,30246535,"2,201.50",Revenue,Eversheds Sutherland (International) LLP,Direct Payments
Peterborough City Council,City Centre Management,"Markets, Tourism & Events",Services,04/10/2019,30245902,"2,828.60",Revenue,Reed Specialist Recruitment Limited,Consultants Fees
Peterborough City Council,City Centre Management,"Markets, Tourism & Events",Services,04/10/2019,30246192,"2,828.60",Revenue,Reed Specialist Recruitment Limited,Consultants Fees
Peterborough City Council,Adults,Other Services,Third Party Payments,04/10/2019,30246710,"10,416.00",Revenue,P'Boro Council For Voluntary Srvs (PCVS),Third Party Payments - Contract
Peterborough City Council,Public Health,PH Commissioning,Services,04/10/2019,30246417,"40,583.59",Revenue,NHS Cambs & P'boro CCG (Clinical Commissioning Group),Materials
Peterborough City Council,Public Health,PH Commissioning,Services,04/10/2019,30238944,"41,853.16",Revenue,NHS Cambs & P'boro CCG (Clinical Commissioning Group),Materials
Peterborough City Council,Development and Construction,Planning Compliance,Agency Staff,04/10/2019,30246404,"1,431.90",Revenue,Park Avenue Recruitment Limited,External Temporary Staff
Peterborough City Council,Peterborough Serco Strategic Partnership,PSSP Retained Services,Services,04/10/2019,30246412,"1,907.16",Revenue,Whistl UK Ltd,Postage
Peterborough City Council,Education,Special Educational Needs / Inclusion,Interview & Training Expenses,04/10/2019,30246657,995,Revenue,NASEN,Training
Peterborough City Council,Education,Special Educational Needs / Inclusion,Agency Staff,04/10/2019,30246656,"7,454.80",Revenue,Lind Associates,External Temporary Staff
Peterborough City Council,Adults,Therapy/Reablement/Community Equipment,"Tools, Equipment, Furniture & Materials",04/10/2019,30246583,"1,731.86",Revenue,Sovereign Property Services Ltd,Occupational Therapy Equipment
Peterborough City Council,"Waste, Cleansing and Open Spaces",Waste & Operational Svs Mgmt,Contract Hire and Operating Leases,04/10/2019,30246375,"4,665.00",Revenue,Specialist Fleet Services (sfs),Leasing Charges
Peterborough City Council,Westcombe Engineering,Westcombe Engineering,Services,04/10/2019,30244950,707.42,Revenue,Barron Clark Castings Ltd,Materials
Peterborough City Council,Westcombe Engineering,Westcombe Engineering,Services,04/10/2019,30244949,753.06,Revenue,Barron Clark Castings Ltd,Materials
Peterborough City Council,Westcombe Engineering,Westcombe Engineering,Services,04/10/2019,30244948,"1,031.40",Revenue,Barron Clark Castings Ltd,Materials
Peterborough City Council,Commissioning and Commercial Operations,Access to Resources & Specialist Commissioning,Services,07/10/2019,30244442,575.71,Revenue,Locate Accommodation Ltd,Boarding Out Fees
Peterborough City Council,Commissioning and Commercial Operations,Access to Resources & Specialist Commissioning,Services,07/10/2019,30244443,575.71,Revenue,Locate Accommodation Ltd,Boarding Out Fees
Peterborough City Council,Commissioning and Commercial Operations,Access to Resources & Specialist Commissioning,Services,07/10/2019,30244446,575.71,Revenue,Locate Accommodation Ltd,Boarding Out Fees
Peterborough City Council,Commissioning and Commercial Operations,Access to Resources & Specialist Commissioning,Services,07/10/2019,30244441,730.71,Revenue,Locate Accommodation Ltd,Boarding Out Fees
Peterborough City Council,Commissioning and Commercial Operations,Access to Resources & Specialist Commissioning,Services,07/10/2019,30244448,730.71,Revenue,Locate Accommodation Ltd,Boarding Out Fees
Peterborough City Council,Commissioning and Commercial Operations,Access to Resources & Specialist Commissioning,Services,07/10/2019,30242158,764.4,Revenue,Swiis Foster Care Ltd,Boarding Out Fees
Peterborough City Council,Commissioning and Commercial Operations,Access to Resources & Specialist Commissioning,Services,07/10/2019,30242160,764.4,Revenue,Swiis Foster Care Ltd,Boarding Out Fees
Peterborough City Council,Commissioning and Commercial Operations,Access to Resources & Specialist Commissioning,Services,07/10/2019,30242453,764.4,Revenue,Swiis Foster Care Ltd,Boarding Out Fees
Peterborough City Council,Commissioning and Commercial Operations,Access to Resources & Specialist Commissioning,Services,07/10/2019,30243955,"1,498.28",Revenue,PCH Integration Services Ltd,Boarding Out Fees
Peterborough City Council,Commissioning and Commercial Operations,Access to Resources & Specialist Commissioning,Services,07/10/2019,30244043,"2,136.90",Revenue,Cambian Childcare Ltd,Boarding Out Fees
Peterborough City Council,Commissioning and Commercial Operations,Access to Resources & Specialist Commissioning,Services,07/10/2019,30245136,"2,435.67",Revenue,Starwrick Housing,Boarding Out Fees
Peterborough City Council,Commissioning and Commercial Operations,Access to Resources & Specialist Commissioning,Services,07/10/2019,30244545,"2,711.63",Revenue,IAS TACT,Boarding Out Fees
Peterborough City Council,Commissioning and Commercial Operations,Access to Resources & Specialist Commissioning,Services,07/10/2019,30244546,"2,981.70",Revenue,IAS TACT,Boarding Out Fees
Peterborough City Council,Commissioning and Commercial Operations,Access to Resources & Specialist Commissioning,Services,07/10/2019,30243465,"3,424.50",Revenue,Futures For Children,Boarding Out Fees
Peterborough City Council,Commissioning and Commercial Operations,Access to Resources & Specialist Commissioning,Services,07/10/2019,30244045,"3,428.70",Revenue,Cambian Childcare Ltd,Boarding Out Fees
Peterborough City Council,Commissioning and Commercial Operations,Access to Resources & Specialist Commissioning,Services,07/10/2019,30244247,"3,475.10",Revenue,Affinity Fostering Services Ltd,Boarding Out Fees
Peterborough City Council,Commissioning and Commercial Operations,Access to Resources & Specialist Commissioning,Services,07/10/2019,30244246,"3,627.00",Revenue,Affinity Fostering Services Ltd,Boarding Out Fees
Peterborough City Council,Commissioning and Commercial Operations,Access to Resources & Specialist Commissioning,Services,07/10/2019,30244249,"3,658.00",Revenue,Affinity Fostering Services Ltd,Boarding Out Fees
Peterborough City Council,Commissioning and Commercial Operations,Access to Resources & Specialist Commissioning,Services,07/10/2019,30244026,"4,242.90",Revenue,Dreamers Global Ltd,Boarding Out Fees
Peterborough City Council,Commissioning and Commercial Operations,Access to Resources & Specialist Commissioning,Services,07/10/2019,30243986,"4,530.00",Revenue,Ethelbert Childrens Services,Boarding Out Fees
Peterborough City Council,Commissioning and Commercial Operations,Access to Resources & Specialist Commissioning,Services,07/10/2019,30244023,"5,657.20",Revenue,Dreamers Global Ltd,Boarding Out Fees
Peterborough City Council,Commissioning and Commercial Operations,Access to Resources & Specialist Commissioning,Services,07/10/2019,30243882,"5,687.88",Revenue,Five Rivers,Boarding Out Fees
Peterborough City Council,Commissioning and Commercial Operations,Access to Resources & Specialist Commissioning,Services,07/10/2019,30246898,"6,000.00",Revenue,Dreamers Global Ltd,Boarding Out Fees
Peterborough City Council,Commissioning and Commercial Operations,Access to Resources & Specialist Commissioning,Services,07/10/2019,30245408,"11,604.00",Revenue,Positive Steps (Care Services) Ltd,Boarding Out Fees
Peterborough City Council,Commissioning and Commercial Operations,Access to Resources & Specialist Commissioning,Services,07/10/2019,30243985,"12,141.43",Revenue,Ethelbert Childrens Services,Boarding Out Fees
Peterborough City Council,Commissioning and Commercial Operations,Access to Resources & Specialist Commissioning,Services,07/10/2019,30243984,"12,383.74",Revenue,Ethelbert Childrens Services,Boarding Out Fees
Peterborough City Council,Commissioning and Commercial Operations,Access to Resources & Specialist Commissioning,Services,07/10/2019,30245651,"13,392.00",Revenue,Semi-Independent House,Boarding Out Fees
Peterborough City Council,Commissioning and Commercial Operations,Access to Resources & Specialist Commissioning,Services,07/10/2019,30243987,"15,451.41",Revenue,Ethelbert Childrens Services,Boarding Out Fees
Peterborough City Council,Commissioning and Commercial Operations,Access to Resources & Specialist Commissioning,Services,07/10/2019,30244037,"15,642.90",Revenue,Cambian Childcare Ltd,Boarding Out Fees
Peterborough City Council,Commissioning and Commercial Operations,Access to Resources & Specialist Commissioning,Services,07/10/2019,30245950,"18,676.66",Revenue,Exeter Royal Academy for Deaf Education,Boarding Out Fees
Peterborough City Council,Commissioning and Commercial Operations,Access to Resources & Specialist Commissioning,Services,07/10/2019,30245399,"19,500.00",Revenue,Options BESD  Ltd,Boarding Out Fees
Peterborough City Council,Commissioning and Commercial Operations,Access to Resources & Specialist Commissioning,Services,07/10/2019,30244039,"21,214.20",Revenue,Cambian Childcare Ltd,Boarding Out Fees
Peterborough City Council,Commissioning and Commercial Operations,Access to Resources & Specialist Commissioning,Services,07/10/2019,30245940,"21,500.05",Revenue,Swaay Child & adolescent Services Ltd,Boarding Out Fees
Peterborough City Council,Commissioning and Commercial Operations,Access to Resources & Specialist Commissioning,Services,07/10/2019,30245946,"22,120.36",Revenue,Dove Adolescent Services Ltd,Boarding Out Fees
Peterborough City Council,Commissioning and Commercial Operations,Access to Resources & Specialist Commissioning,Services,07/10/2019,30245190,"23,333.33",Revenue,Wilds Lodge School,Boarding Out Fees
Peterborough City Council,Commissioning and Commercial Operations,Access to Resources & Specialist Commissioning,Services,07/10/2019,30245183,"30,000.00",Revenue,Wilds Lodge School,Boarding Out Fees
Peterborough City Council,Commissioning and Commercial Operations,Access to Resources & Specialist Commissioning,Services,07/10/2019,30245186,"30,000.00",Revenue,Wilds Lodge School,Boarding Out Fees
Peterborough City Council,Commissioning and Commercial Operations,Access to Resources & Specialist Commissioning,Services,07/10/2019,30245482,"105,770.04",Revenue,Seashell Trust,Boarding Out Fees
Peterborough City Council,Commissioning and Commercial Operations,Clare Lodge,Agency Staff,07/10/2019,30246195,510.12,Revenue,Reed Specialist Recruitment Limited,External Temporary Staff
Peterborough City Council,Commissioning and Commercial Operations,Clare Lodge,Agency Staff,07/10/2019,30246208,758.09,Revenue,Reed Specialist Recruitment Limited,External Temporary Staff
Peterborough City Council,Commissioning and Commercial Operations,Clare Lodge,Agency Staff,07/10/2019,30246207,910.74,Revenue,Reed Specialist Recruitment Limited,External Temporary Staff
Peterborough City Council,Commissioning and Commercial Operations,Clare Lodge,Services,07/10/2019,30247058,"2,240.00",Revenue,Radiotronics Limited,Hired Services
Peterborough City Council,Corporate Property,Commercial Propety,"Tools, Equipment, Furniture & Materials",07/10/2019,30246896,516.54,Revenue,Hughes TV & Audio Limited,Furniture And Equip Purchase
Peterborough City Council,Corporate Property,Commercial Propety,Repair & Maintenance of Buildings,07/10/2019,30245597,557.47,Revenue,Mainstay Residential Ltd,Rent
Peterborough City Council,Commissioning and Commercial Operations,Commissioning,Services,07/10/2019,30246020,594.74,Revenue,121 Social Care Limited,Hired Services
Peterborough City Council,Corporate,Corporate,Non Revenue,07/10/2019,30246659,"-10,382.71",Capital,Care & Independence Systems Ltd,Grant Payment
Peterborough City Council,Corporate,Corporate,Non Revenue,07/10/2019,30246659,"-1,557.41",Capital,Care & Independence Systems Ltd,Grant Payment
Peterborough City Council,Corporate,Corporate,Non Revenue,07/10/2019,30247074,909,Capital,Allworks Home Improvements Ltd,Building And Site Works
Peterborough City Council,Corporate,Corporate,Non Revenue,07/10/2019,30247074,"2,091.00",Capital,Allworks Home Improvements Ltd,Building And Site Works
Peterborough City Council,Corporate,Corporate,Non Revenue,07/10/2019,30246659,"14,582.24",Capital,Care & Independence Systems Ltd,Grant Payment
Peterborough City Council,Communities,Cultural Services,Energy Costs,07/10/2019,30246858,"1,392.09",Revenue,Flogas UK Ltd,Gas
Peterborough City Council,Communities,Cultural Services,Energy Costs,07/10/2019,30246817,"2,034.17",Revenue,Southern Electric,Electricity
Peterborough City Council,Constitutional Services,Democratic Services,Interview & Training Expenses,07/10/2019,30246985,"1,250.00",Revenue,Redacted Personal Data,Training
Peterborough City Council,Development and Construction,Development Management,Agency Staff,07/10/2019,30245494,"2,459.20",Revenue,Reed Specialist Recruitment Limited,External Temporary Staff
Peterborough City Council,Development and Construction,Development Management,Agency Staff,07/10/2019,30246214,"2,459.20",Revenue,Reed Specialist Recruitment Limited,External Temporary Staff
Peterborough City Council,Children's & Safeguarding,Early Help ASC/CSC,Services,07/10/2019,30244172,"10,000.00",Revenue,NHS Cambs & P'boro CCG (Clinical Commissioning Group),Materials
Peterborough City Council,Constitutional Services,Elections,Services,07/10/2019,30246389,680.11,Revenue,CFH Docmail Limited,Postage
Peterborough City Council,"Director, OP & JV",Growth HoS,Third Party Payments,07/10/2019,30238442,"-50,000.00",Revenue,Opportunity Peterborough T/A OP Ltd,Contributions
Peterborough City Council,"Director, OP & JV",Growth HoS,Third Party Payments,07/10/2019,30238442,"-20,000.00",Revenue,Opportunity Peterborough T/A OP Ltd,Projects
Peterborough City Council,"Director, OP & JV",Growth HoS,Third Party Payments,07/10/2019,30236980,"20,000.00",Revenue,Opportunity Peterborough T/A OP Ltd,Projects
Peterborough City Council,"Director, OP & JV",Growth HoS,Third Party Payments,07/10/2019,30236980,"50,000.00",Revenue,Opportunity Peterborough T/A OP Ltd,Contributions
Peterborough City Council,"Director, OP & JV",Growth HoS,Third Party Payments,07/10/2019,30246768,"77,500.00",Revenue,Opportunity Peterborough T/A OP Ltd,Third Party Payments - Contract
Peterborough City Council,Communities,Housing,Services,07/10/2019,30246143,"4,947.52",Revenue,DA Rosalia Hotel,Temporary Accommodation Costs
Peterborough City Council,Education,HTS & CSC Transport,Contract Hire and Operating Leases,07/10/2019,30245626,"-2,564.20",Revenue,Goldstar Cabs Ltd,Hired Transport
Peterborough City Council,Education,HTS & CSC Transport,Contract Hire and Operating Leases,07/10/2019,8000152351,653.25,Revenue,Goldstar Cabs Ltd,Hired Transport
Peterborough City Council,Education,HTS & CSC Transport,Contract Hire and Operating Leases,07/10/2019,8000152352,"1,854.00",Revenue,Goldstar Cabs Ltd,Hired Transport
Peterborough City Council,ICT,ICT,Agency Staff,07/10/2019,30245898,952.04,Revenue,Reed Specialist Recruitment Limited,External Temporary Staff
Peterborough City Council,Adults,Independent Sector Placements,Services,07/10/2019,30246155,502.6,Revenue,Cross Keys Homes,Home Care
Peterborough City Council,Adults,Independent Sector Placements,Services,07/10/2019,30246480,571.94,Revenue,K2 CARE LTD,Home Care
Peterborough City Council,Adults,Independent Sector Placements,Services,07/10/2019,30246675,598.6,Revenue,Merit Home Care Ltd,Home Care
Peterborough City Council,Adults,Independent Sector Placements,Services,07/10/2019,8000152244,611,Revenue,Cross Keys Homes,Respite Care
Peterborough City Council,Adults,Independent Sector Placements,Services,07/10/2019,8000151452,611.75,Revenue,Cross Keys Homes,Home Care
Peterborough City Council,Adults,Independent Sector Placements,Services,07/10/2019,8000151417,634,Revenue,Cross Keys Homes,Home Care
Peterborough City Council,Adults,Independent Sector Placements,Services,07/10/2019,8000151420,642.09,Revenue,Cross Keys Homes,Home Care
Peterborough City Council,Adults,Independent Sector Placements,Services,07/10/2019,30244534,643.4,Revenue,Goldcare Homes t/a The Tudors Care Home,Residential Care
Peterborough City Council,Adults,Independent Sector Placements,Services,07/10/2019,30245795,645,Revenue,Thera East Anglia,Daycare
Peterborough City Council,Adults,Independent Sector Placements,Services,07/10/2019,8000151538,645,Revenue,Cross Keys Homes,Assistive Technology
Peterborough City Council,Adults,Independent Sector Placements,Services,07/10/2019,30246455,660,Revenue,Redacted Personal Data,Residential Care
Peterborough City Council,Adults,Independent Sector Placements,Services,07/10/2019,30246299,685.28,Revenue,Redacted Personal Data,Residential Care
Peterborough City Council,Adults,Independent Sector Placements,Services,07/10/2019,30245792,693,Revenue,Thera East Anglia,Daycare
Peterborough City Council,Adults,Independent Sector Placements,Services,07/10/2019,30245818,693,Revenue,Thera East Anglia,Daycare
Peterborough City Council,Adults,Independent Sector Placements,Services,07/10/2019,8000151429,699.98,Revenue,Cross Keys Homes,Home Care
Peterborough City Council,Adults,Independent Sector Placements,Services,07/10/2019,8000151447,749.7,Revenue,Cross Keys Homes,Home Care
Peterborough City Council,Adults,Independent Sector Placements,Services,07/10/2019,30245821,756,Revenue,Thera East Anglia,Daycare
Peterborough City Council,Adults,Independent Sector Placements,Services,07/10/2019,30246460,756,Revenue,Redacted Personal Data,Residential Care
Peterborough City Council,Adults,Independent Sector Placements,Services,07/10/2019,30245791,817,Revenue,Thera East Anglia,Daycare
Peterborough City Council,Adults,Independent Sector Placements,Services,07/10/2019,30245804,817,Revenue,Thera East Anglia,Daycare
Peterborough City Council,Adults,Independent Sector Placements,Services,07/10/2019,8000151441,842.4,Revenue,Cross Keys Homes,Home Care
Peterborough City Council,Adults,Independent Sector Placements,Services,07/10/2019,8000151430,843.29,Revenue,Cross Keys Homes,Home Care
Peterborough City Council,Adults,Independent Sector Placements,Services,07/10/2019,8000151437,856.8,Revenue,Cross Keys Homes,Home Care
Peterborough City Council,Adults,Independent Sector Placements,Services,07/10/2019,30246519,857.1,Revenue,RBL Field House Care LTD,Respite Care
Peterborough City Council,Adults,Independent Sector Placements,Services,07/10/2019,8000151450,910.5,Revenue,Cross Keys Homes,Home Care
Peterborough City Council,Adults,Independent Sector Placements,Services,07/10/2019,30244540,917.24,Revenue,Goldcare Homes t/a The Tudors Care Home,Residential Care
Peterborough City Council,Adults,Independent Sector Placements,Services,07/10/2019,8000151448,918,Revenue,Cross Keys Homes,Home Care
Peterborough City Council,Adults,Independent Sector Placements,Services,07/10/2019,8000151433,928.75,Revenue,Cross Keys Homes,Home Care
Peterborough City Council,Adults,Independent Sector Placements,Services,07/10/2019,30245789,945,Revenue,Thera East Anglia,Daycare
Peterborough City Council,Adults,Independent Sector Placements,Services,07/10/2019,30245816,945,Revenue,Thera East Anglia,Daycare
Peterborough City Council,Adults,Independent Sector Placements,Services,07/10/2019,8000151445,969,Revenue,Cross Keys Homes,Home Care
Peterborough City Council,Adults,Independent Sector Placements,Services,07/10/2019,30244539,"1,006.84",Revenue,Goldcare Homes t/a The Tudors Care Home,Residential Care
Peterborough City Council,Adults,Independent Sector Placements,Services,07/10/2019,8000151442,"1,039.60",Revenue,Cross Keys Homes,Home Care
Peterborough City Council,Adults,Independent Sector Placements,Services,07/10/2019,30244532,"1,045.84",Revenue,Goldcare Homes t/a The Tudors Care Home,Residential Care
Peterborough City Council,Adults,Independent Sector Placements,Services,07/10/2019,8000151419,"1,115.47",Revenue,Cross Keys Homes,Home Care
Peterborough City Council,Adults,Independent Sector Placements,Services,07/10/2019,8000151449,"1,132.20",Revenue,Cross Keys Homes,Home Care
Peterborough City Council,Adults,Independent Sector Placements,Services,07/10/2019,30244538,"1,178.44",Revenue,Goldcare Homes t/a The Tudors Care Home,Residential Care
Peterborough City Council,Adults,Independent Sector Placements,Services,07/10/2019,30245796,"1,197.00",Revenue,Thera East Anglia,Daycare
Peterborough City Council,Adults,Independent Sector Placements,Services,07/10/2019,30245798,"1,197.00",Revenue,Thera East Anglia,Daycare
Peterborough City Council,Adults,Independent Sector Placements,Services,07/10/2019,30245802,"1,197.00",Revenue,Thera East Anglia,Daycare
Peterborough City Council,Adults,Independent Sector Placements,Services,07/10/2019,30244533,"1,288.48",Revenue,Goldcare Homes t/a The Tudors Care Home,Residential Care
Peterborough City Council,Adults,Independent Sector Placements,Services,07/10/2019,30245825,"1,464.00",Revenue,Thera East Anglia,Daycare
Peterborough City Council,Adults,Independent Sector Placements,Services,07/10/2019,30244542,"1,630.60",Revenue,Goldcare Homes t/a The Tudors Care Home,Residential Care
Peterborough City Council,Adults,Independent Sector Placements,Services,07/10/2019,8000151434,"1,801.83",Revenue,Cross Keys Homes,Home Care
Peterborough City Council,Adults,Independent Sector Placements,Services,07/10/2019,30245813,"1,952.00",Revenue,Thera East Anglia,Daycare
Peterborough City Council,Adults,Independent Sector Placements,Services,07/10/2019,30245786,"2,318.00",Revenue,Thera East Anglia,Daycare
Peterborough City Council,Adults,Independent Sector Placements,Services,07/10/2019,30245793,"2,318.00",Revenue,Thera East Anglia,Daycare
Peterborough City Council,Adults,Independent Sector Placements,Services,07/10/2019,30245806,"2,318.00",Revenue,Thera East Anglia,Daycare
Peterborough City Council,Adults,Independent Sector Placements,Services,07/10/2019,30245808,"2,318.00",Revenue,Thera East Anglia,Daycare
Peterborough City Council,Adults,Independent Sector Placements,Services,07/10/2019,30245817,"2,318.00",Revenue,Thera East Anglia,Daycare
Peterborough City Council,Adults,Independent Sector Placements,Services,07/10/2019,30245824,"2,318.00",Revenue,Thera East Anglia,Daycare
Peterborough City Council,Adults,Independent Sector Placements,Services,07/10/2019,30245826,"2,318.00",Revenue,Thera East Anglia,Daycare
Peterborough City Council,Adults,Independent Sector Placements,Services,07/10/2019,8000151423,"2,708.10",Revenue,Cross Keys Homes,Home Care
Peterborough City Council,Adults,Independent Sector Placements,Services,07/10/2019,8000151428,"2,843.26",Revenue,Cross Keys Homes,Home Care
Peterborough City Council,Adults,Independent Sector Placements,Services,07/10/2019,30245810,"3,339.25",Revenue,Thera East Anglia,Daycare
Peterborough City Council,Adults,Independent Sector Placements,Services,07/10/2019,8000151415,"3,596.77",Revenue,Cross Keys Homes,Home Care
Peterborough City Council,Legal Services,Legal Services,Agency Staff,07/10/2019,30247059,"1,374.06",Revenue,Reed Specialist Recruitment Limited,External Temporary Staff
Peterborough City Council,Legal Services,Legal Services,Agency Staff,07/10/2019,30247045,"1,456.46",Revenue,Reed Specialist Recruitment Limited,External Temporary Staff
Peterborough City Council,Legal Services,Legal Services,Agency Staff,07/10/2019,30247071,"1,464.67",Revenue,Reed Specialist Recruitment Limited,External Temporary Staff
Peterborough City Council,Legal Services,Legal Services,Agency Staff,07/10/2019,30247066,"2,025.38",Revenue,Reed Specialist Recruitment Limited,External Temporary Staff
Peterborough City Council,Adults,Mental Capacity Act & DoLs,Agency Staff,07/10/2019,30246119,"1,140.00",Revenue,Sanctuary Personnel Ltd,External Temporary Staff
Peterborough City Council,Peterborough Highway Services,Network and Traffic Management,Services,07/10/2019,30246904,"1,676.09",Revenue,Dynniq UK Ltd,Contractors
Peterborough City Council,Peterborough Highway Services,Network and Traffic Management,Services,07/10/2019,30246905,"7,312.87",Revenue,Dynniq UK Ltd,Contractors
Peterborough City Council,Corporate Property,Office Accomodation,Repair & Maintenance of Buildings,07/10/2019,30246889,"7,468.19",Revenue,Bowmer & Kirkland Limited,Premises Costs
Peterborough City Council,Corporate Property,Office Accomodation,Repair & Maintenance of Buildings,07/10/2019,30246889,"52,484.79",Revenue,Bowmer & Kirkland Limited,Premises Costs
Peterborough City Council,Education,PFI,Energy Costs,07/10/2019,30246817,725.35,Revenue,Southern Electric,Electricity
Peterborough City Council,Education,PFI,Energy Costs,07/10/2019,30246817,"1,046.41",Revenue,Southern Electric,Electricity
Peterborough City Council,Education,PFI,Water Services,07/10/2019,30246815,"1,564.69",Revenue,Anglian Water Business National,Water
Peterborough City Council,Education,PFI,Energy Costs,07/10/2019,30246817,"2,557.63",Revenue,Southern Electric,Electricity
Peterborough City Council,Education,PFI,Energy Costs,07/10/2019,30246817,"4,166.75",Revenue,Southern Electric,Electricity
Peterborough City Council,Communities,Regulatory Services,"Tools, Equipment, Furniture & Materials",07/10/2019,30246735,"2,641.33",Revenue,VIP-System Ltd,Equipment
Peterborough City Council,Communities,Travellers,Water Services,07/10/2019,30246815,631.13,Revenue,Anglian Water Business National,Water
Peterborough City Council,Westcombe Engineering,Westcombe Engineering,Services,07/10/2019,30246686,638.1,Revenue,Hydrafeed Ltd,Materials
Peterborough City Council,Westcombe Engineering,Westcombe Engineering,Services,07/10/2019,30246472,739.25,Revenue,M.E.B Service,Materials
Peterborough City Council,Westcombe Engineering,Westcombe Engineering,Services,07/10/2019,30246134,916.8,Revenue,Barron Clark Castings Ltd,Materials
Peterborough City Council,Commissioning and Commercial Operations,Access to Resources & Specialist Commissioning,Services,09/10/2019,30245932,684.96,Revenue,Futures For Children,Boarding Out Fees
Peterborough City Council,Commissioning and Commercial Operations,Access to Resources & Specialist Commissioning,Services,09/10/2019,30241819,764.4,Revenue,Swiis Foster Care Ltd,Boarding Out Fees
Peterborough City Council,Commissioning and Commercial Operations,Access to Resources & Specialist Commissioning,Services,09/10/2019,30247056,850,Revenue,Keys PCE Limited,Boarding Out Fees
Peterborough City Council,Commissioning and Commercial Operations,Access to Resources & Specialist Commissioning,Services,09/10/2019,30244549,"2,796.51",Revenue,IAS TACT,Boarding Out Fees
Peterborough City Council,Commissioning and Commercial Operations,Access to Resources & Specialist Commissioning,Services,09/10/2019,30244560,"2,796.51",Revenue,IAS TACT,Boarding Out Fees
Peterborough City Council,Commissioning and Commercial Operations,Access to Resources & Specialist Commissioning,Services,09/10/2019,30244552,"2,804.38",Revenue,IAS TACT,Boarding Out Fees
Peterborough City Council,Commissioning and Commercial Operations,Access to Resources & Specialist Commissioning,Services,09/10/2019,30244554,"2,834.89",Revenue,IAS TACT,Boarding Out Fees
Peterborough City Council,Commissioning and Commercial Operations,Access to Resources & Specialist Commissioning,Services,09/10/2019,30244563,"2,931.86",Revenue,IAS TACT,Boarding Out Fees
Peterborough City Council,Commissioning and Commercial Operations,Access to Resources & Specialist Commissioning,Services,09/10/2019,30244550,"2,940.66",Revenue,IAS TACT,Boarding Out Fees
Peterborough City Council,Commissioning and Commercial Operations,Access to Resources & Specialist Commissioning,Services,09/10/2019,30244556,"2,940.66",Revenue,IAS TACT,Boarding Out Fees
Peterborough City Council,Commissioning and Commercial Operations,Access to Resources & Specialist Commissioning,Services,09/10/2019,30244558,"2,940.66",Revenue,IAS TACT,Boarding Out Fees
Peterborough City Council,Commissioning and Commercial Operations,Access to Resources & Specialist Commissioning,Services,09/10/2019,30244559,"2,946.86",Revenue,IAS TACT,Boarding Out Fees
Peterborough City Council,Commissioning and Commercial Operations,Access to Resources & Specialist Commissioning,Services,09/10/2019,30244548,"2,998.32",Revenue,IAS TACT,Boarding Out Fees
Peterborough City Council,Commissioning and Commercial Operations,Access to Resources & Specialist Commissioning,Services,09/10/2019,30244561,"3,007.00",Revenue,IAS TACT,Boarding Out Fees
Peterborough City Council,Commissioning and Commercial Operations,Access to Resources & Specialist Commissioning,Services,09/10/2019,30245143,"3,082.33",Revenue,Key2 Futures Limited,Boarding Out Fees
Peterborough City Council,Commissioning and Commercial Operations,Access to Resources & Specialist Commissioning,Services,09/10/2019,30245144,"3,082.33",Revenue,Key2 Futures Limited,Boarding Out Fees
Peterborough City Council,Commissioning and Commercial Operations,Access to Resources & Specialist Commissioning,Services,09/10/2019,30244547,"3,117.24",Revenue,IAS TACT,Boarding Out Fees
Peterborough City Council,Commissioning and Commercial Operations,Access to Resources & Specialist Commissioning,Services,09/10/2019,30244551,"3,149.72",Revenue,IAS TACT,Boarding Out Fees
Peterborough City Council,Commissioning and Commercial Operations,Access to Resources & Specialist Commissioning,Services,09/10/2019,30244653,"3,157.35",Revenue,National Fostering Agency Ltd,Boarding Out Fees
Peterborough City Council,Commissioning and Commercial Operations,Access to Resources & Specialist Commissioning,Services,09/10/2019,30244553,"3,218.88",Revenue,IAS TACT,Boarding Out Fees
Peterborough City Council,Commissioning and Commercial Operations,Access to Resources & Specialist Commissioning,Services,09/10/2019,30244686,"3,250.66",Revenue,National Fostering Agency Ltd,Boarding Out Fees
Peterborough City Council,Commissioning and Commercial Operations,Access to Resources & Specialist Commissioning,Services,09/10/2019,30244690,"3,250.66",Revenue,National Fostering Agency Ltd,Boarding Out Fees
Peterborough City Council,Commissioning and Commercial Operations,Access to Resources & Specialist Commissioning,Services,09/10/2019,30244662,"3,317.00",Revenue,National Fostering Agency Ltd,Boarding Out Fees
Peterborough City Council,Commissioning and Commercial Operations,Access to Resources & Specialist Commissioning,Services,09/10/2019,30244689,"3,317.00",Revenue,National Fostering Agency Ltd,Boarding Out Fees
Peterborough City Council,Commissioning and Commercial Operations,Access to Resources & Specialist Commissioning,Services,09/10/2019,30244650,"3,350.79",Revenue,National Fostering Agency Ltd,Boarding Out Fees
Peterborough City Council,Commissioning and Commercial Operations,Access to Resources & Specialist Commissioning,Services,09/10/2019,30244657,"3,350.79",Revenue,National Fostering Agency Ltd,Boarding Out Fees
Peterborough City Council,Commissioning and Commercial Operations,Access to Resources & Specialist Commissioning,Services,09/10/2019,30244685,"3,385.20",Revenue,National Fostering Agency Ltd,Boarding Out Fees
Peterborough City Council,Commissioning and Commercial Operations,Access to Resources & Specialist Commissioning,Services,09/10/2019,30244695,"3,385.20",Revenue,National Fostering Agency Ltd,Boarding Out Fees
Peterborough City Council,Commissioning and Commercial Operations,Access to Resources & Specialist Commissioning,Services,09/10/2019,30244651,"3,454.33",Revenue,National Fostering Agency Ltd,Boarding Out Fees
Peterborough City Council,Commissioning and Commercial Operations,Access to Resources & Specialist Commissioning,Services,09/10/2019,30244652,"3,454.33",Revenue,National Fostering Agency Ltd,Boarding Out Fees
Peterborough City Council,Commissioning and Commercial Operations,Access to Resources & Specialist Commissioning,Services,09/10/2019,30244656,"3,454.33",Revenue,National Fostering Agency Ltd,Boarding Out Fees
Peterborough City Council,Commissioning and Commercial Operations,Access to Resources & Specialist Commissioning,Services,09/10/2019,30244658,"3,454.33",Revenue,National Fostering Agency Ltd,Boarding Out Fees
Peterborough City Council,Commissioning and Commercial Operations,Access to Resources & Specialist Commissioning,Services,09/10/2019,30244684,"3,454.33",Revenue,National Fostering Agency Ltd,Boarding Out Fees
Peterborough City Council,Commissioning and Commercial Operations,Access to Resources & Specialist Commissioning,Services,09/10/2019,30244693,"3,520.67",Revenue,National Fostering Agency Ltd,Boarding Out Fees
Peterborough City Council,Commissioning and Commercial Operations,Access to Resources & Specialist Commissioning,Services,09/10/2019,30244562,"3,565.00",Revenue,IAS TACT,Boarding Out Fees
Peterborough City Council,Commissioning and Commercial Operations,Access to Resources & Specialist Commissioning,Services,09/10/2019,30244660,"3,565.00",Revenue,National Fostering Agency Ltd,Boarding Out Fees
Peterborough City Council,Commissioning and Commercial Operations,Access to Resources & Specialist Commissioning,Services,09/10/2019,30245469,"3,642.90",Revenue,Compass Fostering East Limited,Boarding Out Fees
Peterborough City Council,Commissioning and Commercial Operations,Access to Resources & Specialist Commissioning,Services,09/10/2019,30244681,"4,057.59",Revenue,National Fostering Agency Ltd,Boarding Out Fees
Peterborough City Council,Commissioning and Commercial Operations,Access to Resources & Specialist Commissioning,Services,09/10/2019,30245386,"4,246.50",Revenue,By The Bridge,Boarding Out Fees
Peterborough City Council,Commissioning and Commercial Operations,Access to Resources & Specialist Commissioning,Services,09/10/2019,30245385,"4,269.13",Revenue,By The Bridge,Boarding Out Fees
Peterborough City Council,Commissioning and Commercial Operations,Access to Resources & Specialist Commissioning,Services,09/10/2019,30245383,"4,331.40",Revenue,By The Bridge,Boarding Out Fees
Peterborough City Council,Commissioning and Commercial Operations,Access to Resources & Specialist Commissioning,Services,09/10/2019,30244032,"4,384.33",Revenue,Dreamers Global Ltd,Boarding Out Fees
Peterborough City Council,Commissioning and Commercial Operations,Access to Resources & Specialist Commissioning,Services,09/10/2019,30244655,"4,557.00",Revenue,National Fostering Agency Ltd,Boarding Out Fees
Peterborough City Council,Commissioning and Commercial Operations,Access to Resources & Specialist Commissioning,Services,09/10/2019,30244687,"4,557.00",Revenue,National Fostering Agency Ltd,Boarding Out Fees
Peterborough City Council,Commissioning and Commercial Operations,Access to Resources & Specialist Commissioning,Services,09/10/2019,30245387,"4,559.40",Revenue,By The Bridge,Boarding Out Fees
Peterborough City Council,Commissioning and Commercial Operations,Access to Resources & Specialist Commissioning,Services,09/10/2019,30244694,"4,871.34",Revenue,National Fostering Agency Ltd,Boarding Out Fees
Peterborough City Council,Commissioning and Commercial Operations,Access to Resources & Specialist Commissioning,Services,09/10/2019,30245460,"5,562.90",Revenue,I S P,Boarding Out Fees
Peterborough City Council,Commissioning and Commercial Operations,Access to Resources & Specialist Commissioning,Services,09/10/2019,30245461,"5,562.90",Revenue,I S P,Boarding Out Fees
Peterborough City Council,Commissioning and Commercial Operations,Access to Resources & Specialist Commissioning,Services,09/10/2019,30244555,"5,652.23",Revenue,IAS TACT,Boarding Out Fees
Peterborough City Council,Commissioning and Commercial Operations,Access to Resources & Specialist Commissioning,Services,09/10/2019,30244617,"5,740.27",Revenue,Kasper Fostering,Boarding Out Fees
Peterborough City Council,Commissioning and Commercial Operations,Access to Resources & Specialist Commissioning,Services,09/10/2019,30245004,"15,500.00",Revenue,Keys Direct Care Limited,Boarding Out Fees
Peterborough City Council,Development and Construction,Building Control,Agency Staff,09/10/2019,30247032,"1,075.05",Revenue,Reed Specialist Recruitment Limited,External Temporary Staff
Peterborough City Council,Development and Construction,Building Control,Agency Staff,09/10/2019,30247011,"1,574.91",Revenue,Reed Specialist Recruitment Limited,External Temporary Staff
Peterborough City Council,Children's & Safeguarding,Children's Social Care,Interview & Training Expenses,09/10/2019,30247259,"1,390.50",Revenue,Wakefield & District NVQ Consortium,Training
Peterborough City Council,Children's & Safeguarding,Children's Social Care,Contract Hire and Operating Leases,09/10/2019,30247387,"3,707.62",Revenue,Northumbria Healthcare NHS Foundation Trust,Hired Transport
Peterborough City Council,Commissioning and Commercial Operations,Clare Lodge,Agency Staff,09/10/2019,30246180,650,Revenue,Reed Specialist Recruitment Limited,Supply Teachers
Peterborough City Council,Commissioning and Commercial Operations,Clare Lodge,Services,09/10/2019,30246798,"3,848.00",Revenue,B & H Services Group Ltd,Security
Peterborough City Council,Communities,Cohesion,Services,09/10/2019,30246464,"1,100.00",Revenue,Codename Media Ltd,Advertising
Peterborough City Council,Communities,Cohesion,Third Party Payments,09/10/2019,30246677,"2,740.83",Revenue,Solutions 4 Health Ltd,Grant-Third Party
Peterborough City Council,Corporate Property,Commercial Propety,Services,09/10/2019,30246902,750,Revenue,Eddisons Commercial Ltd t/a Barker Storey Matthews,Professional Services
Peterborough City Council,Corporate Property,Commercial Propety,Services,09/10/2019,30247160,750,Revenue,Eddisons Commercial Ltd t/a Barker Storey Matthews,Professional Services
Peterborough City Council,Corporate Property,Commercial Propety,Services,09/10/2019,30246438,790,Revenue,Posh Signs (Peterborough) Ltd t/a Fastsigns Peterborough,Advertising
Peterborough City Council,Corporate Property,Commercial Propety,Services,09/10/2019,30246890,"4,400.00",Revenue,Eddisons Commercial Ltd t/a Barker Storey Matthews,Valuations
Peterborough City Council,Corporate Property,Commercial Propety,Services,09/10/2019,30247262,"5,000.00",Revenue,Redacted Personal Data,Third Party Payments
Peterborough City Council,Corporate Property,Commercial Propety,Services,09/10/2019,30247264,"22,000.00",Revenue,Redacted Personal Data,Third Party Payments
Peterborough City Council,Corporate Property,Commercial Propety,Services,09/10/2019,30247261,"44,000.00",Revenue,Redacted Personal Data,Third Party Payments
Peterborough City Council,Corporate Property,Commercial Propety,Services,09/10/2019,30247263,"85,000.00",Revenue,Redacted Personal Data,Third Party Payments
Peterborough City Council,Corporate Property,Commercial Propety,Services,09/10/2019,30247260,"115,000.00",Revenue,Pep & Anty Ltd,Third Party Payments
Peterborough City Council,Commissioning and Commercial Operations,Commissioning,Services,09/10/2019,30247161,"6,003.71",Revenue,The Lime Academy Trust,Hired Services
Peterborough City Council,Corporate,Corporate,Non Revenue,09/10/2019,30246779,"-4,428.62",Capital,Movement 2 - Prism Medical UK,Grant Payment
Peterborough City Council,Corporate,Corporate,Non Revenue,09/10/2019,30246779,-696.05,Capital,Movement 2 - Prism Medical UK,Grant Payment
Peterborough City Council,Corporate,Corporate,Non Revenue,09/10/2019,30247257,760,Capital,Rawheat Heating & Plumbing Eng.,Building And Site Works
Peterborough City Council,Corporate,Corporate,Non Revenue,09/10/2019,30245705,"1,114.43",Capital,Cambridgeshire County Council,Building And Site Works
Peterborough City Council,Corporate,Corporate,Non Revenue,09/10/2019,30246760,"1,850.00",Capital,Spotless {Cleaning Services},Grant Payment
Peterborough City Council,Corporate,Corporate,Non Revenue,09/10/2019,30246758,"1,950.00",Capital,Spotless {Cleaning Services},Grant Payment
Peterborough City Council,Corporate,Corporate,Non Revenue,09/10/2019,30247154,"3,404.97",Capital,Bowmer & Kirkland Limited,Building And Site Works
Peterborough City Council,Corporate,Corporate,Non Revenue,09/10/2019,30246382,"3,740.00",Capital,Rawheat Heating & Plumbing Eng.,Building And Site Works
Peterborough City Council,Corporate,Corporate,Non Revenue,09/10/2019,30246757,"3,901.18",Capital,Sovereign Property Services Ltd,Grant Payment
Peterborough City Council,Corporate,Corporate,Non Revenue,09/10/2019,30247013,"5,439.46",Balance Sheet,The Prudential Assurance Company Ltd,Pensions
Peterborough City Council,Corporate,Corporate,Non Revenue,09/10/2019,30246761,"7,378.93",Capital,Gaswise Services Ltd,Grant Payment
Peterborough City Council,Corporate,Corporate,Non Revenue,09/10/2019,30246779,"7,467.45",Capital,Movement 2 - Prism Medical UK,Grant Payment
Peterborough City Council,Corporate,Corporate,Non Revenue,09/10/2019,30247154,"82,497.51",Capital,Bowmer & Kirkland Limited,Building And Site Works
Peterborough City Council,Corporate,Corporate,Non Revenue,09/10/2019,30247194,"116,187.26",Capital,Kier Construction Ltd,Building And Site Works
Peterborough City Council,Communities,Cultural Services,Services,09/10/2019,30247377,580.05,Revenue,Peterborough Centre for Young Musicians,Hired Services
Peterborough City Council,Communities,Cultural Services,Services,09/10/2019,30247380,660,Revenue,Peterborough Centre for Young Musicians,Hired Services
Peterborough City Council,Communities,Cultural Services,Services,09/10/2019,30247371,"1,060.00",Revenue,Peterborough Centre for Young Musicians,Hired Services
Peterborough City Council,Communities,Cultural Services,Services,09/10/2019,30247375,"2,695.00",Revenue,Peterborough Centre for Young Musicians,Hired Services
Peterborough City Council,Communities,Cultural Services,Services,09/10/2019,30247373,"2,880.00",Revenue,Peterborough Centre for Young Musicians,Hired Services
Peterborough City Council,Communities,Cultural Services,Services,09/10/2019,30247370,"3,312.00",Revenue,Peterborough Centre for Young Musicians,Hired Services
Peterborough City Council,Communities,Cultural Services,Services,09/10/2019,30247374,"4,000.00",Revenue,Peterborough Centre for Young Musicians,Hired Services
Peterborough City Council,Communities,Cultural Services,Services,09/10/2019,30247369,"6,380.00",Revenue,Peterborough Centre for Young Musicians,Hired Services
Peterborough City Council,Communities,Cultural Services,Services,09/10/2019,30247376,"8,582.70",Revenue,Peterborough Centre for Young Musicians,Hired Services
Peterborough City Council,Development and Construction,Development Management,Agency Staff,09/10/2019,30246201,"1,365.01",Revenue,Reed Specialist Recruitment Limited,External Temporary Staff
Peterborough City Council,Development and Construction,Development Management,Agency Staff,09/10/2019,30246893,"1,365.01",Revenue,Reed Specialist Recruitment Limited,External Temporary Staff
Peterborough City Council,Development and Construction,Development Management,Agency Staff,09/10/2019,30247064,"1,494.80",Revenue,Reed Specialist Recruitment Limited,External Temporary Staff
Peterborough City Council,Development and Construction,Development Management,Agency Staff,09/10/2019,30247068,"1,494.80",Revenue,Reed Specialist Recruitment Limited,External Temporary Staff
Peterborough City Council,Development and Construction,Development Management,Agency Staff,09/10/2019,30247047,"1,533.18",Revenue,Reed Specialist Recruitment Limited,External Temporary Staff
Peterborough City Council,Development and Construction,Development Management,Agency Staff,09/10/2019,30247082,"1,967.36",Revenue,Reed Specialist Recruitment Limited,External Temporary Staff
Peterborough City Council,Children's & Safeguarding,Early Help ASC/CSC,Agency Staff,09/10/2019,30247002,543.15,Revenue,Reed Specialist Recruitment Limited,External Temporary Staff
Peterborough City Council,Children's & Safeguarding,Early Help ASC/CSC,Agency Staff,09/10/2019,30247348,569.83,Revenue,Reed Specialist Recruitment Limited,External Temporary Staff
Peterborough City Council,Children's & Safeguarding,Early Help ASC/CSC,Agency Staff,09/10/2019,30246993,751.46,Revenue,Reed Specialist Recruitment Limited,External Temporary Staff
Peterborough City Council,Adults,Finance,Agency Staff,09/10/2019,30246979,697.36,Revenue,Reed Specialist Recruitment Limited,External Temporary Staff
Peterborough City Council,Financial Services,Finance,Services,09/10/2019,30246547,775,Revenue,LG Futures,Publications
Peterborough City Council,Financial Services,Finance,Agency Staff,09/10/2019,30246777,"1,190.46",Revenue,Redacted Personal Data,External Temporary Staff
Peterborough City Council,Adults,Finance,Services,09/10/2019,30246679,"3,625.00",Revenue,Solutions 4 Health Ltd,Counselling
Peterborough City Council,Adults,Finance,Agency Staff,09/10/2019,30246736,"6,352.92",Revenue,Badenoch & Clark Ltd,External Temporary Staff
Peterborough City Council,Adults,Finance,Services,09/10/2019,30246792,"7,000.00",Revenue,NHS Cambs & P'boro CCG (Clinical Commissioning Group),Materials
Peterborough City Council,Adults,Finance,Services,09/10/2019,30246796,"7,000.00",Revenue,NHS Cambs & P'boro CCG (Clinical Commissioning Group),Materials
Peterborough City Council,Peterborough Highway Services,Highway & Drainage Control,Agency Staff,09/10/2019,30246215,517.71,Revenue,Reed Specialist Recruitment Limited,External Temporary Staff
Peterborough City Council,Peterborough Highway Services,Highway & Drainage Control,Agency Staff,09/10/2019,30247033,580.5,Revenue,Reed Specialist Recruitment Limited,External Temporary Staff
Peterborough City Council,Peterborough Highway Services,Highway & Drainage Control,Agency Staff,09/10/2019,30247072,"1,235.80",Revenue,Reed Specialist Recruitment Limited,External Temporary Staff
Peterborough City Council,Peterborough Highway Services,Highway & Drainage Control,Agency Staff,09/10/2019,30247027,"1,402.80",Revenue,Reed Specialist Recruitment Limited,External Temporary Staff
Peterborough City Council,Peterborough Highway Services,Highway Services - HoS,Agency Staff,09/10/2019,30247107,"1,235.80",Revenue,Reed Specialist Recruitment Limited,External Temporary Staff
Peterborough City Council,Adults,Home Services Delivery Model,Customer and client receipts - Fees & Charges,09/10/2019,30246761,"-1,006.80",Revenue,Gaswise Services Ltd,Grant Payment
Peterborough City Council,Adults,Home Services Delivery Model,Customer and client receipts - Fees & Charges,09/10/2019,30246757,-508.85,Revenue,Sovereign Property Services Ltd,Grant Payment
Peterborough City Council,Communities,Housing,Services,09/10/2019,30247362,"2,275.00",Revenue,Singh and Sons Property Management Ltd,Temporary Accommodation Costs
Peterborough City Council,Communities,Housing,Services,09/10/2019,30247364,"2,975.00",Revenue,Singh and Sons Property Management Ltd,Temporary Accommodation Costs
Peterborough City Council,Communities,Housing,Services,09/10/2019,30247363,"2,980.00",Revenue,Singh and Sons Property Management Ltd,Temporary Accommodation Costs
Peterborough City Council,Communities,Housing,Services,09/10/2019,30247361,"3,150.00",Revenue,Singh and Sons Property Management Ltd,Temporary Accommodation Costs
Peterborough City Council,Communities,Housing Enforcement,Services,09/10/2019,30246776,"2,500.00",Revenue,Redacted Personal Data,Legal Costs
Peterborough City Council,HR,HR,Services,09/10/2019,30247271,748,Revenue,Disclosure and Barring Service,Legal Costs
Peterborough City Council,HR,HR,Services,09/10/2019,30247274,836,Revenue,Disclosure and Barring Service,Legal Costs
Peterborough City Council,HR,HR,Services,09/10/2019,30247270,924,Revenue,Disclosure and Barring Service,Legal Costs
Peterborough City Council,HR,HR,Services,09/10/2019,30247220,"1,613.50",Revenue,AXA PPP Healthcare OHS Ltd,Consultants Fees
Peterborough City Council,HR,HR WFD & Training,Interview & Training Expenses,09/10/2019,30246911,950,Revenue,Anglia Ruskin University,Training
Peterborough City Council,HR,HR WFD & Training,Interview & Training Expenses,09/10/2019,30246916,950,Revenue,Anglia Ruskin University,Training
Peterborough City Council,Education,HTS & CSC Transport,Contract Hire and Operating Leases,09/10/2019,8000152400,523.12,Revenue,Redacted Personal Data,Hired Transport
Peterborough City Council,Education,HTS & CSC Transport,Contract Hire and Operating Leases,09/10/2019,30246097,630,Revenue,Redacted Commercial Confidentiality,Hired Transport
Peterborough City Council,Education,HTS & CSC Transport,Contract Hire and Operating Leases,09/10/2019,8000152401,752.62,Revenue,Redacted Personal Data,Hired Transport
Peterborough City Council,Education,HTS & CSC Transport,Contract Hire and Operating Leases,09/10/2019,30246097,840,Revenue,Redacted Commercial Confidentiality,Hired Transport
Peterborough City Council,Education,HTS & CSC Transport,Contract Hire and Operating Leases,09/10/2019,8000152398,949.87,Revenue,Redacted Personal Data,Hired Transport
Peterborough City Council,Education,HTS & CSC Transport,Contract Hire and Operating Leases,09/10/2019,30246097,"1,184.00",Revenue,Redacted Commercial Confidentiality,Hired Transport
Peterborough City Council,Education,HTS & CSC Transport,Contract Hire and Operating Leases,09/10/2019,30246097,"1,330.00",Revenue,Redacted Commercial Confidentiality,Hired Transport
Peterborough City Council,Education,HTS & CSC Transport,Contract Hire and Operating Leases,09/10/2019,30246097,"2,730.00",Revenue,Redacted Commercial Confidentiality,Hired Transport
Peterborough City Council,Education,HTS & CSC Transport,Contract Hire and Operating Leases,09/10/2019,30246097,"9,292.00",Revenue,Redacted Commercial Confidentiality,Hired Transport
Peterborough City Council,ICT,ICT,Agency Staff,09/10/2019,30247065,727.8,Revenue,Reed Specialist Recruitment Limited,External Temporary Staff
Peterborough City Council,ICT,ICT,Agency Staff,09/10/2019,30246199,"1,088.54",Revenue,Reed Specialist Recruitment Limited,External Temporary Staff
Peterborough City Council,ICT,ICT,Agency Staff,09/10/2019,30247000,"2,268.60",Revenue,Reed Specialist Recruitment Limited,External Temporary Staff
Peterborough City Council,ICT,ICT,Agency Staff,09/10/2019,30247098,"2,268.60",Revenue,Reed Specialist Recruitment Limited,External Temporary Staff
Peterborough City Council,Adults,Independent Sector Placements,Services,09/10/2019,30245477,"-3,369.06",Revenue,Sagecare Ltd,Home Care
Peterborough City Council,Adults,Independent Sector Placements,Services,09/10/2019,30245477,"-2,917.50",Revenue,Sagecare Ltd,Home Care
Peterborough City Council,Adults,Independent Sector Placements,Services,09/10/2019,30246974,"-2,835.54",Revenue,Peterborough Care  The Maltings,Residential Care
Peterborough City Council,Adults,Independent Sector Placements,Services,09/10/2019,30246975,"-2,737.76",Revenue,Peterborough Care  The Maltings,Residential Care
Peterborough City Council,Adults,Independent Sector Placements,Services,09/10/2019,30246291,"-2,508.04",Revenue,Avery House (Peterborough) t/a Brighterkind,Residential Care
Peterborough City Council,Adults,Independent Sector Placements,Services,09/10/2019,30243475,"-1,906.84",Revenue,PHILIA LODGE REST HOME,Residential Care
Peterborough City Council,Adults,Independent Sector Placements,Services,09/10/2019,30245521,"-1,330.56",Revenue,Sagecare Ltd,Home Care
Peterborough City Council,Adults,Independent Sector Placements,Services,09/10/2019,30246290,-878.12,Revenue,Avery House (Peterborough) t/a Brighterkind,Residential Care
Peterborough City Council,Adults,Independent Sector Placements,Services,09/10/2019,30245477,-720,Revenue,Sagecare Ltd,Respite Care
Peterborough City Council,Adults,Independent Sector Placements,Services,09/10/2019,30245477,-720,Revenue,Sagecare Ltd,Home Care
Peterborough City Council,Adults,Independent Sector Placements,Services,09/10/2019,30246492,-658.59,Revenue,Avery House (Peterborough) t/a Brighterkind,Residential Care
Peterborough City Council,Adults,Independent Sector Placements,Services,09/10/2019,30246658,-645.71,Revenue,Avery House (Peterborough) t/a Brighterkind,Respite Care
Peterborough City Council,Adults,Independent Sector Placements,Services,09/10/2019,30246289,-564.51,Revenue,Avery House (Peterborough) t/a Brighterkind,Residential Care
Peterborough City Council,Adults,Independent Sector Placements,Services,09/10/2019,30247286,567,Revenue,THE HELPING HANDS GROUP,Daycare
Peterborough City Council,Adults,Independent Sector Placements,Services,09/10/2019,8000152243,568.26,Revenue,Sagecare Ltd,Home Care
Peterborough City Council,Adults,Independent Sector Placements,Services,09/10/2019,30246293,619.24,Revenue,Avery House (Peterborough) t/a Brighterkind,Respite Care
Peterborough City Council,Adults,Independent Sector Placements,Services,09/10/2019,30245556,619.31,Revenue,Sagecare Ltd,Home Care
Peterborough City Council,Adults,Independent Sector Placements,Services,09/10/2019,30243724,695.8,Revenue,Mencap,Home Care
Peterborough City Council,Adults,Independent Sector Placements,Services,09/10/2019,30247300,732,Revenue,THE HELPING HANDS GROUP,Daycare
Peterborough City Council,Adults,Independent Sector Placements,Services,09/10/2019,30247288,749.81,Revenue,THE HELPING HANDS GROUP,Daycare
Peterborough City Council,Adults,Independent Sector Placements,Services,09/10/2019,30247285,756,Revenue,THE HELPING HANDS GROUP,Daycare
Peterborough City Council,Adults,Independent Sector Placements,Services,09/10/2019,30245520,762.3,Revenue,Sagecare Ltd,Home Care
Peterborough City Council,Adults,Independent Sector Placements,Services,09/10/2019,30216948,787.5,Revenue,Sagecare Ltd,Home Care
Peterborough City Council,Adults,Independent Sector Placements,Services,09/10/2019,30247297,796.5,Revenue,THE HELPING HANDS GROUP,Daycare
Peterborough City Council,Adults,Independent Sector Placements,Services,09/10/2019,30247290,945,Revenue,THE HELPING HANDS GROUP,Daycare
Peterborough City Council,Adults,Independent Sector Placements,Services,09/10/2019,30247298,945,Revenue,THE HELPING HANDS GROUP,Daycare
Peterborough City Council,Adults,Independent Sector Placements,Services,09/10/2019,30247303,945,Revenue,THE HELPING HANDS GROUP,Daycare
Peterborough City Council,Adults,Independent Sector Placements,Services,09/10/2019,30245832,975.2,Revenue,Maxey House Res Home,Residential Care
Peterborough City Council,Adults,Independent Sector Placements,Services,09/10/2019,30247152,"1,000.00",Revenue,Healthcare Homes Group Ltd,Respite Care
Peterborough City Council,Adults,Independent Sector Placements,Services,09/10/2019,30245830,"1,030.12",Revenue,Maxey House Res Home,Residential Care
Peterborough City Council,Adults,Independent Sector Placements,Services,09/10/2019,30247301,"1,041.75",Revenue,THE HELPING HANDS GROUP,Daycare
Peterborough City Council,Adults,Independent Sector Placements,Services,09/10/2019,30246906,"1,094.56",Revenue,Kemps Place Ltd,Residential Care
Peterborough City Council,Adults,Independent Sector Placements,Services,09/10/2019,30247296,"1,098.00",Revenue,THE HELPING HANDS GROUP,Daycare
Peterborough City Council,Adults,Independent Sector Placements,Services,09/10/2019,30245833,"1,186.12",Revenue,Maxey House Res Home,Residential Care
Peterborough City Council,Adults,Independent Sector Placements,Services,09/10/2019,30247304,"1,194.75",Revenue,THE HELPING HANDS GROUP,Daycare
Peterborough City Council,Adults,Independent Sector Placements,Services,09/10/2019,30247307,"1,194.75",Revenue,THE HELPING HANDS GROUP,Daycare
Peterborough City Council,Adults,Independent Sector Placements,Services,09/10/2019,30245837,"1,284.48",Revenue,Maxey House Res Home,Residential Care
Peterborough City Council,Adults,Independent Sector Placements,Services,09/10/2019,30247096,"1,291.82",Revenue,Peterborough Care  The Maltings,Residential Care
Peterborough City Council,Adults,Independent Sector Placements,Services,09/10/2019,30246769,"1,352.48",Revenue,Goldcare Homes t/a The Tudors Care Home,Residential Care
Peterborough City Council,Adults,Independent Sector Placements,Services,09/10/2019,30244541,"1,378.57",Revenue,Goldcare Homes t/a The Tudors Care Home,Residential Care
Peterborough City Council,Adults,Independent Sector Placements,Services,09/10/2019,30245836,"1,410.24",Revenue,Maxey House Res Home,Residential Care
Peterborough City Council,Adults,Independent Sector Placements,Services,09/10/2019,30246596,"1,490.24",Revenue,STAR RESIDENTIAL HOME LTD,Residential Care
Peterborough City Council,Adults,Independent Sector Placements,Services,09/10/2019,30246810,"1,530.60",Revenue,Maxey House Res Home,Residential Care
Peterborough City Council,Adults,Independent Sector Placements,Services,09/10/2019,30246601,"1,543.64",Revenue,STAR RESIDENTIAL HOME LTD,Residential Care
Peterborough City Council,Adults,Independent Sector Placements,Services,09/10/2019,30245827,"1,576.24",Revenue,Maxey House Res Home,Residential Care
Peterborough City Council,Adults,Independent Sector Placements,Services,09/10/2019,30247293,"1,593.00",Revenue,THE HELPING HANDS GROUP,Daycare
Peterborough City Council,Adults,Independent Sector Placements,Services,09/10/2019,30246910,"1,608.76",Revenue,ABBEYGATE REST HOME,Residential Care
Peterborough City Council,Adults,Independent Sector Placements,Services,09/10/2019,30245838,"1,679.96",Revenue,Maxey House Res Home,Residential Care
Peterborough City Council,Adults,Independent Sector Placements,Services,09/10/2019,30246590,"1,778.20",Revenue,PHILIA LODGE REST HOME,Residential Care
Peterborough City Council,Adults,Independent Sector Placements,Services,09/10/2019,30246812,"1,792.60",Revenue,THE LODGE TRUST,Residential Care
Peterborough City Council,Adults,Independent Sector Placements,Services,09/10/2019,30245831,"1,821.88",Revenue,Maxey House Res Home,Residential Care
Peterborough City Council,Adults,Independent Sector Placements,Services,09/10/2019,30245835,"1,821.88",Revenue,Maxey House Res Home,Residential Care
Peterborough City Council,Adults,Independent Sector Placements,Services,09/10/2019,30246401,"1,826.79",Revenue,PSYCARE LIMITED,Residential Care
Peterborough City Council,Adults,Independent Sector Placements,Services,09/10/2019,30247292,"1,830.00",Revenue,THE HELPING HANDS GROUP,Daycare
Peterborough City Council,Adults,Independent Sector Placements,Services,09/10/2019,30247295,"1,830.00",Revenue,THE HELPING HANDS GROUP,Daycare
Peterborough City Council,Adults,Independent Sector Placements,Services,09/10/2019,30247305,"1,830.00",Revenue,THE HELPING HANDS GROUP,Daycare
Peterborough City Council,Adults,Independent Sector Placements,Services,09/10/2019,30246517,"1,846.25",Revenue,Avery House (Peterborough) t/a Brighterkind,Residential Care
Peterborough City Council,Adults,Independent Sector Placements,Services,09/10/2019,30246515,"1,852.48",Revenue,The Cedars Bourne Care Home,Residential Care
Peterborough City Council,Adults,Independent Sector Placements,Services,09/10/2019,30246605,"1,892.68",Revenue,STAR RESIDENTIAL HOME LTD,Residential Care
Peterborough City Council,Adults,Independent Sector Placements,Services,09/10/2019,30246458,"1,926.60",Revenue,South West Care Homes LTD (The Firs),Residential Care
Peterborough City Council,Adults,Independent Sector Placements,Services,09/10/2019,30246604,"1,930.40",Revenue,STAR RESIDENTIAL HOME LTD,Residential Care
Peterborough City Council,Adults,Independent Sector Placements,Services,09/10/2019,30246551,"1,954.32",Revenue,Redacted Personal Data,Residential Care
Peterborough City Council,Adults,Independent Sector Placements,Services,09/10/2019,30246555,"1,954.32",Revenue,Redacted Personal Data,Residential Care
Peterborough City Council,Adults,Independent Sector Placements,Services,09/10/2019,30246598,"1,985.56",Revenue,STAR RESIDENTIAL HOME LTD,Residential Care
Peterborough City Council,Adults,Independent Sector Placements,Services,09/10/2019,30247294,"1,991.25",Revenue,THE HELPING HANDS GROUP,Daycare
Peterborough City Council,Adults,Independent Sector Placements,Services,09/10/2019,30247306,"1,991.25",Revenue,THE HELPING HANDS GROUP,Daycare
Peterborough City Council,Adults,Independent Sector Placements,Services,09/10/2019,30245828,"2,000.00",Revenue,Maxey House Res Home,Residential Care
Peterborough City Council,Adults,Independent Sector Placements,Services,09/10/2019,30246586,"2,024.72",Revenue,PHILIA LODGE REST HOME,Residential Care
Peterborough City Council,Adults,Independent Sector Placements,Services,09/10/2019,30246595,"2,030.60",Revenue,STAR RESIDENTIAL HOME LTD,Residential Care
Peterborough City Council,Adults,Independent Sector Placements,Services,09/10/2019,30246599,"2,030.60",Revenue,STAR RESIDENTIAL HOME LTD,Residential Care
Peterborough City Council,Adults,Independent Sector Placements,Services,09/10/2019,30246597,"2,034.40",Revenue,STAR RESIDENTIAL HOME LTD,Residential Care
Peterborough City Council,Adults,Independent Sector Placements,Services,09/10/2019,30246600,"2,035.40",Revenue,STAR RESIDENTIAL HOME LTD,Residential Care
Peterborough City Council,Adults,Independent Sector Placements,Services,09/10/2019,30246400,"2,086.44",Revenue,Chigwell Homes Ltd t/a Marcris House,Residential Care
Peterborough City Council,Adults,Independent Sector Placements,Services,09/10/2019,30246588,"2,143.28",Revenue,PHILIA LODGE REST HOME,Residential Care
Peterborough City Council,Adults,Independent Sector Placements,Services,09/10/2019,30246457,"2,162.24",Revenue,Redacted Personal Data,Residential Care
Peterborough City Council,Adults,Independent Sector Placements,Services,09/10/2019,30246556,"2,162.24",Revenue,Redacted Personal Data,Residential Care
Peterborough City Council,Adults,Independent Sector Placements,Services,09/10/2019,30246453,"2,162.28",Revenue,Redacted Personal Data,Residential Care
Peterborough City Council,Adults,Independent Sector Placements,Services,09/10/2019,30246594,"2,186.60",Revenue,STAR RESIDENTIAL HOME LTD,Residential Care
Peterborough City Council,Adults,Independent Sector Placements,Services,09/10/2019,30246603,"2,186.96",Revenue,STAR RESIDENTIAL HOME LTD,Residential Care
Peterborough City Council,Adults,Independent Sector Placements,Services,09/10/2019,30246606,"2,223.56",Revenue,STAR RESIDENTIAL HOME LTD,Residential Care
Peterborough City Council,Adults,Independent Sector Placements,Services,09/10/2019,30226050,"2,238.75",Revenue,Sagecare Ltd,Home Care
Peterborough City Council,Adults,Independent Sector Placements,Services,09/10/2019,30226055,"2,248.32",Revenue,Sagecare Ltd,Home Care
Peterborough City Council,Adults,Independent Sector Placements,Services,09/10/2019,30245918,"2,250.00",Revenue,Sagecare Ltd,Home Care
Peterborough City Council,Adults,Independent Sector Placements,Services,09/10/2019,30246665,"2,260.00",Revenue,Avery House (Peterborough) t/a Brighterkind,Respite Care
Peterborough City Council,Adults,Independent Sector Placements,Services,09/10/2019,30247265,"2,300.00",Revenue,Goldcare Homes t/a The Tudors Care Home,Respite Care
Peterborough City Council,Adults,Independent Sector Placements,Services,09/10/2019,30246553,"2,337.52",Revenue,Redacted Personal Data,Residential Care
Peterborough City Council,Adults,Independent Sector Placements,Services,09/10/2019,30216946,"2,340.00",Revenue,Sagecare Ltd,Home Care
Peterborough City Council,Adults,Independent Sector Placements,Services,09/10/2019,30246554,"2,345.20",Revenue,Redacted Personal Data,Residential Care
Peterborough City Council,Adults,Independent Sector Placements,Services,09/10/2019,30246475,"2,347.80",Revenue,Linkage Community Trust Limited,Residential Care
Peterborough City Council,Adults,Independent Sector Placements,Services,09/10/2019,30247093,"2,500.45",Revenue,Peterborough Care  The Maltings,Residential Care
Peterborough City Council,Adults,Independent Sector Placements,Services,09/10/2019,30246292,"2,502.14",Revenue,Avery House (Peterborough) t/a Brighterkind,Respite Care
Peterborough City Council,Adults,Independent Sector Placements,Services,09/10/2019,30246705,"2,591.36",Revenue,STAR RESIDENTIAL HOME LTD,Residential Care
Peterborough City Council,Adults,Independent Sector Placements,Services,09/10/2019,30246593,"2,600.80",Revenue,STAR RESIDENTIAL HOME LTD,Residential Care
Peterborough City Council,Adults,Independent Sector Placements,Services,09/10/2019,30247090,"2,680.28",Revenue,Peterborough Care  The Maltings,Residential Care
Peterborough City Council,Adults,Independent Sector Placements,Services,09/10/2019,30247094,"2,680.28",Revenue,Peterborough Care  The Maltings,Residential Care
Peterborough City Council,Adults,Independent Sector Placements,Services,09/10/2019,30247095,"2,680.28",Revenue,Peterborough Care  The Maltings,Residential Care
Peterborough City Council,Adults,Independent Sector Placements,Services,09/10/2019,30246441,"2,690.04",Revenue,LEONARD CHESHIRE DISABILITY,Residential Care
Peterborough City Council,Adults,Independent Sector Placements,Services,09/10/2019,30246811,"2,731.84",Revenue,Kemps Place Ltd,Residential Care
Peterborough City Council,Adults,Independent Sector Placements,Services,09/10/2019,30246809,"2,735.48",Revenue,Kemps Place Ltd,Residential Care
Peterborough City Council,Adults,Independent Sector Placements,Services,09/10/2019,30245886,"2,737.76",Revenue,Peterborough Care  The Maltings,Residential Care
Peterborough City Council,Adults,Independent Sector Placements,Services,09/10/2019,30246585,"2,780.00",Revenue,PHILIA LODGE REST HOME,Residential Care
Peterborough City Council,Adults,Independent Sector Placements,Services,09/10/2019,30246587,"2,780.00",Revenue,PHILIA LODGE REST HOME,Residential Care
Peterborough City Council,Adults,Independent Sector Placements,Services,09/10/2019,30246589,"2,780.00",Revenue,PHILIA LODGE REST HOME,Residential Care
Peterborough City Council,Adults,Independent Sector Placements,Services,09/10/2019,30246591,"2,780.00",Revenue,PHILIA LODGE REST HOME,Residential Care
Peterborough City Council,Adults,Independent Sector Placements,Services,09/10/2019,30246592,"2,780.00",Revenue,PHILIA LODGE REST HOME,Residential Care
Peterborough City Council,Adults,Independent Sector Placements,Services,09/10/2019,30246301,"2,794.32",Revenue,Redacted Personal Data,Residential Care
Peterborough City Council,Adults,Independent Sector Placements,Services,09/10/2019,30245887,"2,835.54",Revenue,Peterborough Care  The Maltings,Residential Care
Peterborough City Council,Adults,Independent Sector Placements,Services,09/10/2019,30247299,"2,878.13",Revenue,THE HELPING HANDS GROUP,Daycare
Peterborough City Council,Adults,Independent Sector Placements,Services,09/10/2019,30246459,"3,065.60",Revenue,Redacted Personal Data,Residential Care
Peterborough City Council,Adults,Independent Sector Placements,Services,09/10/2019,30246425,"3,066.96",Revenue,HAZELWOOD LODGE LTD,Residential Care
Peterborough City Council,Adults,Independent Sector Placements,Services,09/10/2019,30246426,"3,066.96",Revenue,HAZELWOOD LODGE LTD,Residential Care
Peterborough City Council,Adults,Independent Sector Placements,Services,09/10/2019,30246427,"3,066.96",Revenue,HAZELWOOD LODGE LTD,Residential Care
Peterborough City Council,Adults,Independent Sector Placements,Services,09/10/2019,30246303,"3,103.92",Revenue,Redacted Personal Data,Residential Care
Peterborough City Council,Adults,Independent Sector Placements,Services,09/10/2019,30246452,"3,200.00",Revenue,Redacted Personal Data,Residential Care
Peterborough City Council,Adults,Independent Sector Placements,Services,09/10/2019,30246602,"3,233.44",Revenue,STAR RESIDENTIAL HOME LTD,Residential Care
Peterborough City Council,Adults,Independent Sector Placements,Services,09/10/2019,30246288,"3,300.00",Revenue,Avery House (Peterborough) t/a Brighterkind,Residential Care
Peterborough City Council,Adults,Independent Sector Placements,Services,09/10/2019,30246302,"3,625.08",Revenue,Redacted Personal Data,Residential Care
Peterborough City Council,Adults,Independent Sector Placements,Services,09/10/2019,30246300,"3,812.84",Revenue,Redacted Personal Data,Residential Care
Peterborough City Council,Adults,Independent Sector Placements,Services,09/10/2019,30246304,"4,288.00",Revenue,Redacted Personal Data,Residential Care
Peterborough City Council,Adults,Independent Sector Placements,Services,09/10/2019,30246461,"4,391.48",Revenue,Redacted Personal Data,Residential Care
Peterborough City Council,Adults,Independent Sector Placements,Services,09/10/2019,30246741,"4,391.80",Revenue,OAKFIELD (EASTON MAUDIT) LTD,Residential Care
Peterborough City Council,Adults,Independent Sector Placements,Services,09/10/2019,30246454,"4,904.00",Revenue,Redacted Personal Data,Residential Care
Peterborough City Council,Adults,Independent Sector Placements,Services,09/10/2019,30245829,"5,000.00",Revenue,Maxey House Res Home,Residential Care
Peterborough City Council,Adults,Independent Sector Placements,Services,09/10/2019,30246552,"5,234.63",Revenue,Redacted Personal Data,Residential Care
Peterborough City Council,Adults,Independent Sector Placements,Services,09/10/2019,30246917,"8,255.68",Revenue,NEW BOUNDARIES COMMUNITY SERVICES LTD,Residential Care
Peterborough City Council,Adults,Independent Sector Placements,Services,09/10/2019,30246774,"13,952.00",Revenue,Sense,Residential Care
Peterborough City Council,Legal Services,Legal Services,Grants and Subscriptions,09/10/2019,30246767,700,Revenue,Redacted Personal Data,Direct Payments
Peterborough City Council,Legal Services,Legal Services,Agency Staff,09/10/2019,30245979,862.02,Revenue,Venn Group Ltd,External Temporary Staff
Peterborough City Council,Legal Services,Legal Services,Services,09/10/2019,30244846,"1,020.00",Revenue,Redacted Personal Data,Legal Costs
Peterborough City Council,Legal Services,Legal Services,Agency Staff,09/10/2019,30246998,"1,555.09",Revenue,Reed Specialist Recruitment Limited,External Temporary Staff
Peterborough City Council,Legal Services,Legal Services,Agency Staff,09/10/2019,30247029,"1,636.56",Revenue,Reed Specialist Recruitment Limited,External Temporary Staff
Peterborough City Council,Legal Services,Legal Services,Agency Staff,09/10/2019,30245976,"1,683.00",Revenue,Venn Group Ltd,External Temporary Staff
Peterborough City Council,Legal Services,Legal Services,Agency Staff,09/10/2019,30245977,"1,771.74",Revenue,Venn Group Ltd,External Temporary Staff
Peterborough City Council,Legal Services,Legal Services,Agency Staff,09/10/2019,30247034,"1,772.75",Revenue,Reed Specialist Recruitment Limited,External Temporary Staff
Peterborough City Council,Legal Services,Legal Services,Agency Staff,09/10/2019,30247345,"1,772.75",Revenue,Reed Specialist Recruitment Limited,External Temporary Staff
Peterborough City Council,Legal Services,Legal Services,Services,09/10/2019,30246509,"1,950.00",Revenue,Redacted Personal Data,Legal Costs
Peterborough City Council,Legal Services,Legal Services,Agency Staff,09/10/2019,30247037,"2,025.38",Revenue,Reed Specialist Recruitment Limited,External Temporary Staff
Peterborough City Council,Legal Services,Legal Services,Agency Staff,09/10/2019,30245975,"2,062.50",Revenue,Venn Group Ltd,External Temporary Staff
Peterborough City Council,Legal Services,Legal Services,Services,09/10/2019,30245644,"2,880.00",Revenue,Redacted Personal Data,Legal Costs
Peterborough City Council,Legal Services,Legal Services,Services,09/10/2019,30246486,"3,503.50",Revenue,LMH Clinical Psychology Services,Jurors/Expert Witnesses
Peterborough City Council,City Centre Management,"Markets, Tourism & Events",Services,09/10/2019,30247052,565.72,Revenue,Reed Specialist Recruitment Limited,Consultants Fees
Peterborough City Council,City Centre Management,"Markets, Tourism & Events",Services,09/10/2019,30246996,"2,828.60",Revenue,Reed Specialist Recruitment Limited,Consultants Fees
Peterborough City Council,Adults,Mental Capacity Act & DoLs,Services,09/10/2019,30247159,965.84,Revenue,Redacted Personal Data,Financial Assistance
Peterborough City Council,Peterborough Highway Services,Network and Traffic Management,Services,09/10/2019,30245852,546.06,Revenue,JPIMedia Publishing Ltd,Advertising
Peterborough City Council,Peterborough Highway Services,Network and Traffic Management,Services,09/10/2019,30245846,632.22,Revenue,JPIMedia Publishing Ltd,Advertising
Peterborough City Council,Peterborough Highway Services,Network and Traffic Management,Services,09/10/2019,30245853,689.68,Revenue,JPIMedia Publishing Ltd,Advertising
Peterborough City Council,Peterborough Highway Services,Network and Traffic Management,Agency Staff,09/10/2019,30243913,"1,351.60",Revenue,Reed Specialist Recruitment Limited,External Temporary Staff
Peterborough City Council,Peterborough Highway Services,Network and Traffic Management,Agency Staff,09/10/2019,30246194,"1,351.60",Revenue,Reed Specialist Recruitment Limited,External Temporary Staff
Peterborough City Council,Communities,Parking Services,Services,09/10/2019,30246799,"3,944.64",Revenue,Flowbird Smart City UK Limited,Contractors
Peterborough City Council,Peterborough Serco Strategic Partnership,Peterborough Serco Strategic Partnership,Services,09/10/2019,30247018,"1,137.72",Revenue,Redacted Personal Data,Third Party Payments
Peterborough City Council,Public Health,PH Commissioning,Third Party Payments,09/10/2019,30245625,"2,609.25",Revenue,The Dales Trust T/A Dhiverse,Third Party Payments - Contract
Peterborough City Council,Public Health,PH Commissioning,Third Party Payments,09/10/2019,30247122,"3,335.83",Revenue,Solutions 4 Health Ltd,Third Party Payments - Contract
Peterborough City Council,Public Health,PH Commissioning,Third Party Payments,09/10/2019,30247122,"3,897.50",Revenue,Solutions 4 Health Ltd,Third Party Payments - Contract
Peterborough City Council,Public Health,PH Commissioning,Third Party Payments,09/10/2019,30247122,"6,027.17",Revenue,Solutions 4 Health Ltd,Third Party Payments - Contract
Peterborough City Council,Public Health,PH Commissioning,Third Party Payments,09/10/2019,30247122,"24,602.50",Revenue,Solutions 4 Health Ltd,Third Party Payments - Contract
Peterborough City Council,Public Health,PH Commissioning,Third Party Payments,09/10/2019,30247122,"24,954.04",Revenue,Solutions 4 Health Ltd,Third Party Payments - Contract
Peterborough City Council,Public Health,PH Commissioning,Third Party Payments,09/10/2019,30246707,"389,175.00",Revenue,Cambridgeshire Community Services,Third Party Payments - Contract
Peterborough City Council,Programme Management Office,Programme Management Office,Agency Staff,09/10/2019,30246179,701.8,Revenue,Reed Specialist Recruitment Limited,External Temporary Staff
Peterborough City Council,Programme Management Office,Programme Management Office,Agency Staff,09/10/2019,30246176,"1,426.51",Revenue,Reed Specialist Recruitment Limited,External Temporary Staff
Peterborough City Council,Programme Management Office,Programme Management Office,Agency Staff,09/10/2019,30247344,"1,426.51",Revenue,Reed Specialist Recruitment Limited,External Temporary Staff
Peterborough City Council,Programme Management Office,Programme Management Office,Agency Staff,09/10/2019,30246204,"1,788.86",Revenue,Reed Specialist Recruitment Limited,External Temporary Staff
Peterborough City Council,Programme Management Office,Programme Management Office,Agency Staff,09/10/2019,30247036,"1,788.86",Revenue,Reed Specialist Recruitment Limited,External Temporary Staff
Peterborough City Council,Programme Management Office,Programme Management Office,Agency Staff,09/10/2019,30246188,"4,768.72",Revenue,Reed Specialist Recruitment Limited,External Temporary Staff
Peterborough City Council,Programme Management Office,Programme Management Office,Agency Staff,09/10/2019,30246997,"4,768.72",Revenue,Reed Specialist Recruitment Limited,External Temporary Staff
Peterborough City Council,Peterborough Serco Strategic Partnership,PSSP Retained Services,Services,09/10/2019,30247405,"2,002.69",Revenue,Pitney Bowes Ltd,Postage
Peterborough City Council,Communities,Regulatory Services,Services,09/10/2019,30246806,"2,392.48",Revenue,Redacted Personal Data,Legal Costs
Peterborough City Council,Communities,Targeted Youth Service,Services,09/10/2019,30246805,"1,180.00",Revenue,Redacted Commercial Confidentiality,Financial Assistance
Peterborough City Council,Adults,Therapy/Reablement/Community Equipment,"Tools, Equipment, Furniture & Materials",09/10/2019,30246578,"1,136.66",Revenue,Sovereign Property Services Ltd,Occupational Therapy Equipment
Peterborough City Council,Peterborough Highway Services,Transport & Infrastructure Commissioning,Third Party Payments,09/10/2019,30246633,"1,136.50",Revenue,Royal Voluntary Service,Grant-Third Party
Peterborough City Council,Peterborough Highway Services,Transport & Infrastructure Commissioning,Services,09/10/2019,30246099,"1,937.89",Revenue,Redacted Commercial Confidentiality,Contractors
Peterborough City Council,Peterborough Highway Services,Transport & Infrastructure Commissioning,Services,09/10/2019,30246098,"6,170.08",Revenue,Redacted Commercial Confidentiality,Contractors
Peterborough City Council,"Waste, Cleansing and Open Spaces",Waste Management,Direct Transport Costs,09/10/2019,30247022,523.18,Revenue,Allstar Business Solutions Ltd.,Petrol
Peterborough City Council,"Waste, Cleansing and Open Spaces",Waste Management,Services,09/10/2019,30246258,"17,410.02",Revenue,AmeyCespa (East) Ltd,Recycling
Peterborough City Council,Westcombe Engineering,Westcombe Engineering,Services,09/10/2019,30245074,634.93,Revenue,Carillon Industrial Services Ltd,Materials
Peterborough City Council,Westcombe Engineering,Westcombe Engineering,Services,09/10/2019,30246804,985,Revenue,BSi Management Systems,Materials
Peterborough City Council,Commissioning and Commercial Operations,Access to Resources & Specialist Commissioning,Services,11/10/2019,30247463,"-19,107.90",Revenue,Glenholme Healthcare Limited,Taxes
Peterborough City Council,Commissioning and Commercial Operations,Access to Resources & Specialist Commissioning,Services,11/10/2019,30246947,"-1,168.00",Revenue,Fostering Solutions Limited,Boarding Out Fees
Peterborough City Council,Commissioning and Commercial Operations,Access to Resources & Specialist Commissioning,Services,11/10/2019,30245118,-934.4,Revenue,Fostering Solutions Limited,Boarding Out Fees
Peterborough City Council,Commissioning and Commercial Operations,Access to Resources & Specialist Commissioning,Services,11/10/2019,30245121,-934.4,Revenue,Fostering Solutions Limited,Boarding Out Fees
Peterborough City Council,Commissioning and Commercial Operations,Access to Resources & Specialist Commissioning,Services,11/10/2019,30245119,-915.68,Revenue,Fostering Solutions Limited,Boarding Out Fees
Peterborough City Council,Commissioning and Commercial Operations,Access to Resources & Specialist Commissioning,Services,11/10/2019,30231353,946.12,Revenue,Axiom Housing Association Ltd,Boarding Out Fees
Peterborough City Council,Commissioning and Commercial Operations,Access to Resources & Specialist Commissioning,Services,11/10/2019,30231354,946.12,Revenue,Axiom Housing Association Ltd,Boarding Out Fees
Peterborough City Council,Commissioning and Commercial Operations,Access to Resources & Specialist Commissioning,Services,11/10/2019,30236862,946.12,Revenue,Axiom Housing Association Ltd,Boarding Out Fees
Peterborough City Council,Commissioning and Commercial Operations,Access to Resources & Specialist Commissioning,Services,11/10/2019,30236988,946.12,Revenue,Axiom Housing Association Ltd,Boarding Out Fees
Peterborough City Council,Commissioning and Commercial Operations,Access to Resources & Specialist Commissioning,Services,11/10/2019,30245537,"1,222.21",Revenue,Fostering Solutions Limited,Boarding Out Fees
Peterborough City Council,Commissioning and Commercial Operations,Access to Resources & Specialist Commissioning,Services,11/10/2019,30246813,"1,861.92",Revenue,Banya Family Placement Agency,Boarding Out Fees
Peterborough City Council,Commissioning and Commercial Operations,Access to Resources & Specialist Commissioning,Services,11/10/2019,30245536,"2,170.56",Revenue,Fostering Solutions Limited,Boarding Out Fees
Peterborough City Council,Commissioning and Commercial Operations,Access to Resources & Specialist Commissioning,Services,11/10/2019,30245933,"2,628.54",Revenue,Futures For Children,Boarding Out Fees
Peterborough City Council,Commissioning and Commercial Operations,Access to Resources & Specialist Commissioning,Services,11/10/2019,30246516,"2,662.44",Revenue,Orange Grove Fostercare Ltd,Boarding Out Fees
Peterborough City Council,Commissioning and Commercial Operations,Access to Resources & Specialist Commissioning,Services,11/10/2019,30245531,"2,768.49",Revenue,Fostering Solutions Limited,Boarding Out Fees
Peterborough City Council,Commissioning and Commercial Operations,Access to Resources & Specialist Commissioning,Services,11/10/2019,30244557,"2,931.86",Revenue,IAS TACT,Boarding Out Fees
Peterborough City Council,Commissioning and Commercial Operations,Access to Resources & Specialist Commissioning,Services,11/10/2019,30246125,"3,012.90",Revenue,Foster Care Associates Ltd FCA,Boarding Out Fees
Peterborough City Council,Commissioning and Commercial Operations,Access to Resources & Specialist Commissioning,Services,11/10/2019,30246120,"3,099.00",Revenue,Foster Care Associates Ltd FCA,Boarding Out Fees
Peterborough City Council,Commissioning and Commercial Operations,Access to Resources & Specialist Commissioning,Services,11/10/2019,30247112,"3,133.85",Revenue,Compass Fostering Central Limited,Boarding Out Fees
Peterborough City Council,Commissioning and Commercial Operations,Access to Resources & Specialist Commissioning,Services,11/10/2019,30246122,"3,195.00",Revenue,Foster Care Associates Ltd FCA,Boarding Out Fees
Peterborough City Council,Commissioning and Commercial Operations,Access to Resources & Specialist Commissioning,Services,11/10/2019,30247109,"3,214.20",Revenue,Compass Fostering Central Limited,Boarding Out Fees
Peterborough City Council,Commissioning and Commercial Operations,Access to Resources & Specialist Commissioning,Services,11/10/2019,30247111,"3,240.00",Revenue,Compass Fostering Central Limited,Boarding Out Fees
Peterborough City Council,Commissioning and Commercial Operations,Access to Resources & Specialist Commissioning,Services,11/10/2019,30247108,"3,360.00",Revenue,Compass Fostering Central Limited,Boarding Out Fees
Peterborough City Council,Commissioning and Commercial Operations,Access to Resources & Specialist Commissioning,Services,11/10/2019,30246935,"3,381.43",Revenue,Fostering Innovations Ltd,Boarding Out Fees
Peterborough City Council,Commissioning and Commercial Operations,Access to Resources & Specialist Commissioning,Services,11/10/2019,30245545,"3,385.80",Revenue,Fostering Solutions Limited,Boarding Out Fees
Peterborough City Council,Commissioning and Commercial Operations,Access to Resources & Specialist Commissioning,Services,11/10/2019,30245533,"3,427.20",Revenue,Fostering Solutions Limited,Boarding Out Fees
Peterborough City Council,Commissioning and Commercial Operations,Access to Resources & Specialist Commissioning,Services,11/10/2019,30245534,"3,427.20",Revenue,Fostering Solutions Limited,Boarding Out Fees
Peterborough City Council,Commissioning and Commercial Operations,Access to Resources & Specialist Commissioning,Services,11/10/2019,30245549,"3,427.20",Revenue,Fostering Solutions Limited,Boarding Out Fees
Peterborough City Council,Commissioning and Commercial Operations,Access to Resources & Specialist Commissioning,Services,11/10/2019,30245540,"3,433.80",Revenue,Fostering Solutions Limited,Boarding Out Fees
Peterborough City Council,Commissioning and Commercial Operations,Access to Resources & Specialist Commissioning,Services,11/10/2019,30245550,"3,433.80",Revenue,Fostering Solutions Limited,Boarding Out Fees
Peterborough City Council,Commissioning and Commercial Operations,Access to Resources & Specialist Commissioning,Services,11/10/2019,30246121,"3,441.30",Revenue,Foster Care Associates Ltd FCA,Boarding Out Fees
Peterborough City Council,Commissioning and Commercial Operations,Access to Resources & Specialist Commissioning,Services,11/10/2019,30246126,"3,441.30",Revenue,Foster Care Associates Ltd FCA,Boarding Out Fees
Peterborough City Council,Commissioning and Commercial Operations,Access to Resources & Specialist Commissioning,Services,11/10/2019,30245532,"3,492.90",Revenue,Fostering Solutions Limited,Boarding Out Fees
Peterborough City Council,Commissioning and Commercial Operations,Access to Resources & Specialist Commissioning,Services,11/10/2019,30245543,"3,504.00",Revenue,Fostering Solutions Limited,Boarding Out Fees
Peterborough City Council,Commissioning and Commercial Operations,Access to Resources & Specialist Commissioning,Services,11/10/2019,30245546,"3,504.00",Revenue,Fostering Solutions Limited,Boarding Out Fees
Peterborough City Council,Commissioning and Commercial Operations,Access to Resources & Specialist Commissioning,Services,11/10/2019,30245548,"3,504.00",Revenue,Fostering Solutions Limited,Boarding Out Fees
Peterborough City Council,Commissioning and Commercial Operations,Access to Resources & Specialist Commissioning,Services,11/10/2019,30245992,"3,508.50",Revenue,Nexus Fostering Ltd,Boarding Out Fees
Peterborough City Council,Commissioning and Commercial Operations,Access to Resources & Specialist Commissioning,Services,11/10/2019,30246127,"3,509.70",Revenue,Foster Care Associates Ltd FCA,Boarding Out Fees
Peterborough City Council,Commissioning and Commercial Operations,Access to Resources & Specialist Commissioning,Services,11/10/2019,30246814,"3,607.47",Revenue,Banya Family Placement Agency,Boarding Out Fees
Peterborough City Council,Commissioning and Commercial Operations,Access to Resources & Specialist Commissioning,Services,11/10/2019,30245999,"3,693.00",Revenue,Nexus Fostering Ltd,Boarding Out Fees
Peterborough City Council,Commissioning and Commercial Operations,Access to Resources & Specialist Commissioning,Services,11/10/2019,30245541,"3,882.56",Revenue,Fostering Solutions Limited,Boarding Out Fees
Peterborough City Council,Commissioning and Commercial Operations,Access to Resources & Specialist Commissioning,Services,11/10/2019,30245551,"3,882.56",Revenue,Fostering Solutions Limited,Boarding Out Fees
Peterborough City Council,Commissioning and Commercial Operations,Access to Resources & Specialist Commissioning,Services,11/10/2019,30246124,"4,111.83",Revenue,Foster Care Associates Ltd FCA,Boarding Out Fees
Peterborough City Council,Commissioning and Commercial Operations,Access to Resources & Specialist Commissioning,Services,11/10/2019,30246128,"4,154.22",Revenue,Foster Care Associates Ltd FCA,Boarding Out Fees
Peterborough City Council,Commissioning and Commercial Operations,Access to Resources & Specialist Commissioning,Services,11/10/2019,30246123,"4,239.00",Revenue,Foster Care Associates Ltd FCA,Boarding Out Fees
Peterborough City Council,Commissioning and Commercial Operations,Access to Resources & Specialist Commissioning,Services,11/10/2019,30245989,"4,884.00",Revenue,Nexus Fostering Ltd,Boarding Out Fees
Peterborough City Council,Commissioning and Commercial Operations,Access to Resources & Specialist Commissioning,Services,11/10/2019,30247465,"4,991.25",Revenue,Glenholme Healthcare Limited,Boarding Out Fees
Peterborough City Council,Commissioning and Commercial Operations,Access to Resources & Specialist Commissioning,Services,11/10/2019,30245991,"5,562.60",Revenue,Nexus Fostering Ltd,Boarding Out Fees
Peterborough City Council,Commissioning and Commercial Operations,Access to Resources & Specialist Commissioning,Services,11/10/2019,30245462,"5,562.90",Revenue,I S P,Boarding Out Fees
Peterborough City Council,Commissioning and Commercial Operations,Access to Resources & Specialist Commissioning,Services,11/10/2019,30245547,"5,815.80",Revenue,Fostering Solutions Limited,Boarding Out Fees
Peterborough City Council,Commissioning and Commercial Operations,Access to Resources & Specialist Commissioning,Services,11/10/2019,30246913,"6,950.00",Revenue,The Cambridge Housing Society Limited,Boarding Out Fees
Peterborough City Council,Commissioning and Commercial Operations,Access to Resources & Specialist Commissioning,Services,11/10/2019,30247466,"8,421.00",Revenue,Glenholme Healthcare Limited,Boarding Out Fees
Peterborough City Council,Commissioning and Commercial Operations,Access to Resources & Specialist Commissioning,Services,11/10/2019,30246727,"13,050.00",Revenue,Sixteen Plus Limited,Boarding Out Fees
Peterborough City Council,Commissioning and Commercial Operations,Access to Resources & Specialist Commissioning,Services,11/10/2019,30245566,"14,797.20",Revenue,Windows for Children,Boarding Out Fees
Peterborough City Council,Commissioning and Commercial Operations,Access to Resources & Specialist Commissioning,Services,11/10/2019,30247464,"19,107.90",Revenue,Glenholme Healthcare Limited,Boarding Out Fees
Peterborough City Council,"Cemeteries, Cremation & Registrars",Bereavement Service,Energy Costs,11/10/2019,30247826,"2,055.97",Revenue,EDF Energy Networks Ltd,Electricity
Peterborough City Council,Adults,Block Contracts,Third Party Payments,11/10/2019,30247780,"4,836.07",Revenue,Deafblind Uk Trading Ltd,Third Party Payments - Contract
Peterborough City Council,Adults,Block Contracts,Third Party Payments,11/10/2019,30247781,"4,836.07",Revenue,Deafblind Uk Trading Ltd,Third Party Payments - Contract
Peterborough City Council,Adults,Block Contracts,Third Party Payments,11/10/2019,30247782,"4,836.07",Revenue,Deafblind Uk Trading Ltd,Third Party Payments - Contract
Peterborough City Council,Adults,Block Contracts,Third Party Payments,11/10/2019,30247784,"4,836.07",Revenue,Deafblind Uk Trading Ltd,Third Party Payments - Contract
Peterborough City Council,Adults,Block Contracts,Third Party Payments,11/10/2019,30243285,"6,020.64",Revenue,Axiom Housing Association Ltd,Third Party Payments - Contract
Peterborough City Council,Commissioning and Commercial Operations,Clare Lodge,Agency Staff,11/10/2019,30246995,510.12,Revenue,Reed Specialist Recruitment Limited,External Temporary Staff
Peterborough City Council,Commissioning and Commercial Operations,Clare Lodge,Agency Staff,11/10/2019,30246970,650,Revenue,Reed Specialist Recruitment Limited,Supply Teachers
Peterborough City Council,Commissioning and Commercial Operations,Clare Lodge,Agency Staff,11/10/2019,30247368,650,Revenue,Reed Specialist Recruitment Limited,Supply Teachers
Peterborough City Council,Commissioning and Commercial Operations,Clare Lodge,Agency Staff,11/10/2019,30247086,825.81,Revenue,Reed Specialist Recruitment Limited,External Temporary Staff
Peterborough City Council,Commissioning and Commercial Operations,Clare Lodge,Energy Costs,11/10/2019,30247826,"6,593.73",Revenue,EDF Energy Networks Ltd,Electricity
Peterborough City Council,Corporate Property,Commercial Propety,Services,11/10/2019,30247187,547.45,Revenue,The K A Wing Group Ltd,Licences
Peterborough City Council,Corporate Property,Commercial Propety,Energy Costs,11/10/2019,30247823,853.89,Revenue,EDF Energy Networks Ltd,Electricity
Peterborough City Council,Corporate Property,Commercial Propety,Energy Costs,11/10/2019,30247349,"5,480.78",Revenue,EDF Energy Networks Ltd,Electricity
Peterborough City Council,Corporate Property,Commercial Propety,Services,11/10/2019,30247800,"13,500.00",Revenue,Rainbow Savers Anglia Credit Union Ltd,Third Party Payments
Peterborough City Council,Corporate Property,Commercial Propety,Services,11/10/2019,30247383,"100,000.00",Revenue,Redacted Personal Data,Third Party Payments
Peterborough City Council,Corporate,Corporate,Non Revenue,11/10/2019,30247346,"1,035.00",Capital,Sibcas Ltd,Building And Site Works
Peterborough City Council,Corporate,Corporate,Non Revenue,11/10/2019,30247336,"4,175.65",Capital,MORLEY BUILDING SERVICES LTD,Grant Payment
Peterborough City Council,Corporate,Corporate,Non Revenue,11/10/2019,30247332,"4,627.60",Capital,MORLEY BUILDING SERVICES LTD,Grant Payment
Peterborough City Council,Corporate,Corporate,Non Revenue,11/10/2019,30247329,"5,662.60",Capital,MORLEY BUILDING SERVICES LTD,Grant Payment
Peterborough City Council,Corporate,Corporate,Non Revenue,11/10/2019,30247365,"5,830.00",Capital,Gaswise Services Ltd,Grant Payment
Peterborough City Council,Corporate,Corporate,Non Revenue,11/10/2019,30247352,"6,645.85",Capital,MORLEY BUILDING SERVICES LTD,Grant Payment
Peterborough City Council,Corporate,Corporate,Non Revenue,11/10/2019,30247333,"7,788.95",Capital,Casbon Building Services,Grant Payment
Peterborough City Council,Corporate,Corporate,Non Revenue,11/10/2019,30241926,"8,719.36",Capital,Jeakins Weir Ltd,Building And Site Works
Peterborough City Council,Corporate,Corporate,Non Revenue,11/10/2019,30247216,"75,225.20",Capital,Jeakins Weir Ltd,Building And Site Works
Peterborough City Council,Communities,Cultural Services,Energy Costs,11/10/2019,30247823,"1,416.69",Revenue,EDF Energy Networks Ltd,Electricity
Peterborough City Council,Communities,Cultural Services,Energy Costs,11/10/2019,30247349,"1,457.79",Revenue,EDF Energy Networks Ltd,Electricity
Peterborough City Council,Communities,Cultural Services,Energy Costs,11/10/2019,30247354,"3,706.16",Revenue,EDF Energy Networks Ltd,Electricity
Peterborough City Council,Communities,Cultural Services,Energy Costs,11/10/2019,30247823,"3,814.21",Revenue,EDF Energy Networks Ltd,Electricity
Peterborough City Council,Communities,Cultural Services,Energy Costs,11/10/2019,30247823,"4,564.03",Revenue,EDF Energy Networks Ltd,Electricity
Peterborough City Council,Communities,Cultural Services,Energy Costs,11/10/2019,30247349,"7,373.93",Revenue,EDF Energy Networks Ltd,Electricity
Peterborough City Council,Children's & Safeguarding,Early Help ASC/CSC,Agency Staff,11/10/2019,30247351,569.83,Revenue,Reed Specialist Recruitment Limited,External Temporary Staff
Peterborough City Council,Education,Early Years & Quality Improvement,Services,11/10/2019,30247389,576.71,Revenue,Redacted Personal Data,Grant Payment
Peterborough City Council,Financial Services,Finance,Agency Staff,11/10/2019,30247069,681.17,Revenue,Reed Specialist Recruitment Limited,External Temporary Staff
Peterborough City Council,"Director, OP & JV",Growth HoS,Services,11/10/2019,30247410,"1,858,236.84",Revenue,Skanska Construction UK Ltd,Materials
Peterborough City Council,Adults,Home Services Delivery Model,Customer and client receipts - Fees & Charges,11/10/2019,30247333,"-1,015.95",Revenue,Casbon Building Services,Grant Payment
Peterborough City Council,Adults,Home Services Delivery Model,Customer and client receipts - Fees & Charges,11/10/2019,30247352,-866.85,Revenue,MORLEY BUILDING SERVICES LTD,Grant Payment
Peterborough City Council,Adults,Home Services Delivery Model,Customer and client receipts - Fees & Charges,11/10/2019,30247329,-738.6,Revenue,MORLEY BUILDING SERVICES LTD,Grant Payment
Peterborough City Council,Adults,Home Services Delivery Model,Customer and client receipts - Fees & Charges,11/10/2019,30247332,-603.6,Revenue,MORLEY BUILDING SERVICES LTD,Grant Payment
Peterborough City Council,Adults,Home Services Delivery Model,Customer and client receipts - Fees & Charges,11/10/2019,30247336,-544.65,Revenue,MORLEY BUILDING SERVICES LTD,Grant Payment
Peterborough City Council,Adults,Home Services Delivery Model,Third Party Payments,11/10/2019,30247796,"8,259.09",Revenue,Cross Keys Homes,Grant-Third Party
Peterborough City Council,Communities,Housing,Services,11/10/2019,30246614,528,Revenue,Sarah Tams Law,Financial Assistance
Peterborough City Council,Communities,Housing,Services,11/10/2019,30246539,650,Revenue,AGT Property Managment Ltd,Financial Assistance
Peterborough City Council,Communities,Housing,Services,11/10/2019,30247394,700,Revenue,Cozy Lettings Ltd,Financial Assistance
Peterborough City Council,Communities,Housing,Services,11/10/2019,30246309,750,Revenue,Cozy Lettings Ltd,Financial Assistance
Peterborough City Council,Communities,Housing,Services,11/10/2019,30246538,923.39,Revenue,Hyde Housing Association,Financial Assistance
Peterborough City Council,Communities,Housing,Services,11/10/2019,30246540,"1,008.85",Revenue,Haart Lettings,Financial Assistance
Peterborough City Council,Communities,Housing,Services,11/10/2019,30246545,"1,040.88",Revenue,Hyde Housing Association,Financial Assistance
Peterborough City Council,Communities,Housing,Services,11/10/2019,30246543,"1,500.00",Revenue,Hyde Housing Association,Financial Assistance
Peterborough City Council,Communities,Housing,Services,11/10/2019,30247008,"3,994.26",Revenue,Woodcock Holmes,Financial Assistance
Peterborough City Council,Communities,Housing,Services,11/10/2019,30245351,"5,000.00",Revenue,Cross Keys Homes,Financial Assistance
Peterborough City Council,Communities,Housing,Services,11/10/2019,30245353,"5,000.00",Revenue,Cross Keys Homes,Financial Assistance
Peterborough City Council,Communities,Housing,Services,11/10/2019,30246984,"36,386.00",Revenue,Stef & Philips Ltd,Temporary Accommodation Costs
Peterborough City Council,Communities,Housing Enforcement,Customer and client receipts - Fees & Charges,11/10/2019,30246630,600,Revenue,Garfield Properties Ltd,Sale Of Licenses
Peterborough City Council,ICT,ICT,Services,11/10/2019,30247689,"6,868.63",Revenue,Capita Business Services Ltd,Computer Software
Peterborough City Council,Adults,Independent Sector Placements,Services,11/10/2019,30247458,"-1,286.93",Revenue,Park Vista Care Home,Residential Care
Peterborough City Council,Adults,Independent Sector Placements,Services,11/10/2019,30247567,-919.52,Revenue,Park Vista Care Home,Residential Care
Peterborough City Council,Adults,Independent Sector Placements,Services,11/10/2019,8000152662,-527.5,Revenue,Redacted Personal Data,Contributions
Peterborough City Council,Adults,Independent Sector Placements,Services,11/10/2019,30247563,510.58,Revenue,Sense,Daycare
Peterborough City Council,Adults,Independent Sector Placements,Services,11/10/2019,30247562,558.28,Revenue,Park Vista Care Home,Residential Care
Peterborough City Council,Adults,Independent Sector Placements,Services,11/10/2019,30247672,577.2,Revenue,Mencap,Home Care
Peterborough City Council,Adults,Independent Sector Placements,Services,11/10/2019,8000150894,630.44,Revenue,Augusta Care Ltd,Home Care
Peterborough City Council,Adults,Independent Sector Placements,Services,11/10/2019,8000150847,681.6,Revenue,Augusta Care Ltd,Home Care
Peterborough City Council,Adults,Independent Sector Placements,Services,11/10/2019,8000152656,691.57,Revenue,Redacted Personal Data,Direct Payments
Peterborough City Council,Adults,Independent Sector Placements,Services,11/10/2019,8000152666,764.1,Revenue,Redacted Personal Data,Direct Payments
Peterborough City Council,Adults,Independent Sector Placements,Services,11/10/2019,30247671,769.6,Revenue,Mencap,Home Care
Peterborough City Council,Adults,Independent Sector Placements,Services,11/10/2019,30247596,900,Revenue,Mencap,Home Care
Peterborough City Council,Adults,Independent Sector Placements,Services,11/10/2019,30247434,908.47,Revenue,Peterborough Care  The Maltings,Residential Care
Peterborough City Council,Adults,Independent Sector Placements,Services,11/10/2019,8000150881,908.8,Revenue,Augusta Care Ltd,Home Care
Peterborough City Council,Adults,Independent Sector Placements,Services,11/10/2019,30247561,919.52,Revenue,Park Vista Care Home,Residential Care
Peterborough City Council,Adults,Independent Sector Placements,Services,11/10/2019,8000150848,932.76,Revenue,Augusta Care Ltd,Home Care
Peterborough City Council,Adults,Independent Sector Placements,Services,11/10/2019,8000152669,"1,033.20",Revenue,Redacted Personal Data,Direct Payments
Peterborough City Council,Adults,Independent Sector Placements,Services,11/10/2019,8000150872,"1,178.60",Revenue,Augusta Care Ltd,Home Care
Peterborough City Council,Adults,Independent Sector Placements,Services,11/10/2019,8000151228,"1,192.80",Revenue,Augusta Care Ltd,Home Care
Peterborough City Council,Adults,Independent Sector Placements,Services,11/10/2019,8000152674,"1,215.42",Revenue,Redacted Personal Data,Direct Payments
Peterborough City Council,Adults,Independent Sector Placements,Services,11/10/2019,8000150870,"1,253.40",Revenue,Augusta Care Ltd,Home Care
Peterborough City Council,Adults,Independent Sector Placements,Services,11/10/2019,30247456,"1,265.68",Revenue,Park Vista Care Home,Residential Care
Peterborough City Council,Adults,Independent Sector Placements,Services,11/10/2019,30247459,"1,265.68",Revenue,Park Vista Care Home,Residential Care
Peterborough City Council,Adults,Independent Sector Placements,Services,11/10/2019,30247457,"1,286.93",Revenue,Park Vista Care Home,Residential Care
Peterborough City Council,Adults,Independent Sector Placements,Services,11/10/2019,30247558,"1,394.00",Revenue,Park Vista Care Home,Residential Care
Peterborough City Council,Adults,Independent Sector Placements,Services,11/10/2019,30247559,"1,394.00",Revenue,Park Vista Care Home,Residential Care
Peterborough City Council,Adults,Independent Sector Placements,Services,11/10/2019,30247560,"1,394.00",Revenue,Park Vista Care Home,Residential Care
Peterborough City Council,Adults,Independent Sector Placements,Services,11/10/2019,8000150852,"1,400.12",Revenue,Augusta Care Ltd,Home Care
Peterborough City Council,Adults,Independent Sector Placements,Services,11/10/2019,8000152663,"1,499.74",Revenue,Redacted Personal Data,Direct Payments
Peterborough City Council,Adults,Independent Sector Placements,Services,11/10/2019,8000150853,"1,513.72",Revenue,Augusta Care Ltd,Home Care
Peterborough City Council,Adults,Independent Sector Placements,Services,11/10/2019,8000150871,"1,521.20",Revenue,Augusta Care Ltd,Home Care
Peterborough City Council,Adults,Independent Sector Placements,Services,11/10/2019,8000150862,"1,590.40",Revenue,Augusta Care Ltd,Home Care
Peterborough City Council,Adults,Independent Sector Placements,Services,11/10/2019,8000150863,"1,590.40",Revenue,Augusta Care Ltd,Home Care
Peterborough City Council,Adults,Independent Sector Placements,Services,11/10/2019,8000150877,"1,604.60",Revenue,Augusta Care Ltd,Home Care
Peterborough City Council,Adults,Independent Sector Placements,Services,11/10/2019,8000150883,"1,628.24",Revenue,Augusta Care Ltd,Home Care
Peterborough City Council,Adults,Independent Sector Placements,Services,11/10/2019,8000150843,"1,681.92",Revenue,Augusta Care Ltd,Home Care
Peterborough City Council,Adults,Independent Sector Placements,Services,11/10/2019,8000150885,"1,798.68",Revenue,Augusta Care Ltd,Home Care
Peterborough City Council,Adults,Independent Sector Placements,Services,11/10/2019,30247455,"2,000.00",Revenue,Goldcare Homes t/a The Tudors Care Home,Respite Care
Peterborough City Council,Adults,Independent Sector Placements,Services,11/10/2019,30246946,"2,139.24",Revenue,HC-One Beamish Limited - St Clares Court,Residential Care
Peterborough City Council,Adults,Independent Sector Placements,Services,11/10/2019,8000150884,"2,139.44",Revenue,Augusta Care Ltd,Home Care
Peterborough City Council,Adults,Independent Sector Placements,Services,11/10/2019,8000150891,"2,173.16",Revenue,Augusta Care Ltd,Home Care
Peterborough City Council,Adults,Independent Sector Placements,Services,11/10/2019,30247432,"2,225.99",Revenue,Peterborough Care  The Maltings,Residential Care
Peterborough City Council,Adults,Independent Sector Placements,Services,11/10/2019,8000150860,"2,234.08",Revenue,Augusta Care Ltd,Home Care
Peterborough City Council,Adults,Independent Sector Placements,Services,11/10/2019,8000150887,"2,234.12",Revenue,Augusta Care Ltd,Home Care
Peterborough City Council,Adults,Independent Sector Placements,Services,11/10/2019,30244263,"2,285.40",Revenue,Augusta Care Ltd,Home Care
Peterborough City Council,Adults,Independent Sector Placements,Services,11/10/2019,30247553,"2,342.42",Revenue,Park Vista Care Home,Residential Care
Peterborough City Council,Adults,Independent Sector Placements,Services,11/10/2019,8000150889,"2,343.00",Revenue,Augusta Care Ltd,Home Care
Peterborough City Council,Adults,Independent Sector Placements,Services,11/10/2019,8000150888,"2,399.76",Revenue,Augusta Care Ltd,Home Care
Peterborough City Council,Adults,Independent Sector Placements,Services,11/10/2019,30247460,"2,400.00",Revenue,Park Vista Care Home,Respite Care
Peterborough City Council,Adults,Independent Sector Placements,Services,11/10/2019,30247565,"2,400.00",Revenue,Park Vista Care Home,Respite Care
Peterborough City Council,Adults,Independent Sector Placements,Services,11/10/2019,8000150867,"2,406.56",Revenue,Augusta Care Ltd,Home Care
Peterborough City Council,Adults,Independent Sector Placements,Services,11/10/2019,30247433,"2,553.80",Revenue,Peterborough Care  The Maltings,Residential Care
Peterborough City Council,Adults,Independent Sector Placements,Services,11/10/2019,8000150890,"2,683.80",Revenue,Augusta Care Ltd,Home Care
Peterborough City Council,Adults,Independent Sector Placements,Services,11/10/2019,8000150886,"2,688.20",Revenue,Augusta Care Ltd,Home Care
Peterborough City Council,Adults,Independent Sector Placements,Services,11/10/2019,8000152673,"2,714.13",Revenue,Redacted Personal Data,Direct Payments
Peterborough City Council,Adults,Independent Sector Placements,Services,11/10/2019,8000150893,"2,740.60",Revenue,Augusta Care Ltd,Home Care
Peterborough City Council,Adults,Independent Sector Placements,Services,11/10/2019,30247454,"2,762.48",Revenue,Multi-Care Community Services Ltd,Home Care
Peterborough City Council,Adults,Independent Sector Placements,Services,11/10/2019,8000150879,"2,825.80",Revenue,Augusta Care Ltd,Home Care
Peterborough City Council,Adults,Independent Sector Placements,Services,11/10/2019,8000150844,"2,837.08",Revenue,Augusta Care Ltd,Home Care
Peterborough City Council,Adults,Independent Sector Placements,Services,11/10/2019,30244270,"2,837.52",Revenue,Augusta Care Ltd,Home Care
Peterborough City Council,Adults,Independent Sector Placements,Services,11/10/2019,8000150854,"2,862.72",Revenue,Augusta Care Ltd,Home Care
Peterborough City Council,Adults,Independent Sector Placements,Services,11/10/2019,8000152672,"2,862.72",Revenue,Redacted Personal Data,Direct Payments
Peterborough City Council,Adults,Independent Sector Placements,Services,11/10/2019,8000150851,"2,964.08",Revenue,Augusta Care Ltd,Home Care
Peterborough City Council,Adults,Independent Sector Placements,Services,11/10/2019,8000152670,"3,110.58",Revenue,Redacted Personal Data,Direct Payments
Peterborough City Council,Adults,Independent Sector Placements,Services,11/10/2019,8000150892,"3,280.20",Revenue,Augusta Care Ltd,Home Care
Peterborough City Council,Adults,Independent Sector Placements,Services,11/10/2019,30247359,"3,340.36",Revenue,Longueville Court (Barchester),Residential Care
Peterborough City Council,Adults,Independent Sector Placements,Services,11/10/2019,8000150878,"3,592.60",Revenue,Augusta Care Ltd,Home Care
Peterborough City Council,Adults,Independent Sector Placements,Services,11/10/2019,8000150875,"3,597.24",Revenue,Augusta Care Ltd,Home Care
Peterborough City Council,Adults,Independent Sector Placements,Services,11/10/2019,30247357,"3,616.16",Revenue,Longueville Court (Barchester),Residential Care
Peterborough City Council,Adults,Independent Sector Placements,Services,11/10/2019,8000150857,"3,669.92",Revenue,Augusta Care Ltd,Home Care
Peterborough City Council,Adults,Independent Sector Placements,Services,11/10/2019,30247358,"3,690.16",Revenue,Longueville Court (Barchester),Residential Care
Peterborough City Council,Adults,Independent Sector Placements,Services,11/10/2019,30247431,"3,894.94",Revenue,Peterborough Care  The Maltings,Residential Care
Peterborough City Council,Adults,Independent Sector Placements,Services,11/10/2019,8000150850,"4,100.08",Revenue,Augusta Care Ltd,Home Care
Peterborough City Council,Adults,Independent Sector Placements,Services,11/10/2019,8000150845,"4,115.08",Revenue,Augusta Care Ltd,Home Care
Peterborough City Council,Adults,Independent Sector Placements,Services,11/10/2019,8000150855,"4,218.16",Revenue,Augusta Care Ltd,Home Care
Peterborough City Council,Adults,Independent Sector Placements,Services,11/10/2019,8000150864,"4,367.64",Revenue,Augusta Care Ltd,Home Care
Peterborough City Council,Adults,Independent Sector Placements,Services,11/10/2019,8000150865,"4,367.64",Revenue,Augusta Care Ltd,Home Care
Peterborough City Council,Adults,Independent Sector Placements,Services,11/10/2019,8000150858,"4,710.68",Revenue,Augusta Care Ltd,Home Care
Peterborough City Council,Adults,Independent Sector Placements,Services,11/10/2019,8000152662,"4,715.12",Revenue,Redacted Personal Data,Direct Payments
Peterborough City Council,Adults,Independent Sector Placements,Services,11/10/2019,8000150856,"4,843.00",Revenue,Augusta Care Ltd,Home Care
Peterborough City Council,Adults,Independent Sector Placements,Services,11/10/2019,8000150859,"4,881.08",Revenue,Augusta Care Ltd,Home Care
Peterborough City Council,Adults,Independent Sector Placements,Services,11/10/2019,8000150868,"5,014.88",Revenue,Augusta Care Ltd,Home Care
Peterborough City Council,Adults,Independent Sector Placements,Services,11/10/2019,30246446,"5,079.36",Revenue,LEONARD CHESHIRE DISABILITY,Residential Care
Peterborough City Council,Adults,Independent Sector Placements,Services,11/10/2019,30244272,"5,109.52",Revenue,Augusta Care Ltd,Home Care
Peterborough City Council,Adults,Independent Sector Placements,Services,11/10/2019,8000152459,"5,157.50",Revenue,Caring Crew Ltd,Home Care
Peterborough City Council,Adults,Independent Sector Placements,Services,11/10/2019,30247414,"5,309.96",Revenue,Longueville Court (Barchester),Residential Care
Peterborough City Council,Adults,Independent Sector Placements,Services,11/10/2019,30244268,"6,548.24",Revenue,Augusta Care Ltd,Home Care
Peterborough City Council,Adults,Independent Sector Placements,Services,11/10/2019,8000150849,"6,614.72",Revenue,Augusta Care Ltd,Home Care
Peterborough City Council,Adults,Independent Sector Placements,Services,11/10/2019,8000150861,"6,838.44",Revenue,Augusta Care Ltd,Home Care
Peterborough City Council,Adults,Independent Sector Placements,Services,11/10/2019,30247436,"7,435.80",Revenue,Peterborough Care  The Maltings,Residential Care
Peterborough City Council,Adults,Independent Sector Placements,Services,11/10/2019,8000150873,"7,916.16",Revenue,Augusta Care Ltd,Home Care
Peterborough City Council,Adults,Independent Sector Placements,Services,11/10/2019,8000150882,"8,110.48",Revenue,Augusta Care Ltd,Home Care
Peterborough City Council,Adults,Independent Sector Placements,Services,11/10/2019,8000152657,"8,442.56",Revenue,Redacted Personal Data,Direct Payments
Peterborough City Council,Adults,Independent Sector Placements,Services,11/10/2019,8000150876,"11,132.80",Revenue,Augusta Care Ltd,Home Care
Peterborough City Council,Adults,Independent Sector Placements,Services,11/10/2019,8000150880,"17,774.40",Revenue,Augusta Care Ltd,Home Care
Peterborough City Council,Adults,Independent Sector Placements,Services,11/10/2019,30247435,"18,404.12",Revenue,Peterborough Care  The Maltings,Residential Care
Peterborough City Council,Financial Services,Insurance,Premises Insurances,11/10/2019,30246912,"2,520.00",Revenue,JLT speciality Ltd,Insurance Premiums
Peterborough City Council,City Centre Management,"Markets, Tourism & Events",Energy Costs,11/10/2019,30247354,"1,195.49",Revenue,EDF Energy Networks Ltd,Electricity
Peterborough City Council,Corporate Property,Office Accomodation,Repair & Maintenance of Buildings,11/10/2019,30247215,"1,670.00",Revenue,T Clarke Contracting Ltd,Maintenance
Peterborough City Council,Corporate Property,Office Accomodation,Energy Costs,11/10/2019,30247349,"4,416.36",Revenue,EDF Energy Networks Ltd,Electricity
Peterborough City Council,Corporate Property,Office Accomodation,Energy Costs,11/10/2019,30247354,"14,620.09",Revenue,EDF Energy Networks Ltd,Electricity
Peterborough City Council,Adults,OP/PD/SI,"Tools, Equipment, Furniture & Materials",11/10/2019,30246470,"113,852.90",Revenue,NRS Healthcare,Occupational Therapy Equipment
Peterborough City Council,Public Health,PH Commissioning,Third Party Payments,11/10/2019,30247367,"2,172.00",Revenue,Boroughbury Medical Centre,Third Party Payments - Contract
Peterborough City Council,Public Health,PH Commissioning,Third Party Payments,11/10/2019,30247366,"5,680.86",Revenue,Boroughbury Medical Centre,Third Party Payments - Contract
Peterborough City Council,Peterborough Serco Strategic Partnership,PSSP Retained Services,Services,11/10/2019,30247475,758.68,Revenue,Whistl UK Ltd,Postage
Peterborough City Council,Peterborough Serco Strategic Partnership,PSSP Retained Services,Services,11/10/2019,30247474,"2,514.74",Revenue,Whistl UK Ltd,Postage
Peterborough City Council,Education,Service Director Education,Salary and Wages,11/10/2019,30246739,"27,162.68",Revenue,Teachers Pensions,Salary and Wages
Peterborough City Council,Education,Service Director Education,Salary and Wages,11/10/2019,30245326,"89,488.68",Revenue,Teachers Pensions,Salary and Wages
Peterborough City Council,Education,Special Educational Needs / Inclusion,Services,11/10/2019,30247593,"1,068.85",Revenue,Arete Management Ltd,Consultants Fees
Peterborough City Council,Communities,Targeted Youth Service,Rents,11/10/2019,30247467,819,Revenue,TDA Development Ltd,Hire Of Premises
Peterborough City Council,Communities,Targeted Youth Service,Services,11/10/2019,30247817,"1,260.00",Revenue,Cambridgeshire County Council t/a Grafham Water Centre,Programmes
Peterborough City Council,Peterborough Highway Services,Transport & Infrastructure Commissioning,Services,11/10/2019,30246105,527.73,Revenue,Redacted Commercial Confidentiality,Contractors
Peterborough City Council,Peterborough Highway Services,Transport & Infrastructure Commissioning,Services,11/10/2019,30246102,"1,937.89",Revenue,Redacted Commercial Confidentiality,Contractors
Peterborough City Council,Peterborough Highway Services,Transport & Infrastructure Commissioning,Services,11/10/2019,30246103,"1,937.89",Revenue,Redacted Commercial Confidentiality,Contractors
Peterborough City Council,Peterborough Highway Services,Transport & Infrastructure Commissioning,Services,11/10/2019,30246106,"1,937.89",Revenue,Redacted Commercial Confidentiality,Contractors
Peterborough City Council,"Waste, Cleansing and Open Spaces",Waste & Operational Svs Mgmt,Energy Costs,11/10/2019,30247349,"1,585.42",Revenue,EDF Energy Networks Ltd,Electricity
Peterborough City Council,"Waste, Cleansing and Open Spaces",Waste & Operational Svs Mgmt,Third Party Payments,11/10/2019,30247024,"7,948.07",Revenue,Peterborough Limited,Third Party Payments - Contract
Peterborough City Council,"Waste, Cleansing and Open Spaces",Waste & Operational Svs Mgmt,Third Party Payments,11/10/2019,30247024,"14,006.08",Revenue,Peterborough Limited,Third Party Payments - Contract
Peterborough City Council,"Waste, Cleansing and Open Spaces",Waste & Operational Svs Mgmt,Third Party Payments,11/10/2019,30247024,"37,535.23",Revenue,Peterborough Limited,Third Party Payments - Contract
Peterborough City Council,"Waste, Cleansing and Open Spaces",Waste & Operational Svs Mgmt,Third Party Payments,11/10/2019,30247024,"54,039.48",Revenue,Peterborough Limited,Third Party Payments - Contract
Peterborough City Council,"Waste, Cleansing and Open Spaces",Waste & Operational Svs Mgmt,Repair & Maintenance of Buildings,11/10/2019,30247024,"55,678.70",Revenue,Peterborough Limited,Maintenance
Peterborough City Council,"Waste, Cleansing and Open Spaces",Waste & Operational Svs Mgmt,Third Party Payments,11/10/2019,30247024,"143,036.83",Revenue,Peterborough Limited,Third Party Payments - Contract
Peterborough City Council,"Waste, Cleansing and Open Spaces",Waste & Operational Svs Mgmt,Third Party Payments,11/10/2019,30247024,"170,725.68",Revenue,Peterborough Limited,Third Party Payments - Contract
Peterborough City Council,"Waste, Cleansing and Open Spaces",Waste & Operational Svs Mgmt,Third Party Payments,11/10/2019,30247024,"312,061.46",Revenue,Peterborough Limited,Third Party Payments - Contract
Peterborough City Council,"Waste, Cleansing and Open Spaces",Waste Management,Services,11/10/2019,30247177,627.8,Revenue,Mick George Ltd,Recycling
Peterborough City Council,"Waste, Cleansing and Open Spaces",Waste Management,Services,11/10/2019,30246251,"10,037.52",Revenue,AmeyCespa (East) Ltd,Recycling
Peterborough City Council,Commissioning and Commercial Operations,Access to Resources & Specialist Commissioning,Services,14/10/2019,30246055,780.01,Revenue,Swiis Foster Care Ltd,Boarding Out Fees
Peterborough City Council,Commissioning and Commercial Operations,Access to Resources & Specialist Commissioning,Services,14/10/2019,30247960,995.4,Revenue,UK Fostering Ltd,Boarding Out Fees
Peterborough City Council,Commissioning and Commercial Operations,Access to Resources & Specialist Commissioning,Services,14/10/2019,30247961,995.4,Revenue,UK Fostering Ltd,Boarding Out Fees
Peterborough City Council,Commissioning and Commercial Operations,Access to Resources & Specialist Commissioning,Services,14/10/2019,30247962,"1,015.74",Revenue,UK Fostering Ltd,Boarding Out Fees
Peterborough City Council,Commissioning and Commercial Operations,Access to Resources & Specialist Commissioning,Services,14/10/2019,30246976,"1,543.20",Revenue,Next Step Fostering Services Limited,Boarding Out Fees
Peterborough City Council,Commissioning and Commercial Operations,Access to Resources & Specialist Commissioning,Services,14/10/2019,30246023,"1,980.00",Revenue,Florinee Homes Ltd,Boarding Out Fees
Peterborough City Council,Commissioning and Commercial Operations,Access to Resources & Specialist Commissioning,Services,14/10/2019,30246025,"1,980.00",Revenue,Florinee Homes Ltd,Boarding Out Fees
Peterborough City Council,Commissioning and Commercial Operations,Access to Resources & Specialist Commissioning,Services,14/10/2019,30246030,"2,750.00",Revenue,Florinee Homes Ltd,Boarding Out Fees
Peterborough City Council,Commissioning and Commercial Operations,Access to Resources & Specialist Commissioning,Services,14/10/2019,30246038,"2,750.00",Revenue,Florinee Homes Ltd,Boarding Out Fees
Peterborough City Council,"Cemeteries, Cremation & Registrars",Bereavement Service,Repair & Maintenance of Buildings,14/10/2019,30247214,"1,709.80",Revenue,Facultatieve Technologies Ltd,Cremators
